Workbook

Sheet 注意事項
C3: ○注意事項
C4: ・本ツールは自動操作を行うプログラム（マクロ機能）を使用しています。起動時に[セキュリティーの警告 無効にされました]との表示が出た場合には、右横にある[コンテンツの有効化]を押してください。
C7: ・EXCELは「2010」以降のバージョンをお使い下さい。（バージョンが古いEXCELの場合、誤作動を起こす場合があります）
C8: ・ご利用の際には、必ず「CREATE-SIMPLEを用いた化学物質のリスクアセスメントマニュアル」をご覧ください。
C9: ・自動入力されるばく露限界値、ＧＨＳ分類情報等の情報は、2018年3月時点の情報です。最新の情報はＳＤＳ等を用いて確認してください。
C11: ○免責事項
C12: 厚生労働省の委託に基づきみずほ情報総研（株）が作成したものであり、本ツールの著作権は厚生労働省が有しております。使用者は、著作権法及び関連法規を遵守するとともに、営利目的の個人、法人、団体等が、利益を得る目的で本ツールを配布、または他の製品と合わせて配布することは禁止します。 また、本ツールを使用して得られた結果について、著作権者は利用者に対していかなる保証をするものでもありません。利用者は自己の責任においてご利用ください。 なお、使用に際して不具合等がございましたら、厚生労働省労働基準局安全衛生部化学物質対策課までお寄せください。
C14: ○更新履歴
C15: ・２０１９年３月 | D15: 経皮吸収及び危険性のリスクアセスメントに対応したCREATE-SIMPLE（ver. 2.0）を公開
C16: ・２０１８年９月 | D16: 一部不具合を修正（ばく露限界値の単位の標記誤りを修正（mg/cm3→mg/m3）、結果一覧のオートフィルタ―の保護を解除、GHSの選択肢に「区分外」を追加）
C17: ・２０１８年３月 | D17: CREATE-SIMPLE ver 1.0公開

Sheet リスクアセスメントシート
B2: CREATE-SIMPLE ver 2.0 - サービス業など幅広い職場にむけた簡単な化学物質リスクアセスメントツール -
B3: - 説明 - | L3: No： | N3: 2 | R3: ←「結果一覧」のNo.に対応
B4: ● リスクアセスメントとは、労働者の安全や健康への影響について評価をすることです。 | L4: 実施日： | N4: 2019-04-09
B5: ● CREATE-SIMPLEは、労働者の健康（吸入・経皮）への影響と物質の危険性について評価し、対策の検討を支援します。 | M5: 実施者：
B6: ● SDSを確認して対象物質を決定し、以下のSTEP1から順番に入力してください。 | N6: 結果呼出 | O6: 入力内容クリア
B7: 【STEP 1】 対象物質の基本情報を入力しましょう。
B8: タイトル | X8: 92.14
B9: 実施場所 | X9: 2.73
B10: 製品名等 | S10: 〇リスクアセスメントの種類 | X10: 4.4
B11: 作業内容等 | S11: 吸入 | T11: TRUE | X11: 526
B12: CAS番号 | M12: CAS番号から入力 | S12: 皮膚接触 | T12: TRUE | X12: mg/L
B13: 物質名 | M13: 物質一覧から選択 | Q13: 2 | S13: 爆発・火災 | T13: TRUE | X13: 28.4
B14: リスクアセスメント対象 | L14: 性状 | S14: 性状 | T14: 1 | X14: mmHg
L15: ※気体の場合には危険性（爆発・火災等）のみ対応しています。
B16: 【STEP 2】 取扱い物質に関する情報を入力してください。 | K16: 非表示にする
B17: ○ばく露限界値 | R17: ↓短時間影響 | W17: Sw | X17: =M32*VLOOKUP($O$32,Select_List!$C:$D,2,FALSE) -> 0 | Y17: mg/cm3
B18: 日本産業衛生学会 許容濃度 | H18: =IF($T$14="","",IF($T$14=1,"ppm","mg/m3")) -> ppm | K18: ACGIH TLV TWA | O18: =IF($T$14="","",IF($T$14=1,"ppm","mg/m3")) -> ppm | S18: 短時間ばく露補正の有無 | T18: =IF(OR(F19<>"",M20<>"",L29="区分1"),1,0) -> 0 | W18: log kpsc | X18: =-1.326+0.6097*$F$33-0.1786*($F$32)^(0.5) -> -1.326 | Y18: -
B19: 日本産業衛生学会 最大許容濃度 | H19: =IF($T$14="","",IF($T$14=1,"ppm","mg/m3")) -> ppm | K19: ACGIH TLV STEL | O19: =IF($T$14="","",IF($T$14=1,"ppm","mg/m3")) -> ppm | W19: kpsc | X19: =10^($X18) -> 0.04720630413 | Y19: -
B20: 「皮」または「Skin」の表示 | K20: ACGIH TLV C | O20: =IF($T$14="","",IF($T$14=1,"ppm","mg/m3")) -> ppm | W20: kpol | X20: =0.0001519*$F$32^(-0.5) ->  | Y20: -
B21: ○GHS分類情報 | W21: kaq | X21: =2.5*$F$32^(-0.5) ->  | Y21: -
B22: 爆発物 | F22: 自然発火性液体 | K22: 急性毒性（経口） | M22: 皮膚感作性 | W22: Kp | X22: =1/((1/$X$19+$X$20)+1/$X$21) ->  | Y22: cm/h
B23: 可燃性／引火性ガス | F23: 自然発火性固体 | K23: 急性毒性（経皮） | M23: 生殖細胞変異原性 | W23: 吸収速度 | X23: =X22*X17 ->  | Y23: mg/cm-2/h-1
B24: エアゾール | F24: 自己発熱性化学品 | K24: 急性毒性（吸入：ガス） | M24: 発がん性
B25: 支燃性／酸化性ガス | F25: 水反応可燃性化学品 | K25: 急性毒性（吸入：蒸気） | M25: 生殖毒性 | W25: R: gas constant | X25: 8.314 | Y25: Pa∗m3/Mol/K
B26: 高圧ガス | F26: 酸化性液体 | K26: 急性毒性（吸入：粉塵、ミスト） | M26: 特定標的臓器毒性（単回） | W26: V:velocity of air | X26: 1080 | Y26: m/h
B27: 引火性液体 | F27: 酸化性固体 | K27: 皮膚腐食性／刺激性 | M27: 特定標的臓器毒性（反復） | W27: v:kinematic viscosity of air | X27: 0.054 | Y27: m2/h
B28: 可燃性固体 | F28: 有機過酸化物 | K28: 眼に対する重篤な損傷性／眼刺激性 | M28: 吸引性呼吸器有害性 | W28: x： length of area of evaporation 0.1[m] | X28: 0.1 | Y28: m
B29: 自己反応性化学品 | F29: 金属腐食性物質 | K29: 呼吸器感作性 | W29: T | X29: =20+273 -> 293 | Y29: K
B30: ※区分2Aなど、区分2が細区分されている場合にはは区分2として扱う。区分に該当しない場合（分類対象外、区分外、分類できない）には空欄とする。 | W30: Dg: molecular diffusivity in air | X30: =0.06*(76/$F$32)^(1/2) ->  | Y30: m2/h
B31: ○物理化学的性状 | D31: ? | W31: β | X31: =(0.0111*($X$26^0.96)*($X$30^0.19))/(($X$27^0.15)*($X$28^0.04)) -> 
B32: 分子量 | H32: - | K32: 水溶解度 | O32: 単位選択 | W32: 蒸気圧 | X32: =$M$33*VLOOKUP($O$33,Select_List!$C:$D,2,FALSE) -> 0 | Y32: Pa
B33: 水／オクタノール分配係数（log Kow） | H33: - | K33: 蒸気圧 | O33: 単位選択 | W33: 蒸発速度 | X33: =($X$31*$F$32*$X$32)/($X$25*$X$29*10) ->  | Y33: mg/cm-2/h-1
B34: 引火点 | H34: ℃ | K34: 皮膚透過係数（Kp）[自動入力] | M34: =IFERROR(X22,"") ->  | O34: cm/h | W34: 皮膚に留まる時間 | X34: =IF($T$14=1,7,3)/($X$23+$X$33) ->  | Y34: h
B36: 【STEP 3】 以下の質問に答えましょう。
B37: =IF(T14=1,"Q.1 揮発性（沸点）はどのくらいですか。","Q.1 どのような形状ですか。") -> Q.1 揮発性（沸点）はどのくらいですか。 | H37: ?
B38: 必須 | K38: 判定結果（有害性リスク） | S38: 種類 | T38: =IF($T$14="","",IF($T$14=1,"Q1_Liquid","Q1_Solid")) -> Q1_Liquid | W38: Q1 | X38: =IF(C38="","",C38) ->  | Y38: =IF($T$14=1,"volatility",IF($T$14=2,"dustiness","")) -> volatility | Z38: =VLOOKUP($X38,Select_List!$C:$D,2,FALSE) -> 
B39: Q.2 製品の取扱量はどのくらいですか。 | H39: ? | K39: 危険有害性の程度 | O39: ? | W39: Q2 | X39: =IF(C40="","",C40) ->  | Y39: amount | Z39: =VLOOKUP($X39,Select_List!$C:$D,2,FALSE) -> 
B40: 必須 | K40: 管理目標濃度（吸入） | O40: =IF($T$14="","",IF($T$14=1,"ppm","mg/m3")) -> ppm | S40: 種類 | T40: =IF($T$14="","",IF($T$14=1,"Q2_Liquid",IF($T$14=2,"Q2_Solid","Q2_Gas"))) -> Q2_Liquid | W40: Q3 | X40: =IF(C42="","",C42) ->  | Y40: concentration | Z40: =VLOOKUP($X40,Select_List!$C:$D,2,FALSE) -> 
B41: Q.3 対象物質の含有率はどのくらいですか。 | H41: ? | K41: ばく露限界値（吸入） | O41: =IF($T$14="","",IF($T$14=1,"ppm","mg/m3")) -> ppm | W41: Q4 | X41: =IF(C44="","",C44) ->  | Y41: spray | Z41: =VLOOKUP($X41,Select_List!$C:$D,2,FALSE) -> 
B42: 必須 | K42: ばく露限界値（経皮） | O42: mg/day | W42: Q5 | X42: =IF(C46="","",C46) ->  | Y42: workingarea | Z42: =IF(T14=1,IF(AND(VLOOKUP($X42,Select_List!$C:$D,2,FALSE)=10,$Z39<3),10,1),1) -> 
B43: Q.4 スプレー作業など空気中に飛散しやすい作業を行っていますか。 | H43: ? | K43: 眼や皮膚への局所影響 | W43: Q6 | X43: =IF(C48="","",C48) ->  | Y43: venti | Z43: =VLOOKUP($X43,Select_List!$C:$D,2,FALSE) -> 
B44: 必須 | K44: ※リスクの判定ではばく露限界値を優先します。 | W44: Q7 | X44: =IF(C50="","",C50) ->  | Y44: hour | Z44: =VLOOKUP($X44,Select_List!$C:$D,2,FALSE) -> 
B45: Q.5 化学物質を塗布する合計面積は1m2以上ですか。 | H45: ? | K45: × | W45: Q8 | X45: =IF(C52="","",C52) ->  | Y45: frequency | Z45: =F52 -> 0 | AA45: =H52 -> 
B46: =IF($T$14="","",IF($T$14=1,"必須","不要")) -> 必須 | X46: =IF(F52="","",F52) ->  | Y46: time | Z46: =Z44*Z45 -> 
B47: Q.6 作業場の換気状況はどのくらいですか。 | H47: ？ | K47: ばく露の程度 | O47: ? | W47: Q9 | X47: =IF(C55="","",C55) ->  | Y47: rpe | Z47: =IFERROR(VLOOKUP($X47,Select_List!$C:$D,2,FALSE),1) -> 1
B48: 必須 | K48: 推定ばく露濃度 | O48: =IF($T$14="","",IF($T$14=1,"ppm","mg/m3")) -> ppm | W48: Q9 | X48: =IF(E55="","",E55) ->  | Y48: fitting | Z48: =IFERROR(VLOOKUP($X48,Select_List!$C:$D,2,FALSE),2) -> 2
B49: Q.7 １日あたりの化学物質の作業時間はどのくらいですか。 | H49: ？ | K49: 推定経皮吸収量 | O49: mg/day | Y49: apf | Z49: =Z48*Z47 -> 2
B50: =IF(OR($T$11=TRUE,$T$12=TRUE),"必須","不要") -> 必須 | K50: = | Y50: 補正係数合計 | Z50: =Z40*Z41*Z42*Z43*Z47 -> 
B51: Q.8 化学物質の取り扱い頻度はどのくらいですか。 | H51: ？ | W51: Q10 | X51: =リスクアセスメントシート!C57 -> 0 | Y51: Exposure_area | Z51: =IFERROR(VLOOKUP($X51,Select_List!$C:$D,2,FALSE),1) -> 1
B52: 必須 | D52: ⇒ | E52: 必須 | H52: =IF($C$52="","",IF($C$52="週1回以上","日／週","日／月")) ->  | K52: リスクレベル | O52: ? | W52: Q11 | X52: =リスクアセスメントシート!C59 -> 0 | Y52: Glove | Z52: =IFERROR(VLOOKUP($X52,Select_List!$C:$D,2,FALSE),1) -> 1
B53: Q.9 どのような呼吸用保護具を装着していますか。【オプション】 | H53: ？ | K53: 合計 （吸入＋経皮） | W53: Q12 | X53: =リスクアセスメントシート!C61 -> 0 | Y53: Glove_edu | Z53: =IF($Z$52=0.2,IFERROR(VLOOKUP($X53,Select_List!$C:$D,2,FALSE),1),1) -> 1
C54: 種類 | E54: フィットテストの有無 | Y54: 補正係数合計 | Z54: =$Z$52*$Z$53 -> 1
B55: 任意 | I55: =IF($Q$13="","",IF($Q$13=1,"防毒","防じん")) -> 防じん | K55: 吸入 | S55: 種類 | T55: =IF($T$14="","",IF($T$14=1,"Q9_RPE_Liquid","Q9_RPE_Solid")) -> Q9_RPE_Liquid | U55: =IF($C$55<>"","Q9_Fitting","") -> 
B56: Q.10 化学物質が皮膚に接触する面積はどれぐらいですか？ | H56: ？ | K56: 経皮吸収
B57: =IF($T$12=TRUE,"必須","不要") -> 必須 | K57: 眼や皮膚への 局所影響
B58: Q.11 取り扱う化学物質に適した手袋を着用していますか？ | H58: ？
B59: =IF($T$12=TRUE,"必須","不要") -> 必須
B60: Q.12 手袋の適正な使用方法に関する教育は行っていますか？ | H60: ？
B61: =IF($T$12=TRUE,"必須","不要") -> 必須 | X61: 引火点：ない場合 | Y61: =IF(D27="区分3",23,IF(D27="区分4",60,"")) -> 
B67: Q.13 化学物質の取扱温度はどのくらいですか？ | K67: 判定結果（危険性リスク） | O67: ? | W67: Q13 | X67: =C68 -> 0 | Y67: process_temperature | Z67: =IFERROR(VLOOKUP($X67,Select_List!$C:$D,2,FALSE),1) -> 1
B68: =IF($T$13=TRUE,"必須","不要") -> 必須 | D68: ⇒ | E68: =IF($C$68=X68,"必須","不要") -> 不要 | H68: ℃ | W68: 取扱い温度＞引火点 | X68: 室温以上 | Y68: operation temp>flash point | Z68: =IF($Z$67>IF($F$34<>"",$F$34,$Y$61)-$AB$68,"YES","NO") ->  | AA68: Safety margin | AB68: 5 | AC68: ℃
B69: Q.14 着火源を取り除く対策は講じていますか？ | H69: ？ | W69: Q14 | X69: =C70 -> 0 | Y69: ignition_source | Z69: =IFERROR(VLOOKUP($X69,Select_List!$C162:$D202,2,FALSE),1) -> 1
B70: =IF($T$13=TRUE,"必須","不要") -> 必須 | W70: Q15 | X70: =C72 -> 0 | Y70: organic_matter | Z70: =IFERROR(VLOOKUP($X70,Select_List!$C166:$D203,2,FALSE),1) -> 1
B71: Q15 近傍で有機物や金属の取扱いがありますか。 | H71: ？ | W71: Q16 | X71: =C74 -> 0 | Y71: air_water | Z71: =IFERROR(VLOOKUP($X71,Select_List!$C168:$D204,2,FALSE),1) -> 1
B72: =IF($T$13=TRUE,"必須","不要") -> 必須
B73: Q16 取扱物質が空気又は水に接触する可能性がありますか。 | H73: ？ | X73: Category | Y73: 着火源の除去 | Z73: 換気の有無 | AA73: 有機物・金属の取扱いの有無 | AB73: 空気、水との接触の有無 | AC73: 揮発性 | AD73: 暫定リスクレベル | AF73: Comment
B74: =IF($T$13=TRUE,"必須","不要") -> 必須 | W74: 爆発物 | X74: =D22 -> 0 | AD74: =SUMIFS(PhysRA_List!$K:$K,PhysRA_List!$B:$B,リスクアセスメントシート!$W74,PhysRA_List!$C:$C,$X74) -> 0 | AE74: =W74&X74&$Z$39&Y74&Z74&AA74&AB74 ->  | AF74: =IFERROR(VLOOKUP(AE74,PhysRA_List!$M:$N,2,FALSE),"") -> 
K75: ※プロセス等で化学物質を用いる場合には、詳細なリスクアセスメントを実施しましょう。 | W75: 可燃性・引火性ガス | X75: =D23 -> 0 | Y75: =$Z$69 -> 1 | Z75: =IF($Z$43<1,"YES","NO") ->  | AD75: =SUMIFS(PhysRA_List!$K:$K,PhysRA_List!$B:$B,$W75,PhysRA_List!$C:$C,$X75,PhysRA_List!$D:$D,$Z$39,PhysRA_List!$F:$F,$Y75,PhysRA_List!$G:$G,$Z75) -> 0 | AE75: =W75&X75&$Z$39&Y75&Z75&AA75&AB75 ->  | AF75: =IFERROR(VLOOKUP(AE75,PhysRA_List!$M:$N,2,FALSE),"") -> 
W76: エアゾール | X76: =D24 -> 0 | Y76: =$Z$69 -> 1 | Z76: =IF($Z$43<1,"YES","NO") ->  | AD76: =IF($X$76="区分3",SUMIFS(PhysRA_List!$K:$K,PhysRA_List!$B:$B,$W76,PhysRA_List!$C:$C,$X76,PhysRA_List!$D:$D,$Z$39),SUMIFS(PhysRA_List!$K:$K,PhysRA_List!$B:$B,$W76,PhysRA_List!$C:$C,$X76,PhysRA_List!$D:$D,$Z$39,PhysRA_List!$F:$F,$Y76,PhysRA_List!$G:$G,$Z76)) -> 0 | AF76: =IFERROR(VLOOKUP(AE76,PhysRA_List!$M:$N,2,FALSE),"") ->  | AG76: 区分3のみ、着火源、換気を考慮しない。
W77: 支燃性・酸化性ガス | X77: =D25 -> 0 | AD77: =SUMIFS(PhysRA_List!$K:$K,PhysRA_List!$B:$B,$W77,PhysRA_List!$C:$C,$X77,PhysRA_List!$D:$D,$Z$39) -> 0 | AF77: =IFERROR(VLOOKUP(AE77,PhysRA_List!$M:$N,2,FALSE),"") -> 
W78: 高圧ガス | X78: =D26 -> 0 | AD78: =SUMIFS(PhysRA_List!$K:$K,PhysRA_List!$B:$B,$W78,PhysRA_List!$C:$C,$X78,PhysRA_List!$D:$D,$Z$39) -> 0 | AE78: =W78&X78&$Z$39&Y78&Z78&AA78&AB78 ->  | AF78: =IFERROR(VLOOKUP(AE78,PhysRA_List!$M:$N,2,FALSE),"") -> 
W79: 引火性液体 | X79: =IF(AND(Z68="YES",OR(D27="区分3",D27="区分4")),Y68,D27) ->  | Y79: =$Z$69 -> 1 | Z79: =IF($Z$43<1,"YES","NO") ->  | AD79: =SUMIFS(PhysRA_List!$K:$K,PhysRA_List!$B:$B,$W79,PhysRA_List!$C:$C,$X79,PhysRA_List!$D:$D,$Z$39,PhysRA_List!$F:$F,$Y79,PhysRA_List!$G:$G,$Z79) -> 0 | AE79: =W79&X79&$Z$39&Y79&Z79&AA79&AB79 ->  | AF79: =IFERROR(VLOOKUP(AE79,PhysRA_List!$M:$N,2,FALSE),"") -> 
W80: 可燃性固体 | X80: =D28 -> 0 | Y80: =$Z$69 -> 1 | AC80: =IF(Z38=3,"YES","NO") ->  | AD80: =IF($X80="区分2",SUMIFS(PhysRA_List!$K:$K,PhysRA_List!$B:$B,$W80,PhysRA_List!$C:$C,$X80,PhysRA_List!$D:$D,$Z$39,PhysRA_List!$F:$F,$Y80,PhysRA_List!$J:$J,$AC80),SUMIFS(PhysRA_List!$K:$K,PhysRA_List!$B:$B,$W80,PhysRA_List!$C:$C,$X80,PhysRA_List!$D:$D,$Z$39,PhysRA_List!$F:$F,$Y80)) -> 0 | AE80: =W80&X80&$Z$39&Y80&Z80&AA80&AB80 ->  | AF80: =IFERROR(VLOOKUP(AE80,PhysRA_List!$M:$N,2,FALSE),"") -> 
W81: 自己反応性化学品 | X81: =D29 -> 0 | AD81: =IF($X$81="タイプG",SUMIFS(PhysRA_List!$K:$K,PhysRA_List!$B:$B,$W81,PhysRA_List!$C:$C,$X81,PhysRA_List!$D:$D,$Z$39),SUMIFS(PhysRA_List!$K:$K,PhysRA_List!$B:$B,リスクアセスメントシート!$W81,PhysRA_List!$C:$C,$X81)) -> 0 | AE81: =W81&X81&IF(X81=Select_List!$C$38,$Z$39,"") -> 自己反応性化学品0 | AF81: =IFERROR(VLOOKUP(AE81,PhysRA_List!$M:$N,2,FALSE),"") ->  | AG81: タイプGのみ量を考慮
W82: 自然発火性液体 | X82: =H22 -> 0 | AD82: =SUMIFS(PhysRA_List!$K:$K,PhysRA_List!$B:$B,リスクアセスメントシート!$W82,PhysRA_List!$C:$C,$X82) -> 0 | AE82: =W82&X82 -> 自然発火性液体0 | AF82: =IFERROR(VLOOKUP(AE82,PhysRA_List!$M:$N,2,FALSE),"") -> 
W83: 自然発火性固体 | X83: 0 | AD83: =SUMIFS(PhysRA_List!$K:$K,PhysRA_List!$B:$B,リスクアセスメントシート!$W83,PhysRA_List!$C:$C,$X83) -> 0 | AE83: =W83&X83 -> 自然発火性固体0 | AF83: =IFERROR(VLOOKUP(AE83,PhysRA_List!$M:$N,2,FALSE),"") -> 
W84: 自己発熱性化学品 | X84: 0 | AB84: =$Z$71 -> 1 | AD84: =SUMIFS(PhysRA_List!$K:$K,PhysRA_List!$B:$B,$W84,PhysRA_List!$C:$C,$X84,PhysRA_List!$D:$D,$Z$39,PhysRA_List!$I:$I,$AB84) -> 0 | AF84: =IFERROR(VLOOKUP(AE84,PhysRA_List!$M:$N,2,FALSE),"") -> 
W85: 水反応可燃性化学品 | X85: 0 | Y85: =$Z$69 -> 1 | AB85: =$Z$71 -> 1 | AD85: =IF($X85="区分1","",SUMIFS(PhysRA_List!$K:$K,PhysRA_List!$B:$B,$W85,PhysRA_List!$C:$C,$X85,PhysRA_List!$D:$D,$Z$39,PhysRA_List!$F:$F,$Y85,PhysRA_List!$I:$I,$AB85)) -> 0 | AF85: =IFERROR(VLOOKUP(AE85,PhysRA_List!$M:$N,2,FALSE),"") -> 
W86: 酸化性液体 | X86: 0 | AA86: =$Z$70 -> 1 | AD86: =SUMIFS(PhysRA_List!$K:$K,PhysRA_List!$B:$B,$W86,PhysRA_List!$C:$C,$X86,PhysRA_List!$D:$D,$Z$39,PhysRA_List!$H:$H,$AA86) -> 0 | AF86: =IFERROR(VLOOKUP(AE86,PhysRA_List!$M:$N,2,FALSE),"") -> 
W87: 酸化性固体 | X87: 0 | AA87: =$Z$70 -> 1 | AD87: =SUMIFS(PhysRA_List!$K:$K,PhysRA_List!$B:$B,$W87,PhysRA_List!$C:$C,$X87,PhysRA_List!$D:$D,$Z$39,PhysRA_List!$H:$H,$AA87) -> 0 | AF87: =IFERROR(VLOOKUP(AE87,PhysRA_List!$M:$N,2,FALSE),"") -> 
W88: 有機過酸化物 | X88: 0 | AD88: =IF($X88="タイプG",SUMIFS(PhysRA_List!$K:$K,PhysRA_List!$B:$B,$W88,PhysRA_List!$C:$C,$X88,PhysRA_List!$D:$D,$Z$39),SUMIFS(PhysRA_List!$K:$K,PhysRA_List!$B:$B,リスクアセスメントシート!$W88,PhysRA_List!$C:$C,$X88)) -> 0 | AE88: =W88&X88&IF(X88=Select_List!$C$38,$Z$39,"") -> 有機過酸化物0 | AF88: =IFERROR(VLOOKUP(AE88,PhysRA_List!$M:$N,2,FALSE),"") ->  | AG88: タイプGのみ量を考慮
W89: 金属腐食性物質 | X89: 0 | Y89: =$Z$69 -> 1 | AA89: =$Z$70 -> 1 | AD89: =SUMIFS(PhysRA_List!$K:$K,PhysRA_List!$B:$B,リスクアセスメントシート!$W89,PhysRA_List!$C:$C,$X89) -> 0 | AE89: =W89&X89 -> 金属腐食性物質0 | AF89: =IFERROR(VLOOKUP(AE89,PhysRA_List!$M:$N,2,FALSE),"") -> 
AB90: Risk level max | AD90: =MAX(AD74:AD89) -> 0 | AF90: =IF(AD90=0,Select_List!C182,"") -> 良好です。
AB91: RL | AD91: =IF(AD90>=4,"Ⅳ",IF(AD90=3,"Ⅲ",IF(AD90=2,"Ⅱ","Ⅰ"))) -> Ⅰ | AF91: =SUBSTITUTE(TRIM(CONCATENATE(AF74," ",AF75," ",AF76," ",AF77," ",AF78," ",AF79," ",AF80," ",AF81," ",AF82," ",AF83," ",AF84," ",AF85," ",AF86," ",AF87," ",AF88," ",AF89," ",AF90))," ",CHAR(10)) -> 良好です。

Sheet 実施レポート
B2: リスクアセスメント実施レポート
B3: - 説明 - | M3: No： | N3: 2
B4: ● リスクアセスメントシートで実施した結果が表示されます。 | M4: 実施日： | N4: 2019-03-15
B5: ● このシートでリスク低減措置の内容を検討し、労働者に周知を行いましょう。 | M5: 実施者：
N6: 結果呼出 | O6: 入力内容クリア
B8: タイトル | W8: 分子量
B9: 実施場所 | W9: 水／オクタノール分配係数（log Kow）
B10: 製品名等 | S10: 〇リスクアセスメントの種類 | W10: 引火点
B11: 作業内容等 | S11: 吸入 | T11: TRUE | W11: 水溶解度
B12: CAS番号 | S12: 皮膚接触 | T12: TRUE | X12: g/L
B13: 物質名 | S13: 爆発・火災 | T13: TRUE | W13: 蒸気圧
S14: 性状 | T14: 1 | X14: Pa
C15: 項目 | E15: 現状 | H15: 対策後 | L15: リスク低減対策の検討
B16: 有害性 | C16: ="管理目標濃度（吸入）"&IF($S$11=1,"[ppm]",IF($S$11=2,"[mg/m3]","")) -> 管理目標濃度（吸入） | L16: ※以下のQ1～Q9の選択肢を変更し、 【再度リスクを判定】をクリックすることによって、 リスク低減対策後の結果が表示されます。
C17: ="ばく露限界値（吸入）"&IF($S$11=1,"[ppm]",IF($S$11=2,"[mg/m3]","")) -> ばく露限界値（吸入） | W17: Sw | X17: =X11*VLOOKUP($X$12,Select_List!$C:$D,2,FALSE) -> 0 | Y17: mg/cm3
C18: ="ばく露限界値（経皮）"&IF($S$11=1,"[mg]",IF($S$11=2,"[mg]","")) -> ばく露限界値（経皮） | S18: 短時間ばく露補正の有無 | T18: =IF(OR(F19<>"",M20<>"",L29="区分1"),1,0) -> 0 | W18: log kpsc | X18: =-1.326+0.6097*$X$9-0.1786*($X$8)^(0.5) -> -1.326 | Y18: -
C19: 目や皮膚に有害な影響 | R19: =IF($T$14="","",IF($T$14=1,"Q1_Liquid",IF($T$14=2,"Q1_Solid","Q1_Gas"))) -> Q1_Liquid | W19: kpsc | X19: =10^($X18) -> 0.04720630413 | Y19: -
C20: Q１.揮発性・飛散性 | R20: =IF($T$14="","",IF($T$14=1,"Q2_Liquid",IF($T$14=2,"Q2_Solid","Q2_Gas"))) -> Q2_Liquid | W20: kpol | X20: =0.0001519*$X$8^(-0.5) ->  | Y20: -
C21: Q２.取扱量 | R21: Q3_Concentration | W21: kaq | X21: =2.5*$X$8^(-0.5) ->  | Y21: -
C22: Q３.含有率 | R22: Q4_Spray | W22: Kp | X22: =1/((1/$X$19+$X$20)+1/$X$21) ->  | Y22: cm/h
C23: Q４.スプレー作業の有無 | R23: Q5_Workingarea | W23: 吸収速度 | X23: =X22*X17 ->  | Y23: mg/cm-2/h-1
C24: Q５.塗布面積1m2超 | R24: Q6_Ventilation
C25: Q6.換気レベル | R25: Q7_Time | W25: R: gas constant | X25: 8.314 | Y25: Pa∗m3/Mol/K
C26: Q7.作業時間 | R26: Q8_Frequency | W26: V:velocity of air | X26: 1080 | Y26: m/h
C27: Q8.作業頻度 | O27: =IF($L$27="","",IF($L$27="週1回以上","日／週","日／月")) ->  | R27: =IF($T$14="","",IF($T$14=1,"Q9_RPE_Liquid","Q9_RPE_Solid")) -> Q9_RPE_Liquid | W27: v:kinematic viscosity of air | X27: 0.054 | Y27: m2/h
C28: Q９.呼吸用保護具[任意] | R28: =IF($L$28<>"","Q9_Fitting","") ->  | W28: x： length of area of evaporation 0.1[m] | X28: 0.1 | Y28: m
C29: フィットテストの方法 | R29: Q10_Exposure_area | W29: T | X29: =20+273 -> 293 | Y29: K
B30: 経皮 | C30: Q10.接触面積 | R30: Q11_Glove | W30: Dg: molecular diffusivity in air | X30: =0.06*(76/$X$8)^(1/2) ->  | Y30: m2/h
C31: Q11.化学防護手袋 | R31: Q12_Glove_edu | W31: β | X31: =(0.0111*($X$26^0.96)*($X$30^0.19))/(($X$27^0.15)*($X$28^0.04)) -> 
C32: Q12.保護具の教育 | R32: Q13_process_temperature | W32: 蒸気圧 | X32: =$X$13*VLOOKUP($X$14,Select_List!$C:$D,2,FALSE) -> 0 | Y32: Pa
B33: 爆発・火災 | C33: Q13.取扱温度 | O33: ℃ | R33: Q14_ignition_source | W33: 蒸発速度 | X33: =($X$31*$X$8*$X$32)/($X$25*$X$29*10) ->  | Y33: mg/cm-2/h-1
C34: Q14.着火源の有無 | R34: Q15_organic_matter | W34: 皮膚に留まる時間 | X34: =IF($T$14=1,7,3)/($X$23+$X$33) ->  | Y34: h
C35: Q15.有機物、金属の取扱い | R35: Q16_air_water
C36: Q16.空気、水との接触
C37: ="推定ばく露濃度"&IF($S$11=1,"[ppm]",IF($S$11=2,"[mg/m3]","")) -> 推定ばく露濃度
C38: 推定経皮吸収量[mg] | S38: 種類 | T38: =IF($T$14="","",IF($T$14=1,"Q1_Liquid","Q1_Solid")) -> Q1_Liquid | W38: Q1 | X38: =L20 -> 0 | Y38: =IF($T$14=1,"volatility",IF($T$14=2,"dustiness","")) -> volatility | Z38: =VLOOKUP($X38,Select_List!$C:$D,2,FALSE) -> 
B39: リスク | C39: 合計 （吸入＋経皮） | W39: Q2 | X39: =L21 -> 0 | Y39: amount | Z39: =VLOOKUP($X39,Select_List!$C:$D,2,FALSE) -> 
C40: 吸入 | S40: 種類 | T40: =IF($T$14="","",IF($T$14=1,"Q2_Liquid",IF($T$14=2,"Q2_Solid","Q2_Gas"))) -> Q2_Liquid | W40: Q3 | X40: 0 | Y40: concentration | Z40: =VLOOKUP($X40,Select_List!$C:$D,2,FALSE) -> 
C41: 経皮吸収 | W41: Q4 | X41: 0 | Y41: spray | Z41: =VLOOKUP($X41,Select_List!$C:$D,2,FALSE) -> 
C42: 眼や皮膚への影響 | W42: Q5 | X42: 0 | Y42: workingarea | Z42: =IF(T14=1,IF(AND(VLOOKUP($X42,Select_List!$C:$D,2,FALSE)=10,$Z39<3),10,1),1) -> 
C43: 爆発火災 | W43: Q6 | X43: 0 | Y43: venti | Z43: =VLOOKUP($X43,Select_List!$C:$D,2,FALSE) -> 
C44: リスクレベル（有害性）の説明 | W44: Q7 | X44: 0 | Y44: hour | Z44: =VLOOKUP($X44,Select_List!$C:$D,2,FALSE) -> 
C45: リスクレベル（危険性）の説明 | W45: Q8 | X45: 0 | Y45: frequency | Z45: =N27 -> 0 | AA45: =O27 -> 
B46: ※リスク判定に用いたリスク低減対策よりも法令事項の方が厳しい措置である場合は法令が優先されます | X46: =N27 -> 0 | Y46: time | Z46: =Z44*Z45 -> 
W47: Q9 | X47: =L28 -> 0 | Y47: rpe | Z47: =IFERROR(VLOOKUP($X47,Select_List!$C:$D,2,FALSE),1) -> 1
B48: ■ （自由記述）検討したリスク低減措置の内容、実施時期等 | O48: 保存 | W48: Q9 | X48: =L29 -> 0 | Y48: fitting | Z48: =IFERROR(VLOOKUP($X48,Select_List!$C:$D,2,FALSE),2) -> 2
Y49: apf | Z49: =Z48*Z47 -> 2
Y50: 補正係数合計 | Z50: =Z40*Z41*Z42*Z43*Z47 -> 
W51: Q10 | X51: =L30 -> 0 | Y51: Exposure_area | Z51: =IFERROR(VLOOKUP($X51,Select_List!$C:$D,2,FALSE),1) -> 1
B52: ■ （自由記述）備考 | W52: Q11 | X52: =L31 -> 0 | Y52: Glove | Z52: =IFERROR(VLOOKUP($X52,Select_List!$C:$D,2,FALSE),1) -> 1
W53: Q12 | X53: 0 | Y53: Glove_edu | Z53: =IF($Z$52=0.2,IFERROR(VLOOKUP($X53,Select_List!$C:$D,2,FALSE),1),1) -> 1
Y54: 補正係数合計 | Z54: =$Z$52*$Z$53 -> 1
X61: 引火点：ない場合 | Y61: 60
W67: Q13 | X67: =L33 -> 0 | Y67: process_temperature | Z67: =IFERROR(VLOOKUP($X67,Select_List!$C:$D,2,FALSE),1) -> 1
W68: 取扱い温度＞引火点 | X68: 室温以上 | Y68: operation temp>flash point | Z68: =IF($Z$67>IF($N$33<>"",$N$33,$Y$61)-$AB$68,"YES","NO") -> NO | AA68: Safety margin | AB68: 5 | AC68: ℃
W69: Q14 | X69: =L34 -> 0 | Y69: ignition_source | Z69: =IFERROR(VLOOKUP($X69,Select_List!$C162:$D202,2,FALSE),1) -> 1
W70: Q15 | X70: =L35 -> 0 | Y70: organic_matter | Z70: =IFERROR(VLOOKUP($X70,Select_List!$C166:$D203,2,FALSE),1) -> 1
W71: Q16 | X71: 0 | Y71: air_water | Z71: =IFERROR(VLOOKUP($X71,Select_List!$C168:$D204,2,FALSE),1) -> 1
Y73: 着火源の除去 | Z73: 換気の有無 | AA73: 有機物・金属の取扱いの有無 | AB73: 空気、水との接触の有無 | AC73: 揮発性 | AD73: 暫定リスクレベル | AF73: Comment
W74: 爆発物 | AD74: =SUMIFS(PhysRA_List!$K:$K,PhysRA_List!$B:$B,リスクアセスメントシート!$W74,PhysRA_List!$C:$C,$X74) -> 0 | AE74: =W74&X74&$Z$39&Y74&Z74&AA74&AB74 ->  | AF74: =IFERROR(VLOOKUP(AE74,PhysRA_List!$M:$N,2,FALSE),"") -> 
W75: 可燃性・引火性ガス | Y75: =$Z$69 -> 1 | Z75: =IF($Z$43<1,"YES","NO") ->  | AD75: =SUMIFS(PhysRA_List!$K:$K,PhysRA_List!$B:$B,$W75,PhysRA_List!$C:$C,$X75,PhysRA_List!$D:$D,$Z$39,PhysRA_List!$F:$F,$Y75,PhysRA_List!$G:$G,$Z75) -> 0 | AE75: =W75&X75&$Z$39&Y75&Z75&AA75&AB75 ->  | AF75: =IFERROR(VLOOKUP(AE75,PhysRA_List!$M:$N,2,FALSE),"") -> 
W76: エアゾール | Y76: =$Z$69 -> 1 | Z76: =IF($Z$43<1,"YES","NO") ->  | AD76: =IF($X$76="区分3",SUMIFS(PhysRA_List!$K:$K,PhysRA_List!$B:$B,$W76,PhysRA_List!$C:$C,$X76,PhysRA_List!$D:$D,$Z$39),SUMIFS(PhysRA_List!$K:$K,PhysRA_List!$B:$B,$W76,PhysRA_List!$C:$C,$X76,PhysRA_List!$D:$D,$Z$39,PhysRA_List!$F:$F,$Y76,PhysRA_List!$G:$G,$Z76)) -> 0 | AE76: =W76&X76&$Z$39&Y76&Z76&AA76&AB76 ->  | AF76: =IFERROR(VLOOKUP(AE76,PhysRA_List!$M:$N,2,FALSE),"") ->  | AG76: 区分3のみ、着火源、換気を考慮しない。
W77: 支燃性・酸化性ガス | AD77: =SUMIFS(PhysRA_List!$K:$K,PhysRA_List!$B:$B,$W77,PhysRA_List!$C:$C,$X77,PhysRA_List!$D:$D,$Z$39) -> 0 | AF77: =IFERROR(VLOOKUP(AE77,PhysRA_List!$M:$N,2,FALSE),"") -> 
W78: 高圧ガス | AD78: =SUMIFS(PhysRA_List!$K:$K,PhysRA_List!$B:$B,$W78,PhysRA_List!$C:$C,$X78,PhysRA_List!$D:$D,$Z$39) -> 0 | AE78: =W78&X78&$Z$39&Y78&Z78&AA78&AB78 ->  | AF78: =IFERROR(VLOOKUP(AE78,PhysRA_List!$M:$N,2,FALSE),"") -> 
W79: 引火性液体 | Y79: =$Z$69 -> 1 | Z79: =IF($Z$43<1,"YES","NO") ->  | AD79: =SUMIFS(PhysRA_List!$K:$K,PhysRA_List!$B:$B,$W79,PhysRA_List!$C:$C,$X79,PhysRA_List!$D:$D,$Z$39,PhysRA_List!$F:$F,$Y79,PhysRA_List!$G:$G,$Z79) -> 0 | AE79: =W79&X79&$Z$39&Y79&Z79&AA79&AB79 ->  | AF79: =IFERROR(VLOOKUP(AE79,PhysRA_List!$M:$N,2,FALSE),"") -> 
W80: 可燃性固体 | Y80: =$Z$69 -> 1 | AC80: =IF(Z38=3,"YES","NO") ->  | AD80: =IF($X80="区分2",SUMIFS(PhysRA_List!$K:$K,PhysRA_List!$B:$B,$W80,PhysRA_List!$C:$C,$X80,PhysRA_List!$D:$D,$Z$39,PhysRA_List!$F:$F,$Y80,PhysRA_List!$J:$J,$AC80),SUMIFS(PhysRA_List!$K:$K,PhysRA_List!$B:$B,$W80,PhysRA_List!$C:$C,$X80,PhysRA_List!$D:$D,$Z$39,PhysRA_List!$F:$F,$Y80)) -> 0 | AE80: =W80&X80&$Z$39&Y80&Z80&AA80&AB80 ->  | AF80: =IFERROR(VLOOKUP(AE80,PhysRA_List!$M:$N,2,FALSE),"") -> 
W81: 自己反応性化学品 | AD81: =IF($X$81="タイプG",SUMIFS(PhysRA_List!$K:$K,PhysRA_List!$B:$B,$W81,PhysRA_List!$C:$C,$X81,PhysRA_List!$D:$D,$Z$39),SUMIFS(PhysRA_List!$K:$K,PhysRA_List!$B:$B,リスクアセスメントシート!$W81,PhysRA_List!$C:$C,$X81)) -> 0 | AE81: =W81&X81&IF(X81=Select_List!$C$38,$Z$39,"") -> 自己反応性化学品 | AF81: =IFERROR(VLOOKUP(AE81,PhysRA_List!$M:$N,2,FALSE),"") ->  | AG81: タイプGのみ量を考慮
W82: 自然発火性液体 | AD82: =SUMIFS(PhysRA_List!$K:$K,PhysRA_List!$B:$B,リスクアセスメントシート!$W82,PhysRA_List!$C:$C,$X82) -> 0 | AE82: =W82&X82 -> 自然発火性液体 | AF82: =IFERROR(VLOOKUP(AE82,PhysRA_List!$M:$N,2,FALSE),"") -> 
W83: 自然発火性固体 | AD83: =SUMIFS(PhysRA_List!$K:$K,PhysRA_List!$B:$B,リスクアセスメントシート!$W83,PhysRA_List!$C:$C,$X83) -> 0 | AE83: =W83&X83 -> 自然発火性固体 | AF83: =IFERROR(VLOOKUP(AE83,PhysRA_List!$M:$N,2,FALSE),"") -> 
W84: 自己発熱性化学品 | AB84: =$Z$71 -> 1 | AD84: =SUMIFS(PhysRA_List!$K:$K,PhysRA_List!$B:$B,$W84,PhysRA_List!$C:$C,$X84,PhysRA_List!$D:$D,$Z$39,PhysRA_List!$I:$I,$AB84) -> 0 | AF84: =IFERROR(VLOOKUP(AE84,PhysRA_List!$M:$N,2,FALSE),"") -> 
W85: 水反応可燃性化学品 | Y85: =$Z$69 -> 1 | AB85: =$Z$71 -> 1 | AD85: =IF($X85="区分1","",SUMIFS(PhysRA_List!$K:$K,PhysRA_List!$B:$B,$W85,PhysRA_List!$C:$C,$X85,PhysRA_List!$D:$D,$Z$39,PhysRA_List!$F:$F,$Y85,PhysRA_List!$I:$I,$AB85)) -> 0 | AE85: =W85&X85&$Z$39&Y85&Z85&AA85&AB85 ->  | AF85: =IFERROR(VLOOKUP(AE85,PhysRA_List!$M:$N,2,FALSE),"") -> 
W86: 酸化性液体 | AA86: =$Z$70 -> 1 | AD86: =SUMIFS(PhysRA_List!$K:$K,PhysRA_List!$B:$B,$W86,PhysRA_List!$C:$C,$X86,PhysRA_List!$D:$D,$Z$39,PhysRA_List!$H:$H,$AA86) -> 0 | AE86: =W86&X86&$Z$39&Y86&Z86&AA86&AB86 ->  | AF86: =IFERROR(VLOOKUP(AE86,PhysRA_List!$M:$N,2,FALSE),"") -> 
W87: 酸化性固体 | AA87: =$Z$70 -> 1 | AD87: =SUMIFS(PhysRA_List!$K:$K,PhysRA_List!$B:$B,$W87,PhysRA_List!$C:$C,$X87,PhysRA_List!$D:$D,$Z$39,PhysRA_List!$H:$H,$AA87) -> 0 | AF87: =IFERROR(VLOOKUP(AE87,PhysRA_List!$M:$N,2,FALSE),"") -> 
W88: 有機過酸化物 | AD88: =IF($X88="タイプG",SUMIFS(PhysRA_List!$K:$K,PhysRA_List!$B:$B,$W88,PhysRA_List!$C:$C,$X88,PhysRA_List!$D:$D,$Z$39),SUMIFS(PhysRA_List!$K:$K,PhysRA_List!$B:$B,リスクアセスメントシート!$W88,PhysRA_List!$C:$C,$X88)) -> 0 | AE88: =W88&X88&IF(X88=Select_List!$C$38,$Z$39,"") -> 有機過酸化物 | AF88: =IFERROR(VLOOKUP(AE88,PhysRA_List!$M:$N,2,FALSE),"") ->  | AG88: タイプGのみ量を考慮
W89: 金属腐食性物質 | Y89: =$Z$69 -> 1 | AA89: =$Z$70 -> 1 | AD89: =SUMIFS(PhysRA_List!$K:$K,PhysRA_List!$B:$B,リスクアセスメントシート!$W89,PhysRA_List!$C:$C,$X89) -> 0 | AE89: =W89&X89 -> 金属腐食性物質 | AF89: =IFERROR(VLOOKUP(AE89,PhysRA_List!$M:$N,2,FALSE),"") -> 
AB90: Risk level max | AD90: =MAX(AD74:AD89) -> 0 | AF90: =IF(AD90=0,Select_List!C182,"") -> 良好です。
AB91: RL | AD91: =IF(AD90>=4,"Ⅳ",IF(AD90=3,"Ⅲ",IF(AD90=2,"Ⅱ","Ⅰ"))) -> Ⅰ | AF91: =SUBSTITUTE(TRIM(CONCATENATE(AF74," ",AF75," ",AF76," ",AF77," ",AF78," ",AF79," ",AF80," ",AF81," ",AF82," ",AF83," ",AF84," ",AF85," ",AF86," ",AF87," ",AF88," ",AF89," ",AF90))," ",CHAR(10)) -> 良好です。

Sheet 結果一覧
A1: 1 | B1: 2 | C1: 3 | D1: 4 | E1: 5 | F1: 6 | G1: 7 | H1: 8 | I1: 9 | J1: 10 | K1: 11 | L1: 12 | M1: 13 | N1: 14 | O1: 15 | P1: 16 | Q1: 17 | R1: 18 | S1: 19 | T1: 20 | U1: 21 | V1: 22 | W1: 23 | X1: 24 | Y1: 25 | Z1: 26 | AA1: 27 | AB1: 28 | AC1: 29 | AD1: 30 | AE1: 31 | AF1: 32 | AG1: 33 | AH1: 34 | AI1: 35 | AJ1: 36 | AK1: 37 | AL1: 38 | AM1: 39 | AN1: 40 | AO1: 41 | AP1: 42 | AQ1: 43 | AR1: 44 | AS1: 45 | AT1: 46 | AU1: 47 | AV1: 48 | AW1: 49 | AX1: 50 | AY1: 51 | AZ1: 52 | BA1: 53 | BB1: 54 | BC1: 55 | BD1: 56 | BE1: 57 | BF1: 58 | BG1: 59 | BH1: 60 | BI1: 61 | BJ1: 62 | BK1: 63 | BL1: 64 | BM1: 65 | BN1: 66 | BO1: 67 | BP1: 68 | BQ1: 69 | BR1: 70 | BS1: 71 | BT1: 72 | BU1: 73 | BV1: 74 | BW1: 75 | BX1: 76 | BY1: 77 | BZ1: 78 | CA1: 79 | CB1: 80 | CC1: 81 | CD1: 82 | CE1: 83 | CF1: 84 | CG1: 85 | CH1: 86 | CI1: 87 | CJ1: 88 | CK1: 89 | CL1: 90 | CM1: 91 | CN1: 92 | CO1: 93 | CP1: 94 | CQ1: 95 | CR1: 96 | CS1: 97 | CT1: 98 | CU1: 99 | CV1: 100 | CW1: 101 | CX1: 102 | CY1: 103 | CZ1: 104 | DA1: 105 | DB1: 106 | DC1: 107 | DD1: 108 | DE1: 109 | DF1: 110 | DG1: 111 | DH1: 112 | DI1: 113 | DJ1: 114 | DK1: 115 | DL1: 116 | DM1: 117 | DN1: 118 | DO1: 119 | DP1: 120 | DQ1: 121 | DR1: 122 | DS1: 123 | DT1: 124 | DU1: 125 | DV1: 126 | DW1: 127 | DX1: 128 | DY1: 129 | DZ1: 130 | EA1: 131 | EB1: 132 | EC1: 133 | ED1: 134 | EE1: 135 | EF1: 136 | EG1: 137 | EH1: 138 | EI1: 139 | EJ1: 140
B2: 出力する結果をリストから出力後「リスクアセスメントシートに出力」または「実施レポートに出力」のボタンを押してください。
J6: リスクアセスメント結果 | R6: 物化性状 | AA6: ばく露限界値 | AL6: GHS分類情報（物理化学的危険性） | BB6: GHS分類情報（人健康有害性） | BQ6: 有害性の程度の判定結果（対策前） | BW6: 対策前 | DA6: 有害性の程度の判定結果（対策後） | DG6: 対策後
A7: 基本情報 | J7: リスクレベル（対策前） | M7: リスクレベル（対策後） | R7: 性状 1：液体 2：固体 3：気体 | S7: 沸点 | T7: 分子量 | U7: 水／オクタノール分配係数（log Kow） | V7: 引火点 | W7: 水溶解度 | Y7: 蒸気圧 | AA7: 日本産業衛生学会 許容濃度 | AC7: 日本産業衛生学会 最大許容濃度 | AE7: ACGIH TLV TWA | AG7: ACGIH TLV STEL | AI7: ACGIH TLV C | AK7: 「皮」または「Skin」の表示 | AL7: 爆発物 | AM7: 可燃性／引火性ガス（化学的に不安定なガスを含む） | AN7: エアゾール | AO7: 支燃性／酸化性ガス | AP7: 高圧ガス | AQ7: 引火性液体 | AR7: 可燃性固体 | AS7: 自己反応性化学品 | AT7: 自然発火性液体 | AU7: 自然発火性固体 | AV7: 自己発熱性化学品 | AW7: 水反応可燃性化学品 | AX7: 酸化性液体 | AY7: 酸化性固体 | AZ7: 有機過酸化物 | BA7: 金属腐食性物質 | BB7: 急性毒性（経口） | BC7: 急性毒性（経皮） | BD7: 急性毒性（吸入：ガス） | BE7: 急性毒性（吸入：蒸気） | BF7: 急性毒性（吸入：粉塵、ミスト） | BG7: 皮膚腐食性／刺激性 | BH7: 眼に対する重篤な損傷性／眼刺激性 | BI7: 呼吸器感作性 | BJ7: 皮膚感作性 | BK7: 生殖細胞変異原性 | BL7: 発がん性 | BM7: 生殖毒性 | BN7: 特定標的臓器毒性（単回暴露） 標的臓器に皮膚が含まれる場合には（皮膚）と表示 | BO7: 特定標的臓器毒性（反復暴露） 標的臓器に皮膚が含まれる場合には（皮膚）と表示 | BP7: 吸引性呼吸器有害性 | BQ7: 管理目標濃度 | BT7: ばく露限界値 | BV7: 目や皮膚に有害な影響 | BW7: Q1 | BX7: Q2 | BY7: Q3 | BZ7: Q4 | CA7: Q5 | CB7: Q6 | CC7: Q7 | CD7: Q8 | CF7: Q9 | CH7: Q10 | CI7: Q11 | CJ7: Q12 | CK7: Q13 | CM7: Q14 | CN7: Q15 | CO7: Q16 | CP7: 推定ばく露濃度 | CS7: 推定経皮吸収量 | CT7: リスクレベル（人健康） | CY7: リスク（爆発・火災） | DA7: 管理目標濃度 | DD7: ばく露限界値 | DF7: 目や皮膚に有害な影響 | DG7: Q1 | DH7: Q2 | DI7: Q3 | DJ7: Q4 | DK7: Q5 | DL7: Q6 | DM7: Q7 | DN7: Q8 | DP7: Q9 | DR7: Q10 | DS7: Q11 | DT7: Q12 | DU7: Q13 | DW7: Q14 | DX7: Q15 | DY7: Q16 | DZ7: 推定ばく露濃度 | EC7: 推定経皮吸収量 | ED7: リスクレベル（人健康） | EI7: リスク（爆発・火災）
A8: No | B8: 実施日 | C8: 実施者名 | D8: タイトル | E8: 実施場所 | F8: 商品名等 | G8: 作業内容等 | H8: ＣＡＳ | I8: 物質名 | J8: リスクレベル （吸入+経皮） | K8: 眼や皮膚 | L8: 爆発・火災 | M8: リスクレベル （吸入+経皮） | N8: 眼や皮膚 | O8: 爆発・火災 | P8: 検討したリスク低減措置内容等 | Q8: 備考 | W8: 値 | X8: 単位 | Y8: 値 | Z8: 単位 | AA8: 値 | AB8: 単位 | AC8: 値 | AD8: 単位 | AE8: 値 | AF8: 単位 | AG8: 値 | AH8: 単位 | AI8: 値 | AJ8: 単位 | BT8: 吸入 | BU8: 経皮 | CD8: 週or月 | CE8: 単位 | CF8: 種類 | CG8: フィットテストの有無 | CK8: 取扱温度 | CL8: 値 | CS8: mg | CT8: リスクレベル | CU8: 吸入 | CV8: 経皮 | CW8: 眼や皮膚への影響 | CX8: 判定 | CY8: リスクレベル | CZ8: 判定 | DD8: 吸入 | DE8: 経皮 | DN8: 週or月 | DO8: 単位 | DP8: 種類 | DQ8: フィットテストの有無 | DU8: 取扱温度 | DV8: 値 | EC8: mg | ED8: リスクレベル | EE8: 吸入 | EF8: 経皮 | EG8: 眼や皮膚への影響 | EH8: 判定 | EI8: リスクレベル | EJ8: 判定
A9: 1 | B9: 2019-03-15 | C9: ○○ | D9: 例）フルフラールを用いた○○作業 | E9: 部屋○○ | F9: 溶剤○○ | G9: フルフラールを用いた○○作業 | H9: 98-01-1 | I9: フルフラール | J9: Ⅲ | K9: S | L9: Ⅰ | R9: 1 | T9: 96.09 | U9: 0.41 | V9: 60 | W9: 83 | X9: g/L | Y9: 294 | Z9: Pa | AA9: 2.5 | AB9: ppm | AD9: ppm | AE9: 0.2 | AF9: ppm | AH9: ppm | AJ9: ppm | AK9: あり | AQ9: 区分3 | BB9: 区分3 | BC9: 区分3 | BE9: 区分2 | BG9: 区分2 | BH9: 区分2 | BL9: 区分2 | BN9: 区分1 | BO9: 区分1 | BQ9: 0.05 | BR9: ～ | BS9: 0.5 | BT9: 0.2 | BU9: 5.892 | BV9: S | BW9: 中揮発性（沸点：50℃以上～150℃未満） | BX9: 微量 （10mL以上～100mL未満） | BY9: 5%以上～25%未満 | BZ9: いいえ | CA9: いいえ | CB9: 換気レベルD（外付け式局所排気装置） | CC9: 30分以下 | CD9: 5 | CE9: 日／週 | CH9: 片手の手のひら付着 | CI9: 取扱物質に関する情報のない手袋を使用している | CJ9: 教育や訓練を行っていない | CK9: 室温以下 | CM9: いいえ | CN9: いいえ | CO9: いいえ | CP9: 0.003 | CQ9: ～ | CR9: 0.03 | CS9: 29.5 | CT9: Ⅲ | CU9: Ⅱ | CV9: Ⅲ | CW9: S | CX9: リスクを下げる対策を実施しましょう｡ 耐透過性・耐浸透性の手袋を着用しましょう。 目や皮膚に有害な影響があります。適切な労働衛生保護具を着用しましょう。 | CY9: Ⅰ | CZ9: 引火するおそれがあるため、着火源の除去、換気には注意しましょう | DA9: 0.05 | DB9: ～ | DC9: 0.5 | DD9: 0.2 | DE9: 5.892 | DF9: S | DG9: 中揮発性（沸点：50℃以上～150℃未満） | DH9: 微量 （10mL以上～100mL未満） | DI9: 5%以上～25%未満 | DJ9: いいえ | DK9: いいえ | DL9: 換気レベルD（外付け式局所排気装置） | DM9: 30分以下 | DN9: 5 | DO9: 日／週 | DR9: 片手の手のひら付着 | DS9: 取扱物質に関する情報のない手袋を使用している | DT9: 教育や訓練を行っていない | DU9: 室温以下 | DW9: いいえ | DX9: いいえ | DY9: いいえ | DZ9: 0.003 | EA9: ～ | EB9: 0.03 | EC9: 29.5 | ED9: Ⅲ | EE9: Ⅱ | EF9: Ⅲ | EG9: S | EH9: リスクを下げる対策を実施しましょう｡ 耐透過性・耐浸透性の手袋を着用しましょう。 目や皮膚に有害な影響があります。適切な労働衛生保護具を着用しましょう。 | EI9: Ⅰ | EJ9: 引火するおそれがあるため、着火源の除去、換気には注意しましょう

Sheet マニュアル
A1: よくある質問
A2: 【STEP 1】 対象物質の基本情報を入力しましょう。
A3: CAS番号 | B3: CAS（キャス）番号とは、世界的に利用されている個々の化学物質を特定するための番号のことです。SDSの「3. 組成および成分情報」を確認してください。CAS番号を入力し、「CASで検索」をクリックしてください。
A4: 性状 | B4: 主に取り扱う化学物質の状態（液体・粉体・気体）を選択してください。 液体・粉体・液体を同時に評価することはできません。例えば、混練などの場合は、液体・粉体それぞれ別個に評価をしてください。
A6: 【STEP 2】 ばく露限界値及びGHS分類情報を入力してください。
A7: 物理化学的性状 | B7: SDSに物理化学的性状が複数記載されている、又は値が範囲で示されている場合には、安全側に評価するために以下に従って入力してください。 ・水／オクタノール分配係数（log Kow）：大きい値 ・引火点：小さい値 ・水溶解度：大きい値 ・蒸気圧：小さい値 【注意事項】 経皮吸収によるリスクを見積もる場合、水／オクタノール分配係数、水溶解度、蒸気圧の情報は必須です。
A9: 【STEP 3】 以下の質問に答えましょう。
A10: Q1 | B10: SDSの「9. 物理的および化学的性」を確認し、沸点の範囲を選択してください。 データが入手できない場合には、「わからない」を選択すると、中揮発性（沸点：50℃以上150℃未満）として計算が行われます。 【取扱温度が室温ではない場合】 取扱温度が室温（20℃程度）と異なる場合には、揮発性レベルの補正が必要となります。以下に化学物質の沸点と作業場の温度（取扱温度）を入力することで、揮発性レベルが判定できるため、判定結果を適宜選択してください。なお、化学物質の温度が、作業場の温度より高い場合は、化学物質の温度を入力してください。
B11: 沸点（℃） | E11: 取扱温度（℃） | H11: 揮発性レベル | J11: =IF(AND(D11<>"",G11<>""),IF(D11>=K11,"低揮発性",IF(D11>=L11,"中揮発性","高揮発性")),"") ->  | K11: =5*G11+50 -> 50 | L11: =2*G11+10 -> 10
A12: Q2 | B12: 1回あたりの取扱量（連続作業では1日の取扱量）を入力してください。 選択を迷う場合は、より量の多い方を選ぶと、安全側に評価できます。
A13: Q3 | B13: SDSの「3. 組成および成分情報」を確認して、対象物質の含有率（％）を確認してください。希釈をした場合には、希釈後の含有率を入力してください。
A14: Q4 | B14: 液体であれば、スプレー作業やミストが発生する作業、粉体であれば粉体塗装や研磨のグラインダー作業などが該当します。
A15: Q5 | B15: 塗装作業や接着作業など、化学物質を塗布（塗り伸ばす）面積が1m2以上の場合に該当します。
A16: Q6 | B16: 【換気レベルA】 特に換気がない部屋 | D16: ・換気のない密閉された部屋でも、通常人がいる環境であれば最低限の自然換気はあると考えられる。 下記のB~Fに該当しない場合に選択。
B17: 【換気レベルB】 全体換気 | D17: ・窓やドアが開いている部屋 ・一般的な換気扇のある部屋（例：台所用小型換気扇） ・ビルの全体空調がある場合（例：中央管理区分式の空調）※一般に一定程度の外気取入れがある。 ・大空間の屋内の一部（例：ショッピングセンターや大きな作業場の一隅など）
B18: 【換気レベルC】 工業的な全体換気 | D18: ・工業的な全体換気装置のある部屋（大型換気扇や排風機） ・屋外作業
B19: 【換気レベルD】 局所排気装置（外付け式） | D19: ・化学物質の発散源近くで上方向や横方向から吸引する場合（例：調理場の上部吸引フード） ・プッシュプル型換気装置
B20: 【換気レベルE】 局所排気装置（囲い式） | D20: ・実験室のドラフトチャンバーの中に化学物質を置いて作業する場合など
B21: 【換気レベルF】 密閉容器内での取扱い | D21: ・密閉設備（漏れがないこと） ・グローブボックス（密閉型作業箱）の中に化学物質を置いて作業する場合など
A22: Q7 | B22: 作業時間とは、作業時間は作業そのものの時間でなく、化学物質を取扱う時間の全体のことをいいます。準備や後片づけもばく露の可能性があるため「作業」に含めてください。
A23: Q8 | B23: 化学物質を取り扱う作業を行う頻度。 週1回以上の場合は、1週間に取り扱う回数を入力。週1回未満の場合は、1カ月に取り扱う回数を入力。
A24: Q9 | B24: ◆フィットテスト ・定量的な方法として、粉じん計を用い呼吸用保護具の中と外の粉じん量を測定する方法があります｡ ・定性的な方法として、呼吸用保護具をつけた被験者の周囲に甘味料等をスプレーし味覚を感じるかをテストする方法等があります｡ ◆簡易法（フィットチェック） ・呼吸用保護具のフィルターの表面を手でおおってゆっくり息を吸い込み、マスクが顔に向かって引き込まれるかをテストする方法（陰圧法） ・呼吸用保護具を手で顔面に押し付けながら、フィルターの表面や排気口を手でおおって息を吐き、息がマスクと顔のすき間から漏れないかをテストする方法（陽圧法）があります。
A25: Q10 | B25: 化学物質が接触すると考えられる皮膚の面積。手袋をしていないと仮定して選択してください。
A26: Q11 | B26: 手袋の着用状況を選択してください。 ・通常、素手で作業する場合は「手袋を着用していない」を選択してください。 ・取扱物質の特性を踏まえ、透過性や耐久性を考慮した手袋を着用している場合は、「耐透過性・耐浸透性の手袋の着用している。」を選択してください。 ・上記以外（手袋は着用しているが、取扱物質の特性などを考慮していない場合や不明な場合など）は、「取扱物質に関する情報のない手袋を使用している」を選択してください。
A27: Q12 | B27: 手袋の使用方法についての教育状況を選択してください。 ・使用方法について教育を行っていない（教育を受けていない）場合は、「教育や訓練を行っていない」を選択してください。 ・保護具着用管理責任者により、使用方法だけではなく、化学物質の特性等を踏まえた手袋の選択方法や保管・廃棄方法などまで踏み込んだ教育を繰り返し行っている場合は、「十分な教育や訓練を行っている」を選択してください。 ・上記以外、手袋の一般的な使用方法のみ教育を行っている場合、「基本的な教育や訓練を行っている」を選択してください。
A28: Q14 | B28: 下記の対策が十分講じられている場合、「はい」を選択してください。 ・静電気対策（詳細は「静電気安全指針」などを参照） -化学物質の配管内などでの流速（移送速度）は大きくし過ぎていない -化学物質が流動・移動（混合や混練を含む）する箇所はアースをとっている -帯電防止の衣服・靴などを着用している -作業場の湿度は低くし過ぎていない（30%以下は危険、50%以上が望ましい） ・近傍に裸火や高温部は存在しない ・金属同士の接触など火花が生じるおそれのある作業は行っていない ・取扱う化学物質に摩擦や強い衝撃を与えるおそれはない ・床の伝導性は確保している（塩ビのシート、ゴムタイヤなどの上で作業は行っていない、など）
A29: Q15 | B29: 酸化性物質を取り扱っている場合、近傍で有機化合物や金属を取り扱っていると、その有機化合物や金属の燃焼を引き起こすおそれや、燃焼そのものが助長されるおそれなどがあります。
A30: Q16 | B30: 自己発熱性物質や水反応可燃性化学品（禁水性物質）の場合、空気や水（空気に含まれる水分）と反応し、発火や引火性ガスの発生などを引き起こすおそれがあります。
A32: 【STEP 4】 リスクを判定しましょう。
A33: 有害性リスク | B33: ばく露限界値 （吸入） | D33: ばく露限界値は、専門家の会議で定めた値であり、1日8時間、週5日間（合計週40時間）、労働現場で労働者がばく露された（吸入した）としても、空気中濃度がこの数値以下であれば、ほとんどすべての労働者に健康上の悪影響がみられないと判断される濃度のこと。 推定ばく露濃度がばく露限界値（または管理目標濃度）以下となるように対策を検討しましょう。
B34: ばく露限界値 （経皮） | D34: ばく露限界値と等しい気中濃度下で、1日（8時間）作業した場合に体内に取り込まれる化学物質の量。 【トルエンの場合】 ばく露限界値が20ppmであることから、1日（8時間）作業した場合、下記のように計算される。 20ppm×92g/mol÷24.45L/mol=75.3mg/m3 75.3mg/m3×0.75（肺内保持係数）×呼吸量（10m3と仮定）=564mg つまり、1日あたりの経皮吸収量が564mg以下であれば経皮吸収による有害性リスクは許容できる。
B35: 管理目標濃度 | D35: GHS分類情報から設定したリスクのために用いる目標濃度のこと（詳細は、「設計基準」参照）。
B36: 推定ばく露濃度 | D36: 労働者がばく露する気中濃度の推定値。 推定ばく露濃度がばく露限界値（または管理目標濃度）以下となるように対策を検討しましょう。
B37: 推定経皮吸収量 | D37: 労働者が経皮からばく露する化学物質の推定量。 推定経皮吸収量がばく露限界値（経皮）以下となるように対策を検討しましょう。
B38: リスクレベル（合計） | D38: 吸入及び経皮吸収による有害性リスクをトータルで見積もったリスクレベル。Ⅰ（リスクが小さい）～Ⅳ（リスクが大きい）の４段階。 吸入によるばく露比（ばく露限界値÷推定ばく露濃度）と経皮吸収によるばく露比（経皮ばく露限界値÷推定経皮吸収量）を合算して算出（詳細は、「設計基準」参照）。
A39: 危険性リスク | B39: 化学物質が潜在的に保有している危険性と使用状況を踏まえた、化学物質そのもののリスクレベル。 プロセスでの使用を想定している場合などは、別途「安衛研 リスクアセスメント等実施支援ツール」などを使用すること。

Sheet Select_List (hidden)
A2: 性状 | C2: 液体
A3: 性状 | C3: 粉体
A4: 性状 | C4: 気体
A5: 「皮」または「Skin」の表示 | C5: あり
A6: 「皮」または「Skin」の表示 | C6: －
A7: 単位 | C7: ppm
A8: 単位 | C8: mg/cm3
A9: GHS分類 | B9: 爆発物 | C9: 不安定爆発物
A10: GHS分類 | B10: 爆発物 | C10: 等級1.1
A11: GHS分類 | B11: 爆発物 | C11: 等級1.2
A12: GHS分類 | B12: 爆発物 | C12: 等級1.3
A13: GHS分類 | B13: 爆発物 | C13: 等級1.4
A14: GHS分類 | B14: 爆発物 | C14: 等級1.5
A15: GHS分類 | B15: 爆発物 | C15: 等級1.6
A16: GHS分類 | B16: 可燃性・引火性ガス | C16: 区分1
A17: GHS分類 | B17: 可燃性・引火性ガス | C17: 区分2
A18: GHS分類 | B18: エアゾール | C18: 区分1
A19: GHS分類 | B19: エアゾール | C19: 区分2
A20: GHS分類 | B20: エアゾール | C20: 区分3
A21: GHS分類 | B21: 支燃性・酸化性ガス | C21: 区分1
A22: GHS分類 | B22: 高圧ガス | C22: 圧縮ガス
A23: GHS分類 | B23: 高圧ガス | C23: 液化ガス
A24: GHS分類 | B24: 高圧ガス | C24: 深冷液化ガス
A25: GHS分類 | B25: 高圧ガス | C25: 溶解ガス
A26: GHS分類 | B26: 引火性液体 | C26: 区分1
A27: GHS分類 | B27: 引火性液体 | C27: 区分2
A28: GHS分類 | B28: 引火性液体 | C28: 区分3
A29: GHS分類 | B29: 引火性液体 | C29: 区分4
A30: GHS分類 | B30: 可燃性固体 | C30: 区分1
A31: GHS分類 | B31: 可燃性固体 | C31: 区分2
A32: GHS分類 | B32: 自己反応性化学品 | C32: タイプA
A33: GHS分類 | B33: 自己反応性化学品 | C33: タイプB
A34: GHS分類 | B34: 自己反応性化学品 | C34: タイプC
A35: GHS分類 | B35: 自己反応性化学品 | C35: タイプD
A36: GHS分類 | B36: 自己反応性化学品 | C36: タイプE
A37: GHS分類 | B37: 自己反応性化学品 | C37: タイプF
A38: GHS分類 | B38: 自己反応性化学品 | C38: タイプG
A39: GHS分類 | B39: 自然発火性液体 | C39: 区分1
A40: GHS分類 | B40: 自然発火性固体 | C40: 区分1
A41: GHS分類 | B41: 自己発熱性化学品 | C41: 区分1
A42: GHS分類 | B42: 自己発熱性化学品 | C42: 区分2
A43: GHS分類 | B43: 水反応可燃性化学品 | C43: 区分1
A44: GHS分類 | B44: 水反応可燃性化学品 | C44: 区分2
A45: GHS分類 | B45: 水反応可燃性化学品 | C45: 区分3
A46: GHS分類 | B46: 酸化性液体 | C46: 区分1
A47: GHS分類 | B47: 酸化性液体 | C47: 区分2
A48: GHS分類 | B48: 酸化性液体 | C48: 区分3
A49: GHS分類 | B49: 酸化性固体 | C49: 区分1
A50: GHS分類 | B50: 酸化性固体 | C50: 区分2
A51: GHS分類 | B51: 酸化性固体 | C51: 区分3
A52: GHS分類 | B52: 有機過酸化物 | C52: タイプA
A53: GHS分類 | B53: 有機過酸化物 | C53: タイプB
A54: GHS分類 | B54: 有機過酸化物 | C54: タイプC
A55: GHS分類 | B55: 有機過酸化物 | C55: タイプD
A56: GHS分類 | B56: 有機過酸化物 | C56: タイプE
A57: GHS分類 | B57: 有機過酸化物 | C57: タイプF
A58: GHS分類 | B58: 有機過酸化物 | C58: タイプG
A59: GHS分類 | B59: 金属腐食性物質 | C59: 区分1
A60: GHS分類 | B60: 急性毒性 | C60: 区分1
A61: GHS分類 | B61: 急性毒性 | C61: 区分2
A62: GHS分類 | B62: 急性毒性 | C62: 区分3
A63: GHS分類 | B63: 急性毒性 | C63: 区分4
A64: GHS分類 | B64: 皮膚腐食性・刺激性 | C64: 区分1
A65: GHS分類 | B65: 皮膚腐食性・刺激性 | C65: 区分2
A66: GHS分類 | B66: 眼に対する重篤な損傷・眼刺激性 | C66: 区分1
A67: GHS分類 | B67: 眼に対する重篤な損傷・眼刺激性 | C67: 区分2
A68: GHS分類 | B68: 呼吸器感作性 | C68: 区分1
A69: GHS分類 | B69: 皮膚感作性 | C69: 区分1
A70: GHS分類 | B70: 生殖細胞変異原性 | C70: 区分1
A71: GHS分類 | B71: 生殖細胞変異原性 | C71: 区分2
A72: GHS分類 | B72: 発がん性 | C72: 区分1
A73: GHS分類 | B73: 発がん性 | C73: 区分2
A74: GHS分類 | B74: 生殖毒性 | C74: 区分1
A75: GHS分類 | B75: 生殖毒性 | C75: 区分2
A76: GHS分類 | B76: 特定標的臓器・全身毒性（単回ばく露） | C76: 区分1
A77: GHS分類 | B77: 特定標的臓器・全身毒性（単回ばく露） | C77: 区分2
A78: GHS分類 | B78: 特定標的臓器・全身毒性（単回ばく露） | C78: 区分3
A79: GHS分類 | B79: 特定標的臓器・全身毒性（反復ばく露） | C79: 区分1
A80: GHS分類 | B80: 特定標的臓器・全身毒性（反復ばく露） | C80: 区分2
A81: GHS分類 | B81: 吸引性呼吸器有害性 | C81: 区分1
A82: Vapor_Pressure_unit | C82: 単位選択
A83: Vapor_Pressure_unit | C83: Pa | D83: 1 | E83: Pa
A84: Vapor_Pressure_unit | C84: kPa | D84: 1000 | E84: Pa
A85: Vapor_Pressure_unit | C85: hPa | D85: 100 | E85: Pa
A86: Vapor_Pressure_unit | C86: mmHg | D86: 133.3 | E86: Pa
A87: Vapor_Pressure_unit | C87: Torr | D87: 133.3 | E87: Pa
A88: Vapor_Sw_unit | C88: 単位選択
A89: Vapor_Sw_unit | C89: mg/L | D89: 0.001 | E89: mg/cm3
A90: Vapor_Sw_unit | C90: g/100mL | D90: 10 | E90: mg/cm3
A91: Vapor_Sw_unit | C91: g/L | D91: 1 | E91: mg/cm3
A92: Vapor_Sw_unit | C92: mg/cm3 | D92: 1 | E92: mg/cm3
A93: Q1_Liquid | B93: 液体 | C93: 高揮発性（沸点：50℃未満） | D93: 1
A94: Q1_Liquid | B94: 液体 | C94: 中揮発性（沸点：50℃以上～150℃未満） | D94: 2
A95: Q1_Liquid | B95: 液体 | C95: 低揮発性（沸点：150℃以上） | D95: 3
A96: Q1_Liquid | B96: 液体 | C96: わからない | D96: 2
A97: Q1_Solid | B97: 粉体 | C97: 高飛散性（微細な軽い粉体） | D97: 1
A98: Q1_Solid | B98: 粉体 | C98: 中飛散性（結晶状・顆粒状） | D98: 2
A99: Q1_Solid | B99: 粉体 | C99: 低飛散性（壊れないペレット） | D99: 3
A100: Q2_Liquid | C100: 大量 （1kL以上） | D100: 1
A101: Q2_Liquid | C101: 中量 （1L以上～1000L未満） | D101: 2
A102: Q2_Liquid | C102: 少量 （100mL以上～1000mL未満） | D102: 3
A103: Q2_Liquid | C103: 微量 （10mL以上～100mL未満） | D103: 4
A104: Q2_Liquid | C104: 極微量（10mL未満） | D104: 5
A105: Q2_Solid | C105: 大量 （1ｔ以上） | D105: 1
A106: Q2_Solid | C106: 中量 （1kg以上～1000kg未満） | D106: 2
A107: Q2_Solid | C107: 少量 （100g以上～1000g未満） | D107: 3
A108: Q2_Solid | C108: 微量 （10g以上～100g未満） | D108: 4
A109: Q2_Solid | C109: 極微量（10g未満） | D109: 5
A110: Q2_Gas | C110: 大量 （1ｔ以上） | D110: 1
A111: Q2_Gas | C111: 中量 （1kg以上～1000kg未満） | D111: 2
A112: Q2_Gas | C112: 少量 （100g以上～1000g未満） | D112: 3
A113: Q2_Gas | C113: 微量 （10g以上～100g未満） | D113: 4
A114: Q2_Gas | C114: 極微量（10g未満） | D114: 5
A115: Q3_Concentration | C115: 25%以上 | D115: 1
A116: Q3_Concentration | C116: 5%以上～25%未満 | D116: 0.6
A117: Q3_Concentration | C117: 1%以上～5%未満 | D117: 0.2
A118: Q3_Concentration | C118: 1%未満 | D118: 0.1
A119: Q4_Spray | C119: はい | D119: 10
A120: Q4_Spray | C120: いいえ | D120: 1
A121: Q5_Workingarea | C121: はい | D121: 10
A122: Q5_Workingarea | C122: いいえ | D122: 1
A123: Q6_Ventilation | C123: 換気レベルA（特に換気のない部屋） | D123: 4
A124: Q6_Ventilation | C124: 換気レベルB（全体換気） | D124: 3
A125: Q6_Ventilation | C125: 換気レベルC（工業的な全体換気） | D125: 1
A126: Q6_Ventilation | C126: 換気レベルD（外付け式局所排気装置） | D126: 0.1
A127: Q6_Ventilation | C127: 換気レベルE（囲い式局所排気装置） | D127: 0.01
A128: Q6_Ventilation | C128: 換気レベルF（密閉容器内での取扱い） | D128: 0.001
A129: Q7_Time | C129: 8時間超 | D129: 10
A130: Q7_Time | C130: 7時間超～8時間以下 | D130: 8
A131: Q7_Time | C131: 6時間超～7時間以下 | D131: 7
A132: Q7_Time | C132: 5時間超～6時間以下 | D132: 6
A133: Q7_Time | C133: 4時間超～5時間以下 | D133: 5
A134: Q7_Time | C134: 3時間超～4時間以下 | D134: 4
A135: Q7_Time | C135: 2時間超～3時間以下 | D135: 3
A136: Q7_Time | C136: 1時間超～2時間以下 | D136: 2
A137: Q7_Time | C137: 30分超～1時間以下 | D137: 1
A138: Q7_Time | C138: 30分以下 | D138: 0.5
A139: Q8_Frequency | C139: 週1回以上
A140: Q8_Frequency | C140: 週1回未満
A141: Q9_RPE_Liquid | B141: 液体 | C141: 防毒マスク（半面型） | D141: 0.1
A142: Q9_RPE_Liquid | B142: 液体 | C142: 防毒マスク（全面型） | D142: 0.02
A143: Q9_RPE_Solid | B143: 粉体 | C143: 防じんマスク（使い捨て式） | D143: 0.1
A144: Q9_RPE_Solid | B144: 粉体 | C144: 防じんマスク（半面型） | D144: 0.1
A145: Q9_RPE_Solid | B145: 粉体 | C145: 防じんマスク（全面型） | D145: 0.02
A146: Q9_RPE_Solid | B146: 粉体 | C146: 電動ファン付き呼吸用保護具 | D146: 0.01
A147: Q9_Fitting | B147: フィットテストの有無 | C147: なし | D147: 2
A148: Q9_Fitting | B148: フィットテストの有無 | C148: 簡易法（フィットチェック） | D148: 1.5
A149: Q9_Fitting | B149: フィットテストの有無 | C149: フィットテスト | D149: 1
A150: Q10_Exposure_area | B150: 接触面積 | C150: 大きなコインのサイズ、小さな飛沫 | D150: 10
A151: Q10_Exposure_area | B151: 接触面積 | C151: 片手の手のひら付着 | D151: 240
A152: Q10_Exposure_area | B152: 接触面積 | C152: 両手の手のひらに付着 | D152: 480
A153: Q10_Exposure_area | B153: 接触面積 | C153: 両手全体に付着 | D153: 960
A154: Q10_Exposure_area | B154: 接触面積 | C154: 両手及び手首 | D154: 1500
A155: Q10_Exposure_area | B155: 接触面積 | C155: 両手の肘から下全体 | D155: 1980
A156: Q11_Glove | B156: 化学防護手袋 | C156: 手袋を着用していない | D156: 1
A157: Q11_Glove | B157: 化学防護手袋 | C157: 取扱物質に関する情報のない手袋を着用している | D157: 1
A158: Q11_Glove | B158: 化学防護手袋 | C158: 耐透過性・耐浸透性の手袋の着用している。 | D158: 0.2
A159: Q12_Glove_edu | B159: 教育状況 | C159: 教育や訓練を行っていない | D159: 1
A160: Q12_Glove_edu | B160: 教育状況 | C160: 基本的な教育や訓練を行っている | D160: 0.5
A161: Q12_Glove_edu | B161: 教育状況 | C161: 十分な教育や訓練を行っている | D161: 0.25
A162: Q13_process_temperature | B162: 取扱温度 | C162: 室温以下 | D162: 20
A163: Q13_process_temperature | B163: 取扱温度 | C163: 室温以上 | D163: =リスクアセスメントシート!F68 -> 0
A164: Q14_ignition_source | B164: 着火源 | C164: はい | D164: YES
A165: Q14_ignition_source | B165: 着火源 | C165: いいえ | D165: NO
A166: Q15_organic_matter | B166: 有機物や金属 | C166: はい | D166: NO
A167: Q15_organic_matter | B167: 有機物や金属 | C167: いいえ | D167: YES
A168: Q16_air_water | B168: 空気又は水 | C168: はい | D168: NO
A169: Q16_air_water | B169: 空気又は水 | C169: いいえ | D169: YES
A170: RL toal | B170: 4 | C170: 至急リスクを下げる対策を実施しましょう｡
A171: RL toal | B171: 3 | C171: リスクを下げる対策を実施しましょう｡
A172: RL toal | B172: 2 | C172: 作業環境は良好です。換気、機器や器具、作業手順などの管理に努めましょう。
A173: RL toal | B173: 1 | C173: 作業環境は十分に良好です。
A174: RL DA | B174: 4 | C174: 耐透過性・耐浸透性の手袋を着用しましょう。
A175: RL DA | B175: 3 | C175: 耐透過性・耐浸透性の手袋を着用しましょう。
A176: RL DA | B176: 2 | C176: 耐透過性・耐浸透性の手袋を着用を推奨します。
A177: RL DA | B177: 1 | C177: 手袋を着用しましょう。
A178: RL DA | B178: S | C178: 目や皮膚に有害な影響があります。適切な労働衛生保護具を着用しましょう。
A179: RL P | B179: 4
A180: RL P | B180: 3
A181: RL P | B181: 2
A182: RL P | B182: 1 | C182: 良好です。

Sheet PhysRA_List (hidden)
A1: No. | B1: 項目 | C1: 区分 | D1: 取扱量 1:ton,kL～5:10mL,10g未満 | E1: 暫定リスクレベル （重篤度） | F1: 着火源の除去 | G1: 換気の有無 | H1: 有機物・金属の取扱いの有無 | I1: 空気、水との接触の有無 | J1: 低飛散性 | K1: リスクレベル | L1: リスクレベル （表示用） | M1: ID | N1: 表示コメント
A2: 1 | B2: 火薬類 | C2: 不安定爆発物 | E2: 5 | K2: =E2-COUNTIF($F2:$I2,"YES") -> 5 | L2: =IF(K2>=4,"Ⅳ",IF(K2=3,"Ⅲ",IF(K2=2,"Ⅱ","Ⅰ"))) -> Ⅳ | M2: =B2&C2&D2&F2&G2&H2&I2&J2 -> 火薬類不安定爆発物 | N2: 専門家または購入元に取り扱い方等を確認・相談のうえSDS等に従い取り扱いましょう。 | P2: Q2_Liquid | R2: kL, ton | S2: 1
A3: =A2+1 -> 2 | B3: 火薬類 | C3: 等級1.1 | E3: 5 | K3: 5 | L3: Ⅳ | M3: =B3&C3&D3&F3&G3&H3&I3&J3 -> 火薬類等級1.1 | N3: 専門家または購入元に取り扱い方等を確認・相談のうえSDS等に従い取り扱いましょう。 | P3: Q2_Liquid | R3: ≥1L、 ≥1kg | S3: 2
A4: =A3+1 -> 3 | B4: 火薬類 | C4: 等級1.2 | E4: 5 | K4: 5 | L4: Ⅳ | M4: 火薬類等級1.2 | N4: 専門家または購入元に取り扱い方等を確認・相談のうえSDS等に従い取り扱いましょう。 | P4: Q2_Liquid | R4: 1000mL～100mL、1000g～100g | S4: 3
A5: 4 | B5: 火薬類 | C5: 等級1.3 | E5: 5 | K5: 5 | L5: Ⅳ | M5: 火薬類等級1.3 | N5: 専門家または購入元に取り扱い方等を確認・相談のうえSDS等に従い取り扱いましょう。 | P5: Q2_Liquid | R5: 100mL～10mL、100g～10g | S5: 4
A6: 5 | B6: 火薬類 | C6: 等級1.4 | E6: 5 | K6: 5 | L6: Ⅳ | M6: 火薬類等級1.4 | N6: 専門家または購入元に取り扱い方等を確認・相談のうえSDS等に従い取り扱いましょう。 | P6: Q2_Liquid | R6: ≤10ml、 ≤10ｇ | S6: 5
A7: 6 | B7: 火薬類 | C7: 等級1.5 | E7: 5 | K7: 5 | L7: Ⅳ | M7: 火薬類等級1.5 | N7: 専門家または購入元に取り扱い方等を確認・相談のうえSDS等に従い取り扱いましょう。
A8: 7 | B8: 火薬類 | C8: 等級1.6 | E8: 5 | K8: 5 | L8: Ⅳ | M8: 火薬類等級1.6 | N8: 取り扱い方によっては危険性が顕在化するおそれがあるため、必要に応じて専門家または購入元に取り扱い方等を確認・相談のうえSDS等に従い取り扱いましょう。
A9: 8 | B9: 可燃性・引火性ガス | C9: 区分1 | D9: 1 | E9: 5 | F9: NO | G9: NO | K9: 5 | L9: Ⅳ | M9: =B9&C9&D9&F9&G9&H9&I9&J9 -> 可燃性・引火性ガス区分11NONO | N9: 引火性の高い蒸気あるいはガスです。至急着火源の除去、換気を行いましょう。
A10: 9 | B10: =B9 -> 可燃性・引火性ガス | C10: =C9 -> 区分1 | D10: =D9 -> 1 | E10: 5 | F10: NO | G10: YES | K10: 4 | L10: Ⅳ | M10: =B10&C10&D10&F10&G10&H10&I10&J10 -> 可燃性・引火性ガス区分11NOYES | N10: 引火性の高い蒸気あるいはガスです。至急着火源の除去、換気を行いましょう。
A11: 10 | B11: =B10 -> 可燃性・引火性ガス | C11: 区分1 | D11: 1 | E11: 5 | F11: YES | G11: NO | K11: 4 | L11: Ⅳ | M11: 可燃性・引火性ガス区分11YESNO | N11: 引火性の高い蒸気あるいはガスです。至急着火源の除去、換気を行いましょう。
A12: 11 | B12: 可燃性・引火性ガス | C12: 区分1 | D12: 1 | E12: 5 | F12: YES | G12: YES | K12: 3 | L12: =IF(K12>=4,"Ⅳ",IF(K12=3,"Ⅲ",IF(K12=2,"Ⅱ","Ⅰ"))) -> Ⅲ | M12: 可燃性・引火性ガス区分11YESYES | N12: 引火性の高い蒸気あるいはガスです。着火源の除去、換気の管理を徹底しましょう。
A13: 12 | B13: 可燃性・引火性ガス | C13: 区分1 | D13: 2 | E13: 5 | F13: NO | G13: NO | K13: 5 | L13: Ⅳ | M13: 可燃性・引火性ガス区分12NONO | N13: 引火性の高い蒸気あるいはガスです。至急着火源の除去、換気を行いましょう。
A14: 13 | B14: 可燃性・引火性ガス | C14: 区分1 | D14: 2 | E14: 5 | F14: NO | G14: YES | K14: 4 | L14: Ⅳ | M14: 可燃性・引火性ガス区分12NOYES | N14: 引火性の高い蒸気あるいはガスです。至急着火源の除去、換気を行いましょう。
A15: 14 | B15: 可燃性・引火性ガス | C15: 区分1 | D15: 2 | E15: 5 | F15: YES | G15: NO | K15: 4 | L15: Ⅳ | M15: 可燃性・引火性ガス区分12YESNO | N15: 引火性の高い蒸気あるいはガスです。至急着火源の除去、換気を行いましょう。
A16: 15 | B16: 可燃性・引火性ガス | C16: 区分1 | D16: 2 | E16: 5 | F16: YES | G16: YES | K16: 3 | L16: Ⅲ | M16: 可燃性・引火性ガス区分12YESYES | N16: 引火性の高い蒸気あるいはガスです。着火源の除去、換気の管理を徹底しましょう。
A17: 16 | B17: 可燃性・引火性ガス | C17: 区分1 | D17: 3 | E17: 5 | F17: NO | G17: NO | K17: 5 | L17: Ⅳ | M17: 可燃性・引火性ガス区分13NONO | N17: 引火性の高い蒸気あるいはガスです。至急着火源の除去、換気を行いましょう。
A18: 17 | B18: 可燃性・引火性ガス | C18: 区分1 | D18: 3 | E18: 5 | F18: NO | G18: YES | K18: 4 | L18: Ⅳ | M18: 可燃性・引火性ガス区分13NOYES | N18: 引火性の高い蒸気あるいはガスです。至急着火源の除去、換気を行いましょう。
A19: 18 | B19: 可燃性・引火性ガス | C19: 区分1 | D19: 3 | E19: 5 | F19: YES | G19: NO | K19: 4 | L19: Ⅳ | M19: 可燃性・引火性ガス区分13YESNO | N19: 引火性の高い蒸気あるいはガスです。至急着火源の除去、換気を行いましょう。
A20: 19 | B20: 可燃性・引火性ガス | C20: 区分1 | D20: =D19 -> 3 | E20: 5 | F20: YES | G20: YES | K20: 3 | L20: Ⅲ | M20: 可燃性・引火性ガス区分13YESYES | N20: 引火性の高い蒸気あるいはガスです。着火源の除去、換気の管理を徹底しましょう。
A21: 20 | B21: 可燃性・引火性ガス | C21: 区分1 | D21: 4 | E21: 4 | F21: NO | G21: NO | K21: 4 | L21: Ⅳ | M21: 可燃性・引火性ガス区分14NONO | N21: 引火性の高い蒸気あるいはガスです。至急着火源の除去、換気を行いましょう。
A22: 21 | B22: 可燃性・引火性ガス | C22: 区分1 | D22: 4 | E22: 4 | F22: NO | G22: YES | K22: 3 | L22: Ⅲ | M22: 可燃性・引火性ガス区分14NOYES | N22: 引火性の高い蒸気あるいはガスです。着火源の除去、換気の管理を徹底しましょう。
A23: 22 | B23: 可燃性・引火性ガス | C23: 区分1 | D23: 4 | E23: 4 | F23: YES | G23: NO | K23: 3 | L23: Ⅲ | M23: 可燃性・引火性ガス区分14YESNO | N23: 引火性の高い蒸気あるいはガスです。着火源の除去、換気の管理を徹底しましょう。
A24: 23 | B24: 可燃性・引火性ガス | C24: 区分1 | D24: 4 | E24: 4 | F24: YES | G24: YES | K24: 2 | L24: Ⅱ | M24: 可燃性・引火性ガス区分14YESYES | N24: 引火性の高い蒸気あるいはガスです。着火源の除去、換気などの管理を引き続き実施しましょう。
A25: 24 | B25: 可燃性・引火性ガス | C25: 区分1 | D25: 5 | E25: 3 | F25: NO | G25: NO | K25: 3 | L25: Ⅲ | M25: 可燃性・引火性ガス区分15NONO | N25: 引火性の高い蒸気あるいはガスです。着火源の除去、換気の管理を徹底しましょう。
A26: 25 | B26: 可燃性・引火性ガス | C26: 区分1 | D26: 5 | E26: 3 | F26: NO | G26: YES | K26: 2 | L26: Ⅱ | M26: 可燃性・引火性ガス区分15NOYES | N26: 引火性の高い蒸気あるいはガスです。着火源の除去、換気などの管理を引き続き実施しましょう。
A27: 26 | B27: =B26 -> 可燃性・引火性ガス | C27: =C26 -> 区分1 | D27: 5 | E27: 3 | F27: YES | G27: NO | K27: 2 | L27: Ⅱ | M27: 可燃性・引火性ガス区分15YESNO | N27: 引火性の高い蒸気あるいはガスです。着火源の除去、換気などの管理を引き続き実施しましょう。
A28: 27 | B28: =B27 -> 可燃性・引火性ガス | C28: =C27 -> 区分1 | D28: 5 | E28: 3 | F28: YES | G28: YES | K28: 1 | L28: Ⅰ | M28: 可燃性・引火性ガス区分15YESYES | N28: 引火性の高い蒸気あるいはガスです。着火源・換気の管理には注意しましょう。
A29: =A27+1 -> 27 | B29: 可燃性・引火性ガス | C29: 区分2 | D29: 1 | E29: 5 | F29: NO | G29: NO | K29: 5 | L29: Ⅳ | M29: 可燃性・引火性ガス区分21NONO | N29: 引火性の高い蒸気あるいはガスです。至急着火源の除去、換気を行いましょう。
A30: 28 | B30: 可燃性・引火性ガス | C30: 区分2 | D30: =D29 -> 1 | E30: 5 | F30: NO | G30: YES | K30: 4 | L30: Ⅳ | M30: 可燃性・引火性ガス区分21NOYES | N30: 引火性の高い蒸気あるいはガスです。至急着火源の除去、換気を行いましょう。
A31: 29 | B31: 可燃性・引火性ガス | C31: 区分2 | D31: 1 | E31: 5 | F31: YES | G31: NO | K31: 4 | L31: Ⅳ | M31: 可燃性・引火性ガス区分21YESNO | N31: 引火性の高い蒸気あるいはガスです。至急着火源の除去、換気を行いましょう。
A32: 30 | B32: 可燃性・引火性ガス | C32: 区分2 | D32: =D31 -> 1 | E32: 5 | F32: YES | G32: YES | K32: 3 | L32: Ⅲ | M32: 可燃性・引火性ガス区分21YESYES | N32: 引火性の高い蒸気あるいはガスです。着火源の除去、換気の管理を徹底しましょう。
A33: 31 | B33: 可燃性・引火性ガス | C33: 区分2 | D33: 2 | E33: 5 | F33: NO | G33: NO | K33: 5 | L33: Ⅳ | M33: 可燃性・引火性ガス区分22NONO | N33: 引火性の高い蒸気あるいはガスです。至急着火源の除去、換気を行いましょう。
A34: 32 | B34: 可燃性・引火性ガス | C34: 区分2 | D34: =D33 -> 2 | E34: 5 | F34: NO | G34: YES | K34: 4 | L34: Ⅳ | M34: 可燃性・引火性ガス区分22NOYES | N34: 引火性の高い蒸気あるいはガスです。至急着火源の除去、換気を行いましょう。
A35: 33 | B35: 可燃性・引火性ガス | C35: 区分2 | D35: 2 | E35: 5 | F35: YES | G35: NO | K35: 4 | L35: Ⅳ | M35: 可燃性・引火性ガス区分22YESNO | N35: 引火性の高い蒸気あるいはガスです。至急着火源の除去、換気を行いましょう。
A36: 34 | B36: 可燃性・引火性ガス | C36: 区分2 | D36: =D35 -> 2 | E36: 5 | F36: YES | G36: YES | K36: 3 | L36: Ⅲ | M36: 可燃性・引火性ガス区分22YESYES | N36: 引火性の高い蒸気あるいはガスです。着火源の除去、換気の管理を徹底しましょう。
A37: 35 | B37: 可燃性・引火性ガス | C37: 区分2 | D37: 3 | E37: 4 | F37: NO | G37: NO | K37: 4 | L37: Ⅳ | M37: 可燃性・引火性ガス区分23NONO | N37: 引火性の高い蒸気あるいはガスです。至急着火源の除去、換気を行いましょう。
A38: 36 | B38: 可燃性・引火性ガス | C38: 区分2 | D38: =D37 -> 3 | E38: 4 | F38: NO | G38: YES | K38: 3 | L38: Ⅲ | M38: 可燃性・引火性ガス区分23NOYES | N38: 引火性の高い蒸気あるいはガスです。着火源の除去、換気の管理を徹底しましょう。
A39: 37 | B39: 可燃性・引火性ガス | C39: 区分2 | D39: 3 | E39: 4 | F39: YES | G39: NO | K39: 3 | L39: Ⅲ | M39: 可燃性・引火性ガス区分23YESNO | N39: 引火性の高い蒸気あるいはガスです。着火源の除去、換気の管理を徹底しましょう。
A40: 38 | B40: 可燃性・引火性ガス | C40: 区分2 | D40: =D39 -> 3 | E40: 4 | F40: YES | G40: YES | K40: 2 | L40: Ⅱ | M40: 可燃性・引火性ガス区分23YESYES | N40: 引火性の高い蒸気あるいはガスです。着火源の除去、換気などの管理を引き続き実施しましょう。
A41: 39 | B41: 可燃性・引火性ガス | C41: 区分2 | D41: 4 | E41: 3 | F41: NO | G41: NO | K41: 3 | L41: Ⅲ | M41: 可燃性・引火性ガス区分24NONO | N41: 引火性の高い蒸気あるいはガスです。着火源の除去、換気の管理を徹底しましょう。
A42: 40 | B42: 可燃性・引火性ガス | C42: 区分2 | D42: =D41 -> 4 | E42: 3 | F42: NO | G42: YES | K42: 2 | L42: Ⅱ | M42: 可燃性・引火性ガス区分24NOYES | N42: 引火性の高い蒸気あるいはガスです。着火源の除去、換気などの管理を引き続き実施しましょう。
A43: 41 | B43: 可燃性・引火性ガス | C43: 区分2 | D43: 4 | E43: 3 | F43: YES | G43: NO | K43: 2 | L43: Ⅱ | M43: 可燃性・引火性ガス区分24YESNO | N43: 引火性の高い蒸気あるいはガスです。着火源の除去、換気などの管理を引き続き実施しましょう。
A44: 42 | B44: 可燃性・引火性ガス | C44: 区分2 | D44: =D43 -> 4 | E44: 3 | F44: YES | G44: YES | K44: 1 | L44: Ⅰ | M44: 可燃性・引火性ガス区分24YESYES | N44: 引火性の高い蒸気あるいはガスです。着火源・換気の管理には注意しましょう。
A45: 43 | B45: 可燃性・引火性ガス | C45: 区分2 | D45: 5 | E45: 2 | F45: NO | G45: NO | K45: 2 | L45: Ⅱ | M45: 可燃性・引火性ガス区分25NONO | N45: 引火性の高い蒸気あるいはガスです。着火源の除去、換気などの管理を引き続き実施しましょう。
A46: 44 | B46: 可燃性・引火性ガス | C46: 区分2 | D46: =D45 -> 5 | E46: 2 | F46: NO | G46: YES | K46: 1 | L46: Ⅰ | M46: 可燃性・引火性ガス区分25NOYES | N46: 引火性の高い蒸気あるいはガスです。着火源・換気の管理には注意しましょう。
A47: 45 | B47: 可燃性・引火性ガス | C47: 区分2 | D47: 5 | E47: 2 | F47: YES | G47: NO | K47: 1 | L47: Ⅰ | M47: 可燃性・引火性ガス区分25YESNO | N47: 引火性の高い蒸気あるいはガスです。着火源・換気の管理には注意しましょう。
A48: 46 | B48: 可燃性・引火性ガス | C48: 区分2 | D48: 5 | E48: 2 | F48: YES | G48: YES | K48: 0 | L48: Ⅰ | M48: 可燃性・引火性ガス区分25YESYES | N48: 引火性の高い蒸気あるいはガスです。着火源・換気の管理には注意しましょう。
A49: 47 | B49: エアゾール | C49: 区分1 | D49: 1 | E49: 5 | F49: NO | G49: NO | K49: 5 | L49: Ⅳ | M49: エアゾール区分11NONO | N49: 引火性が高いため、至急着火源の除去、換気を行いましょう。
A50: 48 | B50: エアゾール | C50: =C49 -> 区分1 | D50: =D49 -> 1 | E50: 5 | F50: NO | G50: YES | K50: 4 | L50: Ⅳ | M50: エアゾール区分11NOYES | N50: 引火性が高いため、至急着火源の除去、換気を行いましょう。
A51: 49 | B51: エアゾール | C51: =C50 -> 区分1 | D51: 1 | E51: 5 | F51: YES | G51: NO | K51: 4 | L51: Ⅳ | M51: エアゾール区分11YESNO | N51: 引火性が高いため、至急着火源の除去、換気を行いましょう。
A52: 50 | B52: エアゾール | C52: 区分1 | D52: 1 | E52: 5 | F52: YES | G52: YES | K52: 3 | L52: Ⅲ | M52: エアゾール区分11YESYES | N52: 引火性が高いため、着火源の除去、換気を徹底しましょう。
A53: 51 | B53: エアゾール | C53: 区分1 | D53: 2 | E53: 5 | F53: NO | G53: NO | K53: 5 | L53: Ⅳ | M53: エアゾール区分12NONO | N53: 引火性が高いため、至急着火源の除去、換気を行いましょう。
A54: 52 | B54: エアゾール | C54: 区分1 | D54: 2 | E54: 5 | F54: NO | G54: YES | K54: 4 | L54: Ⅳ | M54: エアゾール区分12NOYES | N54: 引火性が高いため、至急着火源の除去、換気を行いましょう。
A55: 53 | B55: エアゾール | C55: 区分1 | D55: 2 | E55: 5 | F55: YES | G55: NO | K55: 4 | L55: Ⅳ | M55: エアゾール区分12YESNO | N55: 引火性が高いため、至急着火源の除去、換気を行いましょう。
A56: 54 | B56: エアゾール | C56: 区分1 | D56: 2 | E56: 5 | F56: YES | G56: YES | K56: 3 | L56: Ⅲ | M56: エアゾール区分12YESYES | N56: 引火性が高いため、着火源の除去、換気を徹底しましょう。
A57: 55 | B57: エアゾール | C57: 区分1 | D57: 3 | E57: 5 | F57: NO | G57: NO | K57: 5 | L57: Ⅳ | M57: エアゾール区分13NONO | N57: 引火性が高いため、至急着火源の除去、換気を行いましょう。
A58: 56 | B58: エアゾール | C58: 区分1 | D58: 3 | E58: 5 | F58: NO | G58: YES | K58: 4 | L58: Ⅳ | M58: エアゾール区分13NOYES | N58: 引火性が高いため、至急着火源の除去、換気を行いましょう。
A59: 57 | B59: エアゾール | C59: 区分1 | D59: 3 | E59: 5 | F59: YES | G59: NO | K59: 4 | L59: Ⅳ | M59: エアゾール区分13YESNO | N59: 引火性が高いため、至急着火源の除去、換気を行いましょう。
A60: 58 | B60: エアゾール | C60: 区分1 | D60: 3 | E60: 5 | F60: YES | G60: YES | K60: 3 | L60: Ⅲ | M60: エアゾール区分13YESYES | N60: 引火性が高いため、着火源の除去、換気を徹底しましょう。
A61: 59 | B61: エアゾール | C61: 区分1 | D61: 4 | E61: 4 | F61: NO | G61: NO | K61: 4 | L61: Ⅳ | M61: エアゾール区分14NONO | N61: 引火性が高いため、至急着火源の除去、換気を行いましょう。
A62: 60 | B62: エアゾール | C62: 区分1 | D62: 4 | E62: 4 | F62: NO | G62: YES | K62: 3 | L62: Ⅲ | M62: エアゾール区分14NOYES | N62: 引火性が高いため、着火源の除去、換気を徹底しましょう。
A63: 61 | B63: エアゾール | C63: 区分1 | D63: 4 | E63: 4 | F63: YES | G63: NO | K63: 3 | L63: Ⅲ | M63: エアゾール区分14YESNO | N63: 引火性が高いため、着火源の除去、換気を徹底しましょう。
A64: 62 | B64: エアゾール | C64: 区分1 | D64: 4 | E64: 4 | F64: YES | G64: YES | K64: 2 | L64: Ⅱ | M64: エアゾール区分14YESYES | N64: 引火性が高いため、着火源の除去、換気などの管理を引き続き実施しましょう。
A65: 63 | B65: エアゾール | C65: 区分1 | D65: 5 | E65: 3 | F65: NO | G65: NO | K65: 3 | L65: Ⅲ | M65: エアゾール区分15NONO | N65: 引火性が高いため、着火源の除去、換気を徹底しましょう。
A66: 64 | B66: エアゾール | C66: 区分1 | D66: 5 | E66: 3 | F66: NO | G66: YES | K66: =E66-COUNTIF($F66:$I66,"YES") -> 2 | L66: =IF(K66>=4,"Ⅳ",IF(K66=3,"Ⅲ",IF(K66=2,"Ⅱ","Ⅰ"))) -> Ⅱ | M66: エアゾール区分15NOYES | N66: 引火性が高いため、着火源の除去、換気などの管理を引き続き実施しましょう。
A67: 65 | B67: エアゾール | C67: =C66 -> 区分1 | D67: 5 | E67: 3 | F67: YES | G67: NO | K67: 2 | L67: Ⅱ | M67: エアゾール区分15YESNO | N67: 引火性が高いため、着火源の除去、換気などの管理を引き続き実施しましょう。
A68: =A67+1 -> 66 | B68: エアゾール | C68: =C67 -> 区分1 | D68: 5 | E68: 3 | F68: YES | G68: YES | K68: 1 | L68: Ⅰ | M68: エアゾール区分15YESYES | N68: 引火性が高いため、着火源の除去、換気には注意しましょう
A69: 67 | B69: エアゾール | C69: 区分2 | D69: 1 | E69: 5 | F69: NO | G69: NO | K69: 5 | L69: Ⅳ | M69: エアゾール区分21NONO | N69: 引火性が高いため、至急着火源の除去、換気を行いましょう。
A70: 68 | B70: エアゾール | C70: 区分2 | D70: 1 | E70: 5 | F70: NO | G70: YES | K70: 4 | L70: Ⅳ | M70: エアゾール区分21NOYES | N70: 引火性が高いため、至急着火源の除去、換気を行いましょう。
A71: 69 | B71: エアゾール | C71: 区分2 | D71: 1 | E71: 5 | F71: YES | G71: NO | K71: 4 | L71: Ⅳ | M71: エアゾール区分21YESNO | N71: 引火性が高いため、至急着火源の除去、換気を行いましょう。
A72: 70 | B72: エアゾール | C72: 区分2 | D72: 1 | E72: 5 | F72: YES | G72: YES | K72: 3 | L72: Ⅲ | M72: エアゾール区分21YESYES | N72: 引火性が高いため、着火源の除去、換気を徹底しましょう。
A73: 71 | B73: エアゾール | C73: 区分2 | D73: 2 | E73: 5 | F73: NO | G73: NO | K73: 5 | L73: Ⅳ | M73: エアゾール区分22NONO | N73: 引火性が高いため、至急着火源の除去、換気を行いましょう。
A74: 72 | B74: エアゾール | C74: 区分2 | D74: 2 | E74: 5 | F74: NO | G74: YES | K74: 4 | L74: Ⅳ | M74: =B74&C74&D74&F74&G74&H74&I74&J74 -> エアゾール区分22NOYES | N74: 引火性が高いため、至急着火源の除去、換気を行いましょう。
A75: 73 | B75: エアゾール | C75: 区分2 | D75: 2 | E75: 5 | F75: YES | G75: NO | K75: 4 | L75: Ⅳ | M75: エアゾール区分22YESNO | N75: 引火性が高いため、至急着火源の除去、換気を行いましょう。
A76: 74 | B76: エアゾール | C76: 区分2 | D76: 2 | E76: 5 | F76: YES | G76: YES | K76: 3 | L76: Ⅲ | M76: エアゾール区分22YESYES | N76: 引火性が高いため、着火源の除去、換気を徹底しましょう。
A77: 75 | B77: エアゾール | C77: 区分2 | D77: 3 | E77: 4 | F77: NO | G77: NO | K77: 4 | L77: Ⅳ | M77: エアゾール区分23NONO | N77: 引火性が高いため、至急着火源の除去、換気を行いましょう。
A78: 76 | B78: エアゾール | C78: 区分2 | D78: 3 | E78: 4 | F78: NO | G78: YES | K78: 3 | L78: Ⅲ | M78: エアゾール区分23NOYES | N78: 引火性が高いため、着火源の除去、換気を徹底しましょう。
A79: 77 | B79: エアゾール | C79: 区分2 | D79: 3 | E79: 4 | F79: YES | G79: NO | K79: 3 | L79: Ⅲ | M79: エアゾール区分23YESNO | N79: 引火性が高いため、着火源の除去、換気を徹底しましょう。
A80: 78 | B80: エアゾール | C80: 区分2 | D80: 3 | E80: 4 | F80: YES | G80: YES | K80: 2 | L80: Ⅱ | M80: エアゾール区分23YESYES | N80: 引火性が高いため、着火源の除去、換気などの管理を引き続き実施しましょう。
A81: 79 | B81: エアゾール | C81: 区分2 | D81: 4 | E81: 4 | F81: NO | G81: NO | K81: 4 | L81: Ⅳ | M81: エアゾール区分24NONO | N81: 引火性が高いため、至急着火源の除去、換気を行いましょう。
A82: 80 | B82: エアゾール | C82: 区分2 | D82: 4 | E82: 4 | F82: NO | G82: YES | K82: 3 | L82: Ⅲ | M82: エアゾール区分24NOYES | N82: 引火性が高いため、着火源の除去、換気を徹底しましょう。
A83: 81 | B83: エアゾール | C83: 区分2 | D83: 4 | E83: 4 | F83: YES | G83: NO | K83: 3 | L83: Ⅲ | M83: エアゾール区分24YESNO | N83: 引火性が高いため、着火源の除去、換気を徹底しましょう。
A84: 82 | B84: エアゾール | C84: 区分2 | D84: 4 | E84: 4 | F84: YES | G84: YES | K84: 2 | L84: Ⅱ | M84: エアゾール区分24YESYES | N84: 引火性が高いため、着火源の除去、換気などの管理を引き続き実施しましょう。
A85: 83 | B85: エアゾール | C85: 区分2 | D85: 5 | E85: 3 | F85: NO | G85: NO | K85: 3 | L85: Ⅲ | M85: エアゾール区分25NONO | N85: 引火性が高いため、着火源の除去、換気を徹底しましょう。
A86: 84 | B86: エアゾール | C86: 区分2 | D86: 5 | E86: 3 | F86: NO | G86: YES | K86: 2 | L86: Ⅱ | M86: エアゾール区分25NOYES | N86: 引火性が高いため、着火源の除去、換気などの管理を引き続き実施しましょう。
A87: 85 | B87: エアゾール | C87: 区分2 | D87: 5 | E87: 3 | F87: YES | G87: NO | K87: 2 | L87: Ⅱ | M87: エアゾール区分25YESNO | N87: 引火性が高いため、着火源の除去、換気などの管理を引き続き実施しましょう。
A88: 86 | B88: エアゾール | C88: 区分2 | D88: 5 | E88: 3 | F88: YES | G88: YES | K88: 1 | L88: Ⅰ | M88: エアゾール区分25YESYES | N88: 引火性が高いため、着火源の除去、換気には注意しましょう
A89: 87 | B89: エアゾール | C89: 区分3 | D89: 1 | E89: 2 | K89: 2 | L89: Ⅱ | M89: エアゾール区分31 | N89: 取り扱い方によっては引火するため、着火源の除去、換気などの管理を引き続き実施しましょう。
A90: 88 | B90: エアゾール | C90: 区分3 | D90: 1 | E90: 2 | K90: 2 | L90: Ⅱ | M90: エアゾール区分31 | N90: 取り扱い方によっては引火するため、着火源の除去、換気などの管理を引き続き実施しましょう。
A91: 89 | B91: エアゾール | C91: 区分3 | D91: 1 | E91: 2 | K91: 2 | L91: Ⅱ | M91: エアゾール区分31 | N91: 取り扱い方によっては引火するため、着火源の除去、換気などの管理を引き続き実施しましょう。
A92: 90 | B92: エアゾール | C92: 区分3 | D92: 1 | E92: 2 | K92: 2 | L92: Ⅱ | M92: エアゾール区分31 | N92: 取り扱い方によっては引火するため、着火源の除去、換気などの管理を引き続き実施しましょう。
A93: 91 | B93: エアゾール | C93: 区分3 | D93: 2 | E93: 2 | K93: 2 | L93: Ⅱ | M93: エアゾール区分32 | N93: 取り扱い方によっては引火するため、着火源の除去、換気などの管理を引き続き実施しましょう。
A94: 92 | B94: エアゾール | C94: 区分3 | D94: 2 | E94: 2 | K94: 2 | L94: Ⅱ | M94: エアゾール区分32 | N94: 取り扱い方によっては引火するため、着火源の除去、換気などの管理を引き続き実施しましょう。
A95: 93 | B95: エアゾール | C95: 区分3 | D95: 2 | E95: 2 | K95: 2 | L95: Ⅱ | M95: エアゾール区分32 | N95: 取り扱い方によっては引火するため、着火源の除去、換気などの管理を引き続き実施しましょう。
A96: 94 | B96: エアゾール | C96: 区分3 | D96: 2 | E96: 2 | K96: 2 | L96: Ⅱ | M96: エアゾール区分32 | N96: 取り扱い方によっては引火するため、着火源の除去、換気などの管理を引き続き実施しましょう。
A97: 95 | B97: エアゾール | C97: 区分3 | D97: 3 | E97: 2 | K97: 2 | L97: Ⅱ | M97: エアゾール区分33 | N97: 取り扱い方によっては引火するため、着火源の除去、換気などの管理を引き続き実施しましょう。
A98: 96 | B98: エアゾール | C98: 区分3 | D98: 3 | E98: 2 | K98: 2 | L98: Ⅱ | M98: エアゾール区分33 | N98: 取り扱い方によっては引火するため、着火源の除去、換気などの管理を引き続き実施しましょう。
A99: 97 | B99: エアゾール | C99: 区分3 | D99: 3 | E99: 2 | K99: 2 | L99: Ⅱ | M99: エアゾール区分33 | N99: 取り扱い方によっては引火するため、着火源の除去、換気などの管理を引き続き実施しましょう。
A100: 98 | B100: エアゾール | C100: 区分3 | D100: 3 | E100: 2 | K100: 2 | L100: Ⅱ | M100: エアゾール区分33 | N100: 取り扱い方によっては引火するため、着火源の除去、換気などの管理を引き続き実施しましょう。
A101: 99 | B101: エアゾール | C101: 区分3 | D101: 4 | E101: 1 | K101: 1 | L101: Ⅰ | M101: エアゾール区分34 | N101: 取り扱い方によっては引火するため、着火源の除去、換気には注意しましょう。
A102: 100 | B102: エアゾール | C102: 区分3 | D102: 4 | E102: 1 | K102: 1 | L102: Ⅰ | M102: エアゾール区分34 | N102: 取り扱い方によっては引火するため、着火源の除去、換気には注意しましょう。
A103: 101 | B103: エアゾール | C103: 区分3 | D103: 4 | E103: 1 | K103: 1 | L103: Ⅰ | M103: エアゾール区分34 | N103: 取り扱い方によっては引火するため、着火源の除去、換気には注意しましょう。
A104: 102 | B104: エアゾール | C104: 区分3 | D104: 4 | E104: 1 | K104: 1 | L104: Ⅰ | M104: エアゾール区分34 | N104: 取り扱い方によっては引火するため、着火源の除去、換気には注意しましょう。
A105: 103 | B105: エアゾール | C105: 区分3 | D105: 5 | E105: 1 | K105: 1 | L105: Ⅰ | M105: エアゾール区分35 | N105: 取り扱い方によっては引火するため、着火源の除去、換気には注意しましょう。
A106: 104 | B106: エアゾール | C106: 区分3 | D106: 5 | E106: 1 | K106: 1 | L106: Ⅰ | M106: エアゾール区分35 | N106: 取り扱い方によっては引火するため、着火源の除去、換気には注意しましょう。
A107: 105 | B107: エアゾール | C107: 区分3 | D107: 5 | E107: 1 | K107: 1 | L107: Ⅰ | M107: エアゾール区分35 | N107: 取り扱い方によっては引火するため、着火源の除去、換気には注意しましょう。
A108: 106 | B108: エアゾール | C108: 区分3 | D108: 5 | E108: 1 | K108: 1 | L108: Ⅰ | M108: エアゾール区分35 | N108: 取り扱い方によっては引火するため、着火源の除去、換気には注意しましょう。
A109: =A103+1 -> 102 | B109: 支燃性・酸化性ガス | C109: 区分1 | D109: 1 | E109: 5 | K109: 5 | L109: Ⅳ | M109: 支燃性・酸化性ガス区分11 | N109: 火災等を引き起こすおそれがあるため、至急可燃物などを除去しましょう。
A110: 103 | B110: 支燃性・酸化性ガス | C110: 区分1 | D110: 2 | E110: 4 | K110: 4 | L110: Ⅳ | M110: 支燃性・酸化性ガス区分12 | N110: 火災等を引き起こすおそれがあるため、至急可燃物などを除去しましょう。
A111: 104 | B111: 支燃性・酸化性ガス | C111: 区分1 | D111: 3 | E111: 3 | K111: 3 | L111: Ⅲ | M111: 支燃性・酸化性ガス区分13 | N111: 火災等を引き起こすおそれがあるため、可燃物の管理を徹底しましょう。
A112: 105 | B112: 支燃性・酸化性ガス | C112: 区分1 | D112: 4 | E112: 2 | K112: 2 | L112: Ⅱ | M112: 支燃性・酸化性ガス区分14 | N112: 火災等を引き起こすおそれがあるため、可燃物の管理を引き続き実施しましょう。
A113: 106 | B113: 支燃性・酸化性ガス | C113: 区分1 | D113: 5 | E113: 2 | K113: 2 | L113: Ⅱ | M113: 支燃性・酸化性ガス区分15 | N113: 火災等を引き起こすおそれがあるため、可燃物の管理を引き続き実施しましょう。
A114: 107 | B114: 高圧ガス | C114: 液化ガス | D114: 1 | E114: 2 | K114: 2 | L114: =IF(K114>=4,"Ⅳ",IF(K114=3,"Ⅲ",IF(K114=2,"Ⅱ","Ⅰ"))) -> Ⅱ | M114: 高圧ガス液化ガス1 | N114: 圧力に応じて法令（高圧ガス保安法、安全衛生規則、ボイラー則など）を参照のうえ対応しましょう。
A115: 108 | B115: 高圧ガス | C115: 液化ガス | D115: 2 | E115: 2 | K115: 2 | L115: Ⅱ | M115: 高圧ガス液化ガス2 | N115: 圧力に応じて法令（高圧ガス保安法、安全衛生規則、ボイラー則など）を参照のうえ対応しましょう。
A116: 109 | B116: 高圧ガス | C116: 液化ガス | D116: 3 | E116: 2 | K116: 2 | L116: Ⅱ | M116: 高圧ガス液化ガス3 | N116: 圧力に応じて法令（高圧ガス保安法、安全衛生規則、ボイラー則など）を参照のうえ対応しましょう。
A117: 110 | B117: 高圧ガス | C117: 液化ガス | D117: 4 | E117: 1 | K117: 1 | L117: Ⅰ | M117: 高圧ガス液化ガス4 | N117: 圧力に応じて法令（高圧ガス保安法、安全衛生規則、ボイラー則など）を参照のうえ対応しましょう。
A118: 111 | B118: 高圧ガス | C118: 液化ガス | D118: 5 | E118: 1 | K118: 1 | L118: Ⅰ | M118: 高圧ガス液化ガス5 | N118: 圧力に応じて法令（高圧ガス保安法、安全衛生規則、ボイラー則など）を参照のうえ対応しましょう。
A119: 112 | B119: 高圧ガス | C119: 圧縮ガス | D119: 1 | E119: 2 | K119: =E119-COUNTIF($F119:$I119,"YES") -> 2 | L119: =IF(K119>=4,"Ⅳ",IF(K119=3,"Ⅲ",IF(K119=2,"Ⅱ","Ⅰ"))) -> Ⅱ | M119: =B119&C119&D119&F119&G119&H119&I119&J119 -> 高圧ガス圧縮ガス1 | N119: 圧力に応じて法令（高圧ガス保安法、安全衛生規則、ボイラー則など）を参照のうえ対応しましょう。
A120: 113 | B120: 高圧ガス | C120: 圧縮ガス | D120: 2 | E120: 2 | K120: 2 | L120: =IF(K120>=4,"Ⅳ",IF(K120=3,"Ⅲ",IF(K120=2,"Ⅱ","Ⅰ"))) -> Ⅱ | M120: 高圧ガス圧縮ガス2 | N120: 圧力に応じて法令（高圧ガス保安法、安全衛生規則、ボイラー則など）を参照のうえ対応しましょう。
A121: 114 | B121: 高圧ガス | C121: 圧縮ガス | D121: 3 | E121: 2 | K121: 2 | L121: Ⅱ | M121: 高圧ガス圧縮ガス3 | N121: 圧力に応じて法令（高圧ガス保安法、安全衛生規則、ボイラー則など）を参照のうえ対応しましょう。
A122: 115 | B122: 高圧ガス | C122: 圧縮ガス | D122: 4 | E122: 1 | K122: 1 | L122: Ⅰ | M122: 高圧ガス圧縮ガス4 | N122: 圧力に応じて法令（高圧ガス保安法、安全衛生規則、ボイラー則など）を参照のうえ対応しましょう。
A123: 116 | B123: 高圧ガス | C123: 圧縮ガス | D123: 5 | E123: 1 | K123: 1 | L123: Ⅰ | M123: 高圧ガス圧縮ガス5 | N123: 圧力に応じて法令（高圧ガス保安法、安全衛生規則、ボイラー則など）を参照のうえ対応しましょう。
A124: =A118+1 -> 112 | B124: 高圧ガス | C124: 溶解ガス | D124: 1 | E124: 2 | K124: 2 | L124: Ⅱ | M124: 高圧ガス溶解ガス1 | N124: 圧力に応じて法令（高圧ガス保安法、安全衛生規則、ボイラー則など）を参照のうえ対応しましょう。
A125: 113 | B125: 高圧ガス | C125: 溶解ガス | D125: 2 | E125: 2 | K125: 2 | L125: Ⅱ | M125: 高圧ガス溶解ガス2 | N125: 圧力に応じて法令（高圧ガス保安法、安全衛生規則、ボイラー則など）を参照のうえ対応しましょう。
A126: 114 | B126: 高圧ガス | C126: 溶解ガス | D126: 3 | E126: 2 | K126: 2 | L126: Ⅱ | M126: 高圧ガス溶解ガス3 | N126: 圧力に応じて法令（高圧ガス保安法、安全衛生規則、ボイラー則など）を参照のうえ対応しましょう。
A127: =A126+1 -> 115 | B127: 高圧ガス | C127: 溶解ガス | D127: 4 | E127: 1 | K127: 1 | L127: Ⅰ | M127: 高圧ガス溶解ガス4 | N127: 圧力に応じて法令（高圧ガス保安法、安全衛生規則、ボイラー則など）を参照のうえ対応しましょう。
A128: 116 | B128: 高圧ガス | C128: 溶解ガス | D128: 5 | E128: 1 | K128: 1 | L128: Ⅰ | M128: 高圧ガス溶解ガス5 | N128: 圧力に応じて法令（高圧ガス保安法、安全衛生規則、ボイラー則など）を参照のうえ対応しましょう。
A129: 117 | B129: 高圧ガス | C129: 深冷液化ガス | D129: 1 | E129: 2 | K129: 2 | L129: Ⅱ | M129: 高圧ガス深冷液化ガス1 | N129: 圧力に応じて法令（高圧ガス保安法、安全衛生規則、ボイラー則など）を参照のうえ対応しましょう。
A130: 118 | B130: 高圧ガス | C130: 深冷液化ガス | D130: 2 | E130: 2 | K130: 2 | L130: Ⅱ | M130: 高圧ガス深冷液化ガス2 | N130: 圧力に応じて法令（高圧ガス保安法、安全衛生規則、ボイラー則など）を参照のうえ対応しましょう。
A131: 119 | B131: 高圧ガス | C131: 深冷液化ガス | D131: 3 | E131: 2 | K131: 2 | L131: Ⅱ | M131: 高圧ガス深冷液化ガス3 | N131: 圧力に応じて法令（高圧ガス保安法、安全衛生規則、ボイラー則など）を参照のうえ対応しましょう。
A132: 120 | B132: 高圧ガス | C132: 深冷液化ガス | D132: 4 | E132: 1 | K132: 1 | L132: Ⅰ | M132: 高圧ガス深冷液化ガス4 | N132: 圧力に応じて法令（高圧ガス保安法、安全衛生規則、ボイラー則など）を参照のうえ対応しましょう。
A133: 121 | B133: 高圧ガス | C133: 深冷液化ガス | D133: 5 | E133: 1 | K133: 1 | L133: Ⅰ | M133: 高圧ガス深冷液化ガス5 | N133: 圧力に応じて法令（高圧ガス保安法、安全衛生規則、ボイラー則など）を参照のうえ対応しましょう。
A134: 122 | B134: 引火性液体 | C134: 区分1 | D134: 1 | E134: 5 | F134: NO | G134: NO | K134: 5 | L134: Ⅳ | M134: 引火性液体区分11NONO | N134: 引火性が高いため、至急着火源の除去、換気を行いましょう。
A135: 123 | B135: 引火性液体 | C135: 区分1 | D135: =D134 -> 1 | E135: 5 | F135: NO | G135: YES | K135: =E135-COUNTIF($F135:$I135,"YES") -> 4 | L135: =IF(K135>=4,"Ⅳ",IF(K135=3,"Ⅲ",IF(K135=2,"Ⅱ","Ⅰ"))) -> Ⅳ | M135: 引火性液体区分11NOYES | N135: 引火性が高いため、至急着火源の除去、換気を行いましょう。
A136: 124 | B136: 引火性液体 | C136: 区分1 | D136: 1 | E136: 5 | F136: YES | G136: NO | K136: 4 | L136: Ⅳ | M136: 引火性液体区分11YESNO | N136: 引火性が高いため、至急着火源の除去、換気を行いましょう。
A137: 125 | B137: 引火性液体 | C137: 区分1 | D137: =D136 -> 1 | E137: 5 | F137: YES | G137: YES | K137: 3 | L137: Ⅲ | M137: 引火性液体区分11YESYES | N137: 引火性が高いため、着火源の除去、換気を徹底しましょう。
A138: 126 | B138: 引火性液体 | C138: 区分1 | D138: 2 | E138: 5 | F138: NO | G138: NO | K138: 5 | L138: Ⅳ | M138: 引火性液体区分12NONO | N138: 引火性が高いため、至急着火源の除去、換気を行いましょう。
A139: 127 | B139: 引火性液体 | C139: 区分1 | D139: =D138 -> 2 | E139: 5 | F139: NO | G139: YES | K139: 4 | L139: Ⅳ | M139: 引火性液体区分12NOYES | N139: 引火性が高いため、至急着火源の除去、換気を行いましょう。
A140: 128 | B140: 引火性液体 | C140: 区分1 | D140: 2 | E140: 5 | F140: YES | G140: NO | K140: 4 | L140: Ⅳ | M140: 引火性液体区分12YESNO | N140: 引火性が高いため、至急着火源の除去、換気を行いましょう。
A141: 129 | B141: 引火性液体 | C141: 区分1 | D141: =D140 -> 2 | E141: 5 | F141: YES | G141: YES | K141: 3 | L141: Ⅲ | M141: 引火性液体区分12YESYES | N141: 引火性が高いため、着火源の除去、換気を徹底しましょう。
A142: 130 | B142: 引火性液体 | C142: 区分1 | D142: 3 | E142: 4 | F142: NO | G142: NO | K142: 4 | L142: Ⅳ | M142: 引火性液体区分13NONO | N142: 引火性が高いため、至急着火源の除去、換気を行いましょう。
A143: 131 | B143: 引火性液体 | C143: 区分1 | D143: =D142 -> 3 | E143: 4 | F143: NO | G143: YES | K143: 3 | L143: Ⅲ | M143: =B143&C143&D143&F143&G143&H143&I143&J143 -> 引火性液体区分13NOYES | N143: 引火性が高いため、着火源の除去、換気を徹底しましょう。
A144: 132 | B144: 引火性液体 | C144: 区分1 | D144: 3 | E144: 4 | F144: YES | G144: NO | K144: 3 | L144: Ⅲ | M144: 引火性液体区分13YESNO | N144: 引火性が高いため、着火源の除去、換気を徹底しましょう。
A145: 133 | B145: 引火性液体 | C145: 区分1 | D145: =D144 -> 3 | E145: 4 | F145: YES | G145: YES | K145: 2 | L145: Ⅱ | M145: 引火性液体区分13YESYES | N145: 引火性が高いため、着火源の除去、換気などの管理を引き続き実施しましょう。
A146: 134 | B146: 引火性液体 | C146: 区分1 | D146: 4 | E146: 3 | F146: NO | G146: NO | K146: 3 | L146: Ⅲ | M146: 引火性液体区分14NONO | N146: 引火性が高いため、着火源の除去、換気を徹底しましょう。
A147: 135 | B147: 引火性液体 | C147: 区分1 | D147: =D146 -> 4 | E147: 3 | F147: NO | G147: YES | K147: 2 | L147: Ⅱ | M147: 引火性液体区分14NOYES | N147: 引火性が高いため、着火源の除去、換気などの管理を引き続き実施しましょう。
A148: 136 | B148: 引火性液体 | C148: 区分1 | D148: 4 | E148: 3 | F148: YES | G148: NO | K148: 2 | L148: Ⅱ | M148: 引火性液体区分14YESNO | N148: 引火性が高いため、着火源の除去、換気などの管理を引き続き実施しましょう。
A149: 137 | B149: 引火性液体 | C149: 区分1 | D149: =D148 -> 4 | E149: 3 | F149: YES | G149: YES | K149: 1 | L149: Ⅰ | M149: 引火性液体区分14YESYES | N149: 引火性が高いため、着火源の除去、換気には注意しましょう
A150: 138 | B150: 引火性液体 | C150: 区分1 | D150: 5 | E150: 2 | F150: NO | G150: NO | K150: 2 | L150: Ⅱ | M150: 引火性液体区分15NONO | N150: 引火性が高いため、着火源の除去、換気などの管理を引き続き実施しましょう。
A151: 139 | B151: 引火性液体 | C151: 区分1 | D151: =D150 -> 5 | E151: 2 | F151: NO | G151: YES | K151: 1 | L151: Ⅰ | M151: 引火性液体区分15NOYES | N151: 引火性が高いため、着火源の除去、換気には注意しましょう
A152: 140 | B152: 引火性液体 | C152: 区分1 | D152: 5 | E152: 2 | F152: YES | G152: NO | K152: 1 | L152: Ⅰ | M152: 引火性液体区分15YESNO | N152: 引火性が高いため、着火源の除去、換気には注意しましょう
A153: 141 | B153: 引火性液体 | C153: 区分1 | D153: 5 | E153: 2 | F153: YES | G153: YES | K153: 0 | L153: Ⅰ | M153: 引火性液体区分15YESYES | N153: 引火性が高いため、着火源の除去、換気には注意しましょう
A154: 142 | B154: 引火性液体 | C154: 区分2 | D154: 1 | E154: 5 | F154: NO | G154: NO | K154: 5 | L154: Ⅳ | M154: 引火性液体区分21NONO | N154: 引火性が高いため、至急着火源の除去、換気を行いましょう。
A155: 143 | B155: 引火性液体 | C155: 区分2 | D155: =D154 -> 1 | E155: 5 | F155: NO | G155: YES | K155: 4 | L155: Ⅳ | M155: 引火性液体区分21NOYES | N155: 引火性が高いため、至急着火源の除去、換気を行いましょう。
A156: 144 | B156: 引火性液体 | C156: 区分2 | D156: 1 | E156: 5 | F156: YES | G156: NO | K156: 4 | L156: Ⅳ | M156: 引火性液体区分21YESNO | N156: 引火性が高いため、至急着火源の除去、換気を行いましょう。
A157: 145 | B157: 引火性液体 | C157: 区分2 | D157: =D156 -> 1 | E157: 5 | F157: YES | G157: YES | K157: 3 | L157: Ⅲ | M157: 引火性液体区分21YESYES | N157: 引火性が高いため、着火源の除去、換気を徹底しましょう。
A158: 146 | B158: 引火性液体 | C158: 区分2 | D158: 2 | E158: 5 | F158: NO | G158: NO | K158: 5 | L158: Ⅳ | M158: 引火性液体区分22NONO | N158: 引火性が高いため、至急着火源の除去、換気を行いましょう。
A159: 147 | B159: 引火性液体 | C159: 区分2 | D159: =D158 -> 2 | E159: 5 | F159: NO | G159: YES | K159: 4 | L159: Ⅳ | M159: 引火性液体区分22NOYES | N159: 引火性が高いため、至急着火源の除去、換気を行いましょう。
A160: 148 | B160: 引火性液体 | C160: 区分2 | D160: 2 | E160: 5 | F160: YES | G160: NO | K160: 4 | L160: Ⅳ | M160: 引火性液体区分22YESNO | N160: 引火性が高いため、至急着火源の除去、換気を行いましょう。
A161: 149 | B161: 引火性液体 | C161: 区分2 | D161: =D160 -> 2 | E161: 5 | F161: YES | G161: YES | K161: 3 | L161: Ⅲ | M161: 引火性液体区分22YESYES | N161: 引火性が高いため、着火源の除去、換気を徹底しましょう。
A162: 150 | B162: 引火性液体 | C162: 区分2 | D162: 3 | E162: 4 | F162: NO | G162: NO | K162: 4 | L162: Ⅳ | M162: 引火性液体区分23NONO | N162: 引火性が高いため、至急着火源の除去、換気を行いましょう。
A163: 151 | B163: 引火性液体 | C163: 区分2 | D163: =D162 -> 3 | E163: 4 | F163: NO | G163: YES | K163: 3 | L163: Ⅲ | M163: 引火性液体区分23NOYES | N163: 引火性が高いため、着火源の除去、換気を徹底しましょう。
A164: 152 | B164: 引火性液体 | C164: 区分2 | D164: 3 | E164: 4 | F164: YES | G164: NO | K164: 3 | L164: Ⅲ | M164: 引火性液体区分23YESNO | N164: 引火性が高いため、着火源の除去、換気を徹底しましょう。
A165: 153 | B165: 引火性液体 | C165: 区分2 | D165: =D164 -> 3 | E165: 4 | F165: YES | G165: YES | K165: 2 | L165: Ⅱ | M165: 引火性液体区分23YESYES | N165: 引火性が高いため、着火源の除去、換気などの管理を引き続き実施しましょう。
A166: 154 | B166: 引火性液体 | C166: 区分2 | D166: 4 | E166: 3 | F166: NO | G166: NO | K166: 3 | L166: Ⅲ | M166: 引火性液体区分24NONO | N166: 引火性が高いため、着火源の除去、換気を徹底しましょう。
A167: 155 | B167: 引火性液体 | C167: 区分2 | D167: =D166 -> 4 | E167: 3 | F167: NO | G167: YES | K167: 2 | L167: Ⅱ | M167: 引火性液体区分24NOYES | N167: 引火性が高いため、着火源の除去、換気などの管理を引き続き実施しましょう。
A168: 156 | B168: 引火性液体 | C168: 区分2 | D168: 4 | E168: 3 | F168: YES | G168: NO | K168: 2 | L168: Ⅱ | M168: 引火性液体区分24YESNO | N168: 引火性が高いため、着火源の除去、換気などの管理を引き続き実施しましょう。
A169: 157 | B169: 引火性液体 | C169: 区分2 | D169: =D168 -> 4 | E169: 3 | F169: YES | G169: YES | K169: 1 | L169: Ⅰ | M169: 引火性液体区分24YESYES | N169: 引火性が高いため、着火源の除去、換気には注意しましょう
A170: 158 | B170: 引火性液体 | C170: 区分2 | D170: 5 | E170: 2 | F170: NO | G170: NO | K170: 2 | L170: Ⅱ | M170: 引火性液体区分25NONO | N170: 引火性が高いため、着火源の除去、換気などの管理を引き続き実施しましょう。
A171: 159 | B171: 引火性液体 | C171: 区分2 | D171: =D170 -> 5 | E171: 2 | F171: NO | G171: YES | K171: 1 | L171: Ⅰ | M171: 引火性液体区分25NOYES | N171: 引火性が高いため、着火源の除去、換気には注意しましょう
A172: 160 | B172: 引火性液体 | C172: 区分2 | D172: 5 | E172: 2 | F172: YES | G172: NO | K172: 1 | L172: Ⅰ | M172: 引火性液体区分25YESNO | N172: 引火性が高いため、着火源の除去、換気には注意しましょう
A173: 161 | B173: 引火性液体 | C173: 区分2 | D173: 5 | E173: 2 | F173: YES | G173: YES | K173: 0 | L173: Ⅰ | M173: 引火性液体区分25YESYES | N173: 引火性が高いため、着火源の除去、換気には注意しましょう
A174: 162 | B174: 引火性液体 | C174: operation temp>flash point | D174: 1 | E174: 5 | F174: NO | G174: NO | K174: 5 | L174: Ⅳ | M174: 引火性液体operation temp>flash point1NONO | N174: 引火するおそれがあるため、至急着火源の除去、換気を行いましょう。
A175: 163 | B175: 引火性液体 | C175: operation temp>flash point | D175: =D174 -> 1 | E175: 5 | F175: NO | G175: YES | K175: 4 | L175: Ⅳ | M175: 引火性液体operation temp>flash point1NOYES | N175: 引火するおそれがあるため、至急着火源の除去、換気を行いましょう。
A176: 164 | B176: 引火性液体 | C176: operation temp>flash point | D176: 1 | E176: 5 | F176: YES | G176: NO | K176: 4 | L176: Ⅳ | M176: 引火性液体operation temp>flash point1YESNO | N176: 引火するおそれがあるため、至急着火源の除去、換気を行いましょう。
A177: 165 | B177: 引火性液体 | C177: operation temp>flash point | D177: =D176 -> 1 | E177: 5 | F177: YES | G177: YES | K177: 3 | L177: Ⅲ | M177: 引火性液体operation temp>flash point1YESYES | N177: 引火するおそれがあるため、着火源の除去、換気を徹底しましょう。
A178: 166 | B178: 引火性液体 | C178: operation temp>flash point | D178: 2 | E178: 5 | F178: NO | G178: NO | K178: 5 | L178: Ⅳ | M178: 引火性液体operation temp>flash point2NONO | N178: 引火するおそれがあるため、至急着火源の除去、換気を行いましょう。
A179: 167 | B179: 引火性液体 | C179: operation temp>flash point | D179: =D178 -> 2 | E179: 5 | F179: NO | G179: YES | K179: 4 | L179: Ⅳ | M179: 引火性液体operation temp>flash point2NOYES | N179: 引火するおそれがあるため、至急着火源の除去、換気を行いましょう。
A180: 168 | B180: 引火性液体 | C180: operation temp>flash point | D180: 2 | E180: 5 | F180: YES | G180: NO | K180: 4 | L180: Ⅳ | M180: 引火性液体operation temp>flash point2YESNO | N180: 引火するおそれがあるため、至急着火源の除去、換気を行いましょう。
A181: 169 | B181: 引火性液体 | C181: operation temp>flash point | D181: =D180 -> 2 | E181: 5 | F181: YES | G181: YES | K181: 3 | L181: Ⅲ | M181: 引火性液体operation temp>flash point2YESYES | N181: 引火するおそれがあるため、着火源の除去、換気を徹底しましょう。
A182: 170 | B182: 引火性液体 | C182: operation temp>flash point | D182: 3 | E182: 4 | F182: NO | G182: NO | K182: 4 | L182: Ⅳ | M182: 引火性液体operation temp>flash point3NONO | N182: 引火するおそれがあるため、至急着火源の除去、換気を行いましょう。
A183: 171 | B183: 引火性液体 | C183: operation temp>flash point | D183: =D182 -> 3 | E183: 4 | F183: NO | G183: YES | K183: 3 | L183: Ⅲ | M183: 引火性液体operation temp>flash point3NOYES | N183: 引火するおそれがあるため、着火源の除去、換気を徹底しましょう。
A184: 172 | B184: 引火性液体 | C184: operation temp>flash point | D184: 3 | E184: 4 | F184: YES | G184: NO | K184: 3 | L184: Ⅲ | M184: 引火性液体operation temp>flash point3YESNO | N184: 引火するおそれがあるため、着火源の除去、換気を徹底しましょう。
A185: 173 | B185: 引火性液体 | C185: operation temp>flash point | D185: =D184 -> 3 | E185: 4 | F185: YES | G185: YES | K185: 2 | L185: Ⅱ | M185: 引火性液体operation temp>flash point3YESYES | N185: 引火するおそれがあるため、着火源の除去、換気などの管理を引き続き実施しましょう。
A186: 174 | B186: 引火性液体 | C186: operation temp>flash point | D186: 4 | E186: 3 | F186: NO | G186: NO | K186: 3 | L186: Ⅲ | M186: 引火性液体operation temp>flash point4NONO | N186: 引火するおそれがあるため、着火源の除去、換気を徹底しましょう。
A187: 175 | B187: 引火性液体 | C187: operation temp>flash point | D187: =D186 -> 4 | E187: 3 | F187: NO | G187: YES | K187: 2 | L187: Ⅱ | M187: 引火性液体operation temp>flash point4NOYES | N187: 引火するおそれがあるため、着火源の除去、換気などの管理を引き続き実施しましょう。
A188: 176 | B188: 引火性液体 | C188: operation temp>flash point | D188: 4 | E188: 3 | F188: YES | G188: NO | K188: 2 | L188: Ⅱ | M188: 引火性液体operation temp>flash point4YESNO | N188: 引火するおそれがあるため、着火源の除去、換気などの管理を引き続き実施しましょう。
A189: 177 | B189: 引火性液体 | C189: operation temp>flash point | D189: =D188 -> 4 | E189: 3 | F189: YES | G189: YES | K189: 1 | L189: Ⅰ | M189: 引火性液体operation temp>flash point4YESYES | N189: 引火するおそれがあるため、着火源の除去、換気には注意しましょう
A190: 178 | B190: 引火性液体 | C190: operation temp>flash point | D190: 5 | E190: 2 | F190: NO | G190: NO | K190: 2 | L190: Ⅱ | M190: 引火性液体operation temp>flash point5NONO | N190: 引火するおそれがあるため、着火源の除去、換気などの管理を引き続き実施しましょう。
A191: =A190+1 -> 179 | B191: 引火性液体 | C191: operation temp>flash point | D191: =D190 -> 5 | E191: 2 | F191: NO | G191: YES | K191: 1 | L191: Ⅰ | M191: 引火性液体operation temp>flash point5NOYES | N191: 引火するおそれがあるため、着火源の除去、換気には注意しましょう
A192: 180 | B192: 引火性液体 | C192: operation temp>flash point | D192: 5 | E192: 2 | F192: YES | G192: NO | K192: 1 | L192: Ⅰ | M192: 引火性液体operation temp>flash point5YESNO | N192: 引火するおそれがあるため、着火源の除去、換気には注意しましょう
A193: 181 | B193: 引火性液体 | C193: operation temp>flash point | D193: 5 | E193: 2 | F193: YES | G193: YES | K193: 0 | L193: Ⅰ | M193: 引火性液体operation temp>flash point5YESYES | N193: 引火するおそれがあるため、着火源の除去、換気には注意しましょう
A194: 182 | B194: 引火性液体 | C194: 区分3 | D194: 1 | E194: 4 | F194: NO | G194: NO | K194: 4 | L194: Ⅳ | M194: 引火性液体区分31NONO | N194: 引火するおそれがあるため、至急着火源の除去、換気を行いましょう。
A195: 183 | B195: 引火性液体 | C195: 区分3 | D195: =D194 -> 1 | E195: 4 | F195: NO | G195: YES | K195: 3 | L195: Ⅲ | M195: 引火性液体区分31NOYES | N195: 引火するおそれがあるため、着火源の除去、換気を徹底しましょう。
A196: 184 | B196: 引火性液体 | C196: 区分3 | D196: 1 | E196: 4 | F196: YES | G196: NO | K196: 3 | L196: Ⅲ | M196: 引火性液体区分31YESNO | N196: 引火するおそれがあるため、着火源の除去、換気を徹底しましょう。
A197: 185 | B197: 引火性液体 | C197: 区分3 | D197: =D196 -> 1 | E197: 4 | F197: YES | G197: YES | K197: 2 | L197: Ⅱ | M197: 引火性液体区分31YESYES | N197: 引火するおそれがあるため、着火源の除去、換気などの管理を引き続き実施しましょう。
A198: 186 | B198: 引火性液体 | C198: 区分3 | D198: 2 | E198: 3 | F198: NO | G198: NO | K198: 3 | L198: Ⅲ | M198: 引火性液体区分32NONO | N198: 引火するおそれがあるため、着火源の除去、換気を徹底しましょう。
A199: 187 | B199: 引火性液体 | C199: 区分3 | D199: =D198 -> 2 | E199: 3 | F199: NO | G199: YES | K199: =E199-COUNTIF($F199:$I199,"YES") -> 2 | L199: =IF(K199>=4,"Ⅳ",IF(K199=3,"Ⅲ",IF(K199=2,"Ⅱ","Ⅰ"))) -> Ⅱ | M199: 引火性液体区分32NOYES | N199: 引火するおそれがあるため、着火源の除去、換気などの管理を引き続き実施しましょう。
A200: 188 | B200: 引火性液体 | C200: 区分3 | D200: 2 | E200: 3 | F200: YES | G200: NO | K200: 2 | L200: Ⅱ | M200: 引火性液体区分32YESNO | N200: 引火するおそれがあるため、着火源の除去、換気などの管理を引き続き実施しましょう。
... 209 more rows

Sheet Result_List (hidden)

Sheet Substance_List (hidden)
C1: 1 | D1: 2 | E1: 3 | F1: 4 | G1: 5 | H1: 6 | I1: 7 | J1: 8 | K1: 9 | L1: 10 | M1: 11 | N1: 12 | O1: 13 | P1: 14 | Q1: 15 | R1: 16 | S1: 17 | T1: 18 | U1: 19 | V1: 20 | W1: 21 | X1: 22 | Y1: 23 | Z1: 24 | AA1: 25 | AB1: 26 | AC1: 27 | AD1: 28 | AE1: 29 | AF1: 30 | AG1: 31 | AH1: 32 | AI1: 33 | AJ1: 34 | AK1: 35 | AL1: 36 | AM1: 37 | AN1: 38 | AO1: 39 | AP1: 40 | AQ1: 41 | AR1: 42 | AS1: 43 | AT1: 44 | AU1: 45 | AV1: 46 | AW1: 47 | AX1: 48 | AY1: 49 | AZ1: 50 | BA1: 51 | BB1: 52 | BC1: 53 | BD1: 54 | BE1: 55 | BF1: 56 | BG1: 57 | BH1: 58 | BI1: 59 | BJ1: 60 | BK1: 61 | BL1: 62 | BM1: 63 | BN1: 64
H2: GHS分類 | AM2: 日本産業衛生学会 | AT2: ACGIH TLV | BE2: 物化性状
H3: 物理化学的危険性 | X3: 人健康有害性 | AM3: 許容濃度 | AO3: 最大許容濃度 | AT3: TWA | AV3: STEL | AX3: C | BE3: 性状 | BF3: 沸点 | BG3: 分子量 | BH3: 水／オクタノール分配係数（log Kow） | BI3: 引火点 | BJ3: 水溶解度 | BL3: 蒸気圧
C4: CAS | D4: 物質名称 | E4: GHS分類結果_ID | F4: 分類年度 | G4: 分類種類 | H4: 爆発物 | I4: 可燃性／引火性ガス（化学的に不安定なガスを含む） | J4: エアゾール | K4: 支燃性／酸化性ガス | L4: 高圧ガス | M4: 引火性液体 | N4: 可燃性固体 | O4: 自己反応性化学品 | P4: 自然発火性液体 | Q4: 自然発火性固体 | R4: 自己発熱性化学品 | S4: 水反応可燃性化学品 | T4: 酸化性液体 | U4: 酸化性固体 | V4: 有機過酸化物 | W4: 金属腐食性物質 | X4: 急性毒性（経口） | Y4: 急性毒性（経皮） | Z4: 急性毒性（吸入：ガス） | AA4: 急性毒性（吸入：蒸気） | AB4: 急性毒性（吸入：粉塵、ミスト） | AC4: 皮膚腐食性／刺激性 | AD4: 眼に対する重篤な損傷性／眼刺激性 | AE4: 呼吸器感作性 | AF4: 皮膚感作性 | AG4: 生殖細胞変異原性 | AH4: 発がん性 | AI4: 生殖毒性 | AJ4: 特定標的臓器毒性（単回暴露） | AK4: 特定標的臓器毒性（反復暴露） | AL4: 吸引性呼吸器有害性 | AM4: ppm | AN4: mg/m3 | AO4: ppm | AP4: mg/m3 | AQ4: 備考 | AR4: 皮膚吸収 | AS4: 提案年度 | AT4: ppm | AU4: mg/m3 | AV4: ppm | AW4: mg/m3 | AX4: ppm | AY4: mg/m3 | AZ4: 備考 | BA4: 分子量 | BB4: Skin | BC4: ドキュメンテーション採用年 | BD4: 備考 | BJ4: 値 | BK4: 単位 | BL4: 値 | BM4: 単位
A5: =COUNTIF($C$5:$C5,$C5) -> 1 | B5: =COUNTIF($C:$C,$C5) -> 1 | C5: 50-00-0 | D5: ホルムアルデヒド | E5: H29-B-039 | F5: 平成29年度 | G5: 再分類・見直し | I5: 区分1 | L5: 液化ガス | X5: 区分4 | Y5: 区分3 | Z5: 区分2 | AC5: 区分2 | AD5: 区分2 | AE5: 区分1 | AF5: 区分1 | AG5: 区分2 | AH5: 区分1 | AJ5: 区分1 | AK5: 区分1 | AM5: 0.1 | AN5: 0.12 | AO5: 0.2 | AP5: 0.24 | AS5: 2007 | AT5: 0.1 | AV5: 0.3 | BA5: 30.03 | BC5: 2016 | BE5: Liquid | BF5: 98 | BG5: 30.03 | BH5: 0.35 | BI5: 85 | BJ5: 400 | BK5: g/L | BL5: 518.6 | BM5: kPa
A6: =COUNTIF($C$5:$C6,$C6) -> 1 | B6: 1 | C6: 50-01-1 | D6: グアニジン・塩酸塩 | E6: 20A2071 | F6: 平成20年度 | G6: 新規分類 | X6: 区分4 | AC6: 区分2 | AD6: 区分2 | BE6: Solid | BG6: 95.53 | BJ6: 228 | BK6: g/100mL | BL6: 1.76e-06 | BM6: mmHg
A7: =COUNTIF($C$5:$C7,$C7) -> 1 | B7: 1 | C7: 50-06-6 | D7: 5-エチル-5-フェニル-2,4,6（1H,3H,5H）-ピリミジントリオン | E7: 519 | F7: 平成18年度 | G7: 新規分類 | X7: 区分3 | AG7: 区分1 | AH7: 区分2 | AI7: 区分2 | AJ7: 区分3 | AK7: 区分1 | BE7: Solid | BG7: 232.24 | BH7: 1.47 | BJ7: 1110 | BK7: mg/L | BL7: 1.98e-12 | BM7: mmHg
A8: =COUNTIF($C$5:$C8,$C8) -> 1 | B8: 1 | C8: 50-18-0 | D8: シクロホスファミド無水物 | E8: 21A3731 | F8: 平成21年度 | G8: 新規分類 | X8: 区分3 | AG8: 区分1 | AH8: 区分1 | AI8: 区分1 | AJ8: 区分1 | AK8: 区分1 | BE8: Solid | BH8: 0.63 | BI8: 112 | BJ8: 40000 | BK8: mg/L | BL8: 4.45e-05 | BM8: mmHg
A9: =COUNTIF($C$5:$C9,$C9) -> 1 | B9: 1 | C9: 50-21-5 | D9: 乳酸（DL-, L-, D-） | E9: 24A6053 | F9: 平成24年度 | G9: 新規分類 | AC9: 区分1 | AD9: 区分1 | BE9: Liquid | BF9: 216.6 | BH9: -0.62 | BI9: 110 | BJ9: 876 | BK9: g/L | BL9: 0.00308 | BM9: mmHg
A10: =COUNTIF($C$5:$C10,$C10) -> 1 | B10: 1 | C10: 50-29-3 | D10: 1,1,1-トリクロロ-2,2-ビス (4-クロロフェニル) エタン (DDT) | E10: H28-B-029, C-040B | F10: 平成28年度 | G10: 再分類・見直し | X10: 区分3 | Y10: 区分3 | AD10: 区分2 | AG10: 区分1 | AH10: 区分1 | AI10: 区分1 | AJ10: 区分1 | AK10: 区分1 | AU10: 1 | BA10: 354.5 | BC10: 1979 | BE10: Solid | BF10: 260 | BG10: 354.49 | BH10: 6.36 | BI10: 72 | BJ10: 0.025 | BK10: mg/L | BL10: 2e-05 | BM10: Pa
A11: =COUNTIF($C$5:$C11,$C11) -> 1 | B11: 1 | C11: 50-31-7 | D11: 2,3,6-トリクロロ安息香酸 | E11: 24A6054 | F11: 平成24年度 | G11: 新規分類 | X11: 区分4 | BE11: Solid | BG11: 225.46 | BH11: 2.71 | BJ11: 7700 | BK11: mg/L | BL11: 0.00055 | BM11: mmHg
A12: =COUNTIF($C$5:$C12,$C12) -> 1 | B12: 1 | C12: 50-32-8 | D12: ベンゾ[a]ピレン | E12: 23B5503 | F12: 平成23年度 | G12: 再分類・見直し | AG12: 区分1 | AH12: 区分1 | AI12: 区分1 | AK12: 区分2 | BA12: 252.3 | BC12: 1990 | BE12: Solid | BF12: 495 | BG12: 252.31 | BH12: 6.13 | BJ12: 0.00162 | BK12: mg/L | BL12: 5.49e-09 | BM12: mmHg
A13: =COUNTIF($C$5:$C13,$C13) -> 1 | B13: 1 | C13: 50-44-2 | D13: 6-メルカプトプリン | E13: 22A4116 | F13: 平成22年度 | G13: 新規分類 | X13: 区分3 | AG13: 区分1 | AI13: 区分1 | AJ13: 区分1 | AK13: 区分1 | BE13: Solid | BH13: 0.01 | BJ13: 6848 | BK13: mg/L | BL13: 1.43e-06 | BM13: mmHg
A14: =COUNTIF($C$5:$C14,$C14) -> 1 | B14: 1 | C14: 50-78-2 | D14: アセチルサリチル酸 | E14: H26-B-005 / - | F14: 平成26年度 | G14: 再分類・見直し | X14: 区分4 | AD14: 区分2 | AE14: 区分1 | AI14: 区分1 | AJ14: 区分1 | AK14: 区分1 | AU14: 5 | BA14: 180.15 | BC14: 1977 | BE14: Solid | BG14: 180.16 | BH14: 1.19 | BI14: 250 | BJ14: 0.33 | BK14: g/100mL | BL14: 0.004 | BM14: Pa
A15: =COUNTIF($C$5:$C15,$C15) -> 1 | B15: 1 | C15: 51-21-8 | D15: 5-フルオロウラシル | E15: 22A4093 | F15: 平成22年度 | G15: 新規分類 | X15: 区分3 | AG15: 区分2 | AI15: 区分1 | AK15: 区分1 | BE15: Solid | BH15: -0.89 | BL15: 2.68e-06 | BM15: mmHg
A16: =COUNTIF($C$5:$C16,$C16) -> 1 | B16: 1 | C16: 51-28-5 | D16: 2,4-ジニトロフェノール | E16: 419 | F16: 平成18年度 | G16: 新規分類 | H16: 等級1.1 | X16: 区分2 | Y16: 区分1 | AC16: 区分2 | AG16: 区分2 | AI16: 区分2 | AJ16: 区分1 | AK16: 区分1 | BE16: Solid | BG16: 184.11 | BH16: 1.67 | BJ16: 6 | BK16: g/L | BL16: 2e-05 | BM16: mmHg
A17: =COUNTIF($C$5:$C17,$C17) -> 1 | B17: 1 | C17: 51-48-9 | D17: チロキシン | E17: 24A6024 | F17: 平成24年度 | G17: 新規分類 | AI17: 区分2 | BE17: Solid | BG17: 776.87 | BH17: 4.12 | BJ17: 0.000105 | BK17: mg/L | BL17: 1.24e-17 | BM17: mmHg
A18: =COUNTIF($C$5:$C18,$C18) -> 1 | B18: 1 | C18: 51-52-5 | D18: 2,3-ジヒドロ-6-プロピル-2-チオキソ-4（1H）-ピリミジノン | E18: 533 | F18: 平成18年度 | G18: 新規分類 | X18: 区分4 | AH18: 区分2 | AI18: 区分2 | AK18: 区分1 | BE18: Solid | BG18: 170.23 | BH18: 0.98 | BI18: 300 | BL18: 6.92e-08 | BM18: mmHg
A19: =COUNTIF($C$5:$C19,$C19) -> 1 | B19: 1 | C19: 51-55-8 | D19: アトロピン | E19: 20A2072 | F19: 平成20年度 | G19: 新規分類 | X19: 区分4 | AJ19: 区分1 | BE19: Solid | BG19: 289.37 | BH19: 1.83 | BJ19: 2200 | BK19: mg/L | BL19: 1.95e-08 | BM19: mmHg
A20: =COUNTIF($C$5:$C20,$C20) -> 1 | B20: 1 | C20: 51-75-2 | D20: ビス（2-クロロエチル）メチルアミン（ナイトロジェンマスタード） | E20: 1 | F20: 平成19年度 | G20: 有害物 | X20: 区分2 | Y20: 区分1 | AA20: 区分1 | AC20: 区分1 | AD20: 区分1 | AG20: 区分1 | AH20: 区分1 | AJ20: 区分2 | BE20: Liquid | BF20: 87 | BG20: 156.05 | BH20: 0.91 | BL20: 65.1 | BM20: mmHg
A21: =COUNTIF($C$5:$C21,$C21) -> 1 | B21: 1 | C21: 51-79-6 | D21: ウレタン | E21: 23B5504 | F21: 平成23年度 | G21: 再分類・見直し | X21: 区分4 | Y21: 区分4 | AG21: 区分2 | AH21: 区分1 | AI21: 区分2 | AJ21: 区分3 | AK21: 区分2 | BC21: 未設定(2017年現在） | BE21: Solid | BF21: 184 | BG21: 89.09 | BH21: -0.15 | BI21: 92 | BJ21: 485000 | BK21: mg/L | BL21: 0.262 | BM21: mmHg
A22: =COUNTIF($C$5:$C22,$C22) -> 1 | B22: 1 | C22: 52-24-4 | D22: チオテパ | E22: 21A3737 | F22: 平成21年度 | G22: 新規分類 | X22: 区分2 | AG22: 区分1 | AH22: 区分1 | AI22: 区分1 | AJ22: 区分2 | AK22: 区分1 | BE22: Solid | BH22: 0.53 | BJ22: 17510 | BK22: mg/L | BL22: 0.00845 | BM22: mmHg
A23: =COUNTIF($C$5:$C23,$C23) -> 1 | B23: 1 | C23: 52-51-7 | D23: 2‐ブロモ‐2‐ニトロプロパン‐1,3‐ジオール（別名ブロノポル） | E23: 20A2139 | F23: 平成20年度 | G23: 新規分類 | N23: 区分2 | O23: タイプG | X23: 区分4 | AB23: 区分2 | AC23: 区分2 | AD23: 区分1 | AJ23: 区分3 | AK23: 区分2 | BE23: Solid | BG23: 199.99 | BH23: -1.01 | BJ23: 200000 | BK23: mg/L | BL23: 1.26e-05 | BM23: mmHg
A24: =COUNTIF($C$5:$C24,$C24) -> 1 | B24: 1 | C24: 52-68-6 | D24: ジメチル=2,2,2-トリクロロ-1-ヒドロキシエチルホスホナート（別名トリクロルホン又はＤＥＰ） | E24: H27-B-013/C-034B_P | F24: 平成27年度 | G24: 再分類・見直し | X24: 区分4 | AB24: 区分3 | AD24: 区分2 | AF24: 区分1 | AG24: 区分1 | AI24: 区分1 | AJ24: 区分1 | AK24: 区分1 | AM24: 0.2 | AR24: Skin | AS24: 2010 | AU24: 1 | BA24: 257.6 | BC24: 2003 | BE24: Solid | BG24: 257.44 | BH24: 0.51 | BI24: 117 | BJ24: 15.4 | BK24: g/100mL | BL24: 7.8e-06 | BM24: mmHg
A25: =COUNTIF($C$5:$C25,$C25) -> 1 | B25: 1 | C25: 52-86-8 | D25: ハロペリドール | E25: 24A6027 | F25: 平成24年度 | G25: 新規分類 | X25: 区分4 | AI25: 区分1 | AJ25: 区分1 | AK25: 区分1 | BE25: Solid | BG25: 375.87 | BH25: 4.3 | BJ25: 14 | BK25: mg/L | BL25: 4.85e-11 | BM25: mmHg
A26: =COUNTIF($C$5:$C26,$C26) -> 1 | B26: 1 | C26: 52-90-4 | D26: L-システイン | E26: 24A6023 | F26: 平成24年度 | G26: 新規分類 | X26: 区分4 | BE26: Solid | BH26: -2.49 | BJ26: 28 | BK26: g/100mL | BL26: 2.07e-06 | BM26: mmHg
A27: =COUNTIF($C$5:$C27,$C27) -> 1 | B27: 1 | C27: 53-16-7 | D27: 1,3,5(10)エストラトリエン-3-オール-17-オン (別名：エストロン) | E27: H29-A-013 | F27: 平成29年度 | G27: 新規分類 | AH27: 区分1 | AI27: 区分1 | AK27: 区分1 | BG27: 270.37
A28: =COUNTIF($C$5:$C28,$C28) -> 1 | B28: 1 | C28: 53-19-0 | D28: 1,1-ジクロロ-2-(2-クロロフェニル)-2-(4-クロロフェニル)エタン (別名：o,p'-DDD、ミトタン) | E28: H29-A-010 | F28: 平成29年度 | G28: 新規分類 | AJ28: 区分1 | AK28: 区分1 | BG28: 320.05
A29: =COUNTIF($C$5:$C29,$C29) -> 1 | B29: 1 | C29: 53-70-3 | D29: ジベンゾ［a,h］アントラセン | E29: 2 | F29: 平成19年度 | G29: 有害物 | AG29: 区分2 | AH29: 区分1 | BE29: Solid | BG29: 278.34656 | BH29: 6.75 | BJ29: 0.0025 | BK29: mg/L | BL29: 9.55e-10 | BM29: mmHg
A30: =COUNTIF($C$5:$C30,$C30) -> 1 | B30: 1 | C30: 54-11-5 | D30: ニコチン | E30: 608 | F30: 平成18年度 | G30: 新規分類 | X30: 区分1 | Y30: 区分1 | AI30: 区分2 | AJ30: 区分1 | AU30: 0.5 | BA30: 162.23 | BB30: Skin | BC30: 1992 | BE30: Liquid | BF30: 247 | BG30: 162.23 | BH30: 1.17 | BI30: 95 | BJ30: 1000000 | BK30: mg/L | BL30: 0.006 | BM30: kPa
A31: =COUNTIF($C$5:$C31,$C31) -> 1 | B31: 1 | C31: 54-64-8 | D31: チメロサール | E31: 1055 | F31: 平成18年度 | G31: 新規分類 | X31: 区分3 | AD31: 区分2 | AF31: 区分1 | AG31: 区分2 | AH31: 区分2 | AI31: 区分1 | AJ31: 区分2 | AK31: 区分1 | BE31: Solid | BH31: -1.88 | BJ31: 500000 | BK31: mg/L | BL31: 6.71e-13 | BM31: mmHg
A32: =COUNTIF($C$5:$C32,$C32) -> 1 | B32: 1 | C32: 54-85-3 | D32: イソニアジド | E32: 23A5063 | F32: 平成23年度 | G32: 新規分類 | X32: 区分4 | AI32: 区分2 | AJ32: 区分1 | AK32: 区分1 | BE32: Solid | BH32: -0.7 | BI32: 250 | BJ32: 140000 | BK32: mg/L | BL32: 4.64e-05 | BM32: mmHg
A33: =COUNTIF($C$5:$C33,$C33) -> 1 | B33: 1 | C33: 55-18-5 | D33: N-ニトロソジエチルアミン | E33: 3 | F33: 平成19年度 | G33: 有害物 | X33: 区分3 | AG33: 区分2 | AH33: 区分1 | BE33: Liquid | BF33: 176.9 | BH33: 0.48 | BL33: 0.86 | BM33: mmHg
A34: =COUNTIF($C$5:$C34,$C34) -> 1 | B34: 1 | C34: 55-38-9 | D34: チオりん酸O,O-ジメチル-O-（3-メチル-チオフェニル） | E34: 41 | F34: 平成18年度 | G34: 新規分類 | X34: 区分4 | Y34: 区分4 | AB34: 区分3 | AI34: 区分2 | AJ34: 区分1 | AK34: 区分1 | AN34: 0.2 | AR34: Skin | AS34: 1989 | AU34: 0.05 | BA34: 278.34 | BB34: Skin | BC34: 2005 | BE34: Liquid | BF34: 90 | BG34: 278.32 | BH34: 4.09 | BI34: 170 | BJ34: 8 | BK34: mg/L | BL34: 3.9 | BM34: mPa
A35: =COUNTIF($C$5:$C35,$C35) -> 1 | B35: 1 | C35: 55-56-1 | D35: クロルヘキシジン | E35: 21A3619 | F35: 平成21年度 | G35: 新規分類 | AD35: 区分1 | AE35: 区分1 | AF35: 区分1 | BE35: Solid | BH35: 0.08 | BL35: 1.92e-16 | BM35: mmHg
A36: =COUNTIF($C$5:$C36,$C36) -> 1 | B36: 1 | C36: 55-63-0 | D36: ニトログリセリン | E36: 24B6512 | F36: 平成24年度 | G36: 再分類・見直し | H36: 不安定爆発物 | X36: 区分4 | AF36: 区分1 | AI36: 区分2 | AJ36: 区分1 | AK36: 区分1 | AO36: 0.05 | AP36: 0.46 | AR36: Skin | AS36: 1986 | AT36: 0.05 | BA36: 227.09 | BB36: Skin | BC36: 1980 | BE36: Liquid | BF36: 125 | BG36: 227.09 | BH36: 1.62 | BL36: 0.03 | BM36: Pa
A37: =COUNTIF($C$5:$C37,$C37) -> 1 | B37: 1 | C37: 55-68-5 | D37: 硝酸フェニル水銀 | E37: 23A5113 | F37: 平成23年度 | G37: 新規分類 | AC37: 区分2 | AF37: 区分1 | AI37: 区分2 | AK37: 区分1 | BC37: 未設定(2017年現在） | BE37: Solid | BH37: 1.27 | BJ37: 344 | BK37: mg/L | BL37: 6.21e-05 | BM37: mmHg
A38: =COUNTIF($C$5:$C38,$C38) -> 1 | B38: 1 | C38: 55-98-1 | D38: ブスルファン | E38: 21A3728 | F38: 平成21年度 | G38: 新規分類 | X38: 区分3 | AG38: 区分1 | AH38: 区分1 | AI38: 区分1 | AJ38: 区分2 | AK38: 区分2 | BE38: Solid | BH38: -0.52 | BJ38: 6900000 | BK38: mg/L | BL38: 6.56e-06 | BM38: mmHg
A39: =COUNTIF($C$5:$C39,$C39) -> 1 | B39: 1 | C39: 56-04-2 | D39: 6-メチル-2-チオウラシル（別名メチルチオウラシル） | E39: 4 | F39: 平成19年度 | G39: 有害物 | X39: 区分4 | AH39: 区分2 | AK39: 区分1 | BE39: Solid | BH39: 1.45 | BL39: 0.00108 | BM39: mmHg
A40: =COUNTIF($C$5:$C40,$C40) -> 1 | B40: 1 | C40: 56-18-8 | D40: 3, 3'-イミノジ（プロピルアミン） | E40: 21A3693 | F40: 平成21年度 | G40: 新規分類 | M40: 区分4 | AC40: 区分1 | AD40: 区分1 | BE40: Liquid | BF40: 238 | BH40: -1.15 | BI40: 80 | BJ40: 1000000 | BK40: mg/L | BL40: 0.0862 | BM40: mmHg
A41: =COUNTIF($C$5:$C41,$C41) -> 1 | B41: 1 | C41: 56-23-5 | D41: 四塩化炭素 | E41: 21B3130 | F41: 平成21年度 | G41: 再分類・見直し | AA41: 区分4 | AC41: 区分2 | AD41: 区分2 | AH41: 区分2 | AI41: 区分2 | AJ41: 区分1 | AK41: 区分1 | AM41: 5 | AN41: 31 | AR41: Skin | AS41: 1991 | AT41: 5 | AV41: 10 | BA41: 153.84 | BB41: Skin | BC41: 1990 | BE41: Liquid | BF41: 76.5 | BG41: 153.82 | BH41: 2.83 | BJ41: 793 | BK41: mg/L | BL41: 12.2 | BM41: kPa
A42: =COUNTIF($C$5:$C42,$C42) -> 1 | B42: 1 | C42: 56-35-9 | D42: トリブチルスズオキシド | E42: 1275 | F42: 平成18年度 | G42: 新規分類 | X42: 区分3 | Y42: 区分3 | AB42: 区分2 | AC42: 区分2 | AD42: 区分2 | AJ42: 区分3 | AK42: 区分1 | BE42: Liquid | BF42: 173 | BG42: 596.07 | BH42: 3.19 | BI42: 190 | BL42: 7.5e-06 | BM42: mmHg
A43: =COUNTIF($C$5:$C43,$C43) -> 1 | B43: 1 | C43: 56-36-0 | D43: トリブチルスズアセテート | E43: 1274 | F43: 平成18年度 | G43: 新規分類 | X43: 区分3 | AD43: 区分2 | AI43: 区分2 | AJ43: 区分1 | AK43: 区分1 | BE43: Solid | BF43: 118 | BG43: 349.08 | BH43: 3.24 | BJ43: 65 | BK43: mg/L | BL43: 0.0027 | BM43: mmHg
A44: =COUNTIF($C$5:$C44,$C44) -> 1 | B44: 1 | C44: 56-38-2 | D44: パラチオン | E44: H28-B-027, C-038B | F44: 平成28年度 | G44: 再分類・見直し | X44: 区分2 | Y44: 区分2 | AB44: 区分1 | AD44: 区分2 | AH44: 区分2 | AI44: 区分2 | AJ44: 区分1 | AK44: 区分1 | AN44: 0.1 | AR44: Skin | AS44: 1980 | AU44: 0.05 | BA44: 291.27 | BB44: Skin | BC44: 2000 | BE44: Liquid | BF44: 375 | BG44: 291.26 | BH44: 3.8 | BI44: 120 | BJ44: 0.002 | BK44: g/100mL | BL44: 0.89 | BM44: mPa
A45: =COUNTIF($C$5:$C45,$C45) -> 1 | B45: 1 | C45: 56-53-1 | D45: ジエチルスチルベストロール | E45: 21A3734 | F45: 平成21年度 | G45: 新規分類 | AG45: 区分2 | AH45: 区分1 | AI45: 区分1 | AJ45: 区分2 | AK45: 区分1 | BE45: Solid | BG45: 268.35 | BH45: 5.07 | BJ45: 0.1 | BK45: g/L | BL45: 1.41e-08 | BM45: mmHg
A46: =COUNTIF($C$5:$C46,$C46) -> 1 | B46: 1 | C46: 56-55-3 | D46: ベンゾ[a]アントラセン | E46: 23B5531 | F46: 平成23年度 | G46: 再分類・見直し | AG46: 区分2 | AH46: 区分2 | BA46: 228.3 | BC46: 1990 | BE46: Solid | BF46: 438 | BG46: 228.29 | BH46: 5.79 | BJ46: 0.0094 | BK46: mg/L | BL46: 2.1e-07 | BM46: mmHg
A47: =COUNTIF($C$5:$C47,$C47) -> 1 | B47: 1 | C47: 56-72-4 | D47: O-3-クロロ-4-メチルクマリン-7-イルO,O-ジエチルホスホロチオアート【クマホス】 | E47: H27-B-014/C-035B_P | F47: 平成27年度 | G47: 再分類・見直し | X47: 区分2 | Y47: 区分3 | AB47: 区分2 | AD47: 区分2 | AJ47: 区分1 | AK47: 区分1 | AU47: 0.05 | BA47: 362.8 | BB47: Skin | BC47: 2005 | BE47: Solid | BL47: 0.013 | BM47: mPa
A48: =COUNTIF($C$5:$C48,$C48) -> 1 | B48: 1 | C48: 56-75-7 | D48: 2,2-ジクロロ-N-[2-ヒドロキシ-1-（ヒドロキシメチル）-2-（4-ニトロフェニル）エチル]アセトアミド | E48: 527 | F48: 平成18年度 | G48: 新規分類 | AG48: 区分1 | AH48: 区分1 | AI48: 区分2 | AK48: 区分1 | BE48: Solid | BG48: 323.13 | BH48: 1.14 | BJ48: 2500 | BK48: mg/L | BL48: 1.73e-12 | BM48: mmHg
A49: =COUNTIF($C$5:$C49,$C49) -> 1 | B49: 1 | C49: 56-93-9 | D49: 塩化トリメチルベンジルアンモニウム | E49: H29-B-081 | F49: 平成29年度 | G49: 再分類・見直し | X49: 区分3 | AG49: 区分2 | AJ49: 区分1 | AK49: 区分2 | BE49: Solid | BG49: 185.7 | BH49: -2.17 | BL49: 2.18e-07 | BM49: mmHg
A50: =COUNTIF($C$5:$C50,$C50) -> 1 | B50: 1 | C50: 57-06-7 | D50: イソチオシアン酸アリル | E50: 25B0057 | F50: 平成25年度 | G50: 再分類・見直し | M50: 区分3 | O50: タイプG | X50: 区分4 | Y50: 区分2 | AC50: 区分2 | AF50: 区分1 | AK50: 区分2 | BE50: Liquid | BF50: 151 | BH50: 2.11 | BI50: 46 | BJ50: 2000 | BK50: mg/L | BL50: 0.493 | BM50: kPa
A51: =COUNTIF($C$5:$C51,$C51) -> 1 | B51: 1 | C51: 57-09-0 | D51: ヘキサデシルトリメチルアンモニウム=ブロミド | E51: 554 | F51: 平成19年度 | G51: 再分類・見直し | X51: 区分4 | AC51: 区分2 | AD51: 区分2 | AI51: 区分2 | AJ51: 区分1 | BE51: Solid | BG51: 364.45 | BH51: 2.26 | BI51: 244
A52: =COUNTIF($C$5:$C52,$C52) -> 1 | B52: 1 | C52: 57-14-7 | D52: 1,1-ジメチルヒドラジン（別名：ジメチルヒドラジン） | E52: 22B4526 | F52: 平成22年度 | G52: 再分類・見直し | M52: 区分2 | X52: 区分3 | Y52: 区分4 | AA52: 区分2 | AC52: 区分2 | AD52: 区分2 | AG52: 区分2 | AH52: 区分2 | AJ52: 区分1 | AK52: 区分1 | AT52: 0.01 | BA52: 60.12 | BB52: Skin | BC52: 1993 | BE52: Liquid | BF52: 64 | BG52: 60.1 | BH52: -1.19 | BI52: -15 | BJ52: 1000000 | BK52: mg/L | BL52: 157 | BM52: mmHg
A53: =COUNTIF($C$5:$C53,$C53) -> 1 | B53: 1 | C53: 57-24-9 | D53: ストリキニーネ | E53: 601 | F53: 平成18年度 | G53: 新規分類 | X53: 区分1 | AJ53: 区分1 | AK53: 区分1 | AU53: 0.15 | BA53: 334.4 | BC53: 1992 | BE53: Solid | BF53: 270 | BG53: 334.42 | BH53: 1.68 | BJ53: 160 | BK53: mg/L | BL53: 2.93e-09 | BM53: mmHg
A54: =COUNTIF($C$5:$C54,$C54) -> 1 | B54: 1 | C54: 57-41-0 | D54: 5,5-ジフェニル-2,4-イミダゾリジンジオン | E54: 537 | F54: 平成18年度 | G54: 新規分類 | X54: 区分4 | AG54: 区分1 | AH54: 区分2 | AI54: 区分1 | AJ54: 区分1 | AK54: 区分1 | BE54: Solid | BG54: 252.27 | BH54: 2.47 | BJ54: 32 | BK54: mg/L | BL54: 1.2e-10 | BM54: mmHg
A55: =COUNTIF($C$5:$C55,$C55) -> 1 | B55: 1 | C55: 57-47-6 | D55: フィゾスチグミン | E55: 23A5114 | F55: 平成23年度 | G55: 新規分類 | X55: 区分1 | AJ55: 区分2 | AK55: 区分2 | BE55: Solid | BG55: 275.35 | BH55: 1.58 | BJ55: 7760 | BK55: mg/L | BL55: 3.66e-06 | BM55: mmHg
A56: =COUNTIF($C$5:$C56,$C56) -> 1 | B56: 1 | C56: 57-57-8 | D56: ベータ-プロピオラクトン | E56: 944 | F56: 平成18年度 | G56: 新規分類 | M56: 区分4 | X56: 区分3 | AA56: 区分1 | AC56: 区分2 | AD56: 区分1 | AG56: 区分1 | AH56: 区分2 | AJ56: 区分3 | AT56: 0.5 | BA56: 72.06 | BC56: 1992 | BE56: Liquid | BF56: 155 | BG56: 72.06 | BH56: 0.8 | BJ56: 370 | BK56: g/L | BL56: 0.3 | BM56: kPa
A57: =COUNTIF($C$5:$C57,$C57) -> 1 | B57: 1 | C57: 57-74-9 | D57: 1, 2, 4, 5, 6, 7, 8, 8‐オクタクロロ‐2, 3, 3a, 4, 7, 7a‐ヘキサヒドロ‐4, 7‐メタノ‐1H‐インデン （別名クロルデン） | E57: 21B3005 | F57: 平成21年度 | G57: 再分類・見直し | X57: 区分4 | Y57: 区分3 | AC57: 区分2 | AD57: 区分2 | AG57: 区分2 | AH57: 区分2 | AI57: 区分2 | AJ57: 区分1 | AK57: 区分1 | AU57: 0.5 | BA57: 409.8 | BB57: Skin | BC57: 1985 | BE57: Solid | BF57: 175 | BG57: 409.78 | BH57: 6.16 | BI57: 56 | BJ57: 0.1 | BK57: mg/L
A58: =COUNTIF($C$5:$C58,$C58) -> 1 | B58: 1 | C58: 58-08-2 | D58: カフェイン | E58: 20A2140 | F58: 平成20年度 | G58: 新規分類 | X58: 区分3 | AB58: 区分4 | AI58: 区分1 | BE58: Solid | BG58: 194.19 | BJ58: 21600 | BK58: mg/L | BL58: 7.3e-09 | BM58: mmHg
A59: =COUNTIF($C$5:$C59,$C59) -> 1 | B59: 1 | C59: 58-55-9 | D59: テオフィリン | E59: 24A6026 | F59: 平成24年度 | G59: 新規分類 | X59: 区分3 | AI59: 区分2 | AJ59: 区分1 | AK59: 区分1 | BE59: Solid | BG59: 180.17 | BH59: -0.02 | BJ59: 0.8 | BK59: g/100mL | BL59: 5.12e-09 | BM59: mmHg
A60: =COUNTIF($C$5:$C60,$C60) -> 1 | B60: 1 | C60: 58-89-9 | D60: 1,2,3,4,5,6-ヘキサクロロシクロヘキサン (リンデン) | E60: H28-B-030, C-041B | F60: 平成28年度 | G60: 再分類・見直し | X60: 区分3 | Y60: 区分3 | AB60: 区分4 | AD60: 区分2 | AH60: 区分1 | AI60: 区分1 | AJ60: 区分1 | AK60: 区分1 | BE60: Solid | BF60: 288 | BG60: 290.83 | BH60: 3.72 | BK60: mg/L | BL60: 0.12 | BM60: Pa
A61: =COUNTIF($C$5:$C61,$C61) -> 1 | B61: 1 | C61: 58-90-2 | D61: 2,3,4,6‐テトラクロロフェノール | E61: 20A2002 | F61: 平成20年度 | G61: 新規分類 | X61: 区分3 | Y61: 区分3 | AK61: 区分2 | BE61: Solid | BG61: 231.89 | BH61: 4.45 | BI61: 100 | BL61: 0.000666 | BM61: mmHg
A62: =COUNTIF($C$5:$C62,$C62) -> 1 | B62: 1 | C62: 59-50-7 | D62: 4-クロロ-3-メチルフェノール | E62: 1-129 | F62: 平成20年度 | G62: 新規分類 | X62: 区分4 | AD62: 区分1 | AF62: 区分1 | AJ62: 区分3 | AK62: 区分2 | BE62: Solid | BG62: 142.58 | BH62: 3.1 | BI62: 118 | BJ62: 0.38 | BK62: g/100mL | BL62: 8 | BM62: Pa
A63: =COUNTIF($C$5:$C63,$C63) -> 1 | B63: 1 | C63: 59-66-5 | D63: アセタゾラミド | E63: H29-A-007 | F63: 平成29年度 | G63: 新規分類 | AI63: 区分1 | AK63: 区分1
A64: =COUNTIF($C$5:$C64,$C64) -> 1 | B64: 1 | C64: 59-88-1 | D64: 塩化フェニルヒドラジニウム | E64: 5 | F64: 平成19年度 | G64: 有害物 | O64: タイプG | BE64: Solid | BH64: -2.27 | BL64: 6.51e-08 | BM64: mmHg
A65: =COUNTIF($C$5:$C65,$C65) -> 1 | B65: 1 | C65: 59-89-2 | D65: N-ニトロソモルホリン | E65: 879 | F65: 平成18年度 | G65: 新規分類 | X65: 区分4 | AG65: 区分2 | AH65: 区分2 | BC65: 未設定(2017年現在） | BE65: Solid | BF65: 139 | BG65: 116.12 | BH65: -0.44 | BJ65: 1000 | BK65: g/L | BL65: 4.8 | BM65: Pa
A66: =COUNTIF($C$5:$C66,$C66) -> 1 | B66: 1 | C66: 60-00-4 | D66: エチレンジアミン四酢酸 | E66: 23B5581 | F66: 平成23年度 | G66: 再分類・見直し | AD66: 区分2 | AI66: 区分2 | AK66: 区分1 | BE66: Solid | BG66: 292.25 | BH66: -3.86 | BI66: 100 | BJ66: 0.2 | BK66: g/100mL | BL66: 4.98e-13 | BM66: mmHg
A67: =COUNTIF($C$5:$C67,$C67) -> 1 | B67: 1 | C67: 60-09-3 | D67: パラ-フェニルアゾアニリン | E67: 22B4519 | F67: 平成22年度 | G67: 再分類・見直し | X67: 区分4 | AF67: 区分1 | AG67: 区分2 | AH67: 区分2 | AJ67: 区分2 | BC67: 未設定(2017年現在） | BE67: Solid | BG67: 197.24 | BH67: 3.41 | BJ67: 32 | BK67: mg/L | BL67: 1.4e-06 | BM67: mmHg
A68: =COUNTIF($C$5:$C68,$C68) -> 1 | B68: 1 | C68: 60-11-7 | D68: p-ジメチルアミノアゾベンゼン | E68: H29-B-007 | F68: 平成29年度 | G68: 再分類・見直し | AC68: 区分2 | AG68: 区分2 | AH68: 区分2 | BC68: 未設定(2017年現在） | BE68: Solid | BG68: 225.29 | BH68: 4.58 | BK68: mg/L | BL68: 3.3e-07 | BM68: mmHg
A69: =COUNTIF($C$5:$C69,$C69) -> 1 | B69: =COUNTIF($C:$C,$C69) -> 1 | C69: 60-12-8 | D69: ベータ-フェニルエチルアルコール（別名：フェネチルアルコール） | E69: 22A4113 | F69: 平成22年度 | G69: 新規分類 | X69: 区分4 | Y69: 区分3 | AD69: 区分2 | AI69: 区分2 | AJ69: 区分2 | BE69: Liquid | BF69: 219.8 | BG69: 122.17 | BH69: 1.36 | BI69: 96 | BL69: 0.0868 | BM69: mmHg
A70: =COUNTIF($C$5:$C70,$C70) -> 1 | B70: 1 | C70: 60-23-1 | D70: システアミン | E70: 25A0077 | F70: 平成25年度 | G70: 新規分類 | X70: 区分4 | AI70: 区分1 | BE70: Solid
A71: =COUNTIF($C$5:$C71,$C71) -> 1 | B71: 1 | C71: 60-24-2 | D71: 2-メルカプトエタノール | E71: 21A3577 | F71: 平成21年度 | G71: 新規分類 | M71: 区分4 | X71: 区分3 | Y71: 区分2 | AC71: 区分2 | AD71: 区分2 | AJ71: 区分2 | AK71: 区分2 | BE71: Liquid | BF71: 157 | BG71: 78.13 | BH71: -0.2 | BL71: 1.756 | BM71: mmHg
A72: =COUNTIF($C$5:$C72,$C72) -> 1 | B72: 1 | C72: 60-29-7 | D72: ジエチルエーテル | E72: H29-B-121 | F72: 平成29年度 | G72: 再分類・見直し | M72: 区分1 | X72: 区分4 | AD72: 区分2 | AI72: 区分2 | AJ72: 区分3 | AK72: 区分1 | AM72: 400 | AN72: 1200 | AS72: 1997 | AT72: 400 | AV72: 500 | BA72: 74.12 | BC72: 1966 | BE72: Liquid | BF72: 34.6 | BG72: 74.12 | BH72: 0.87 | BJ72: 60 | BK72: g/L | BL72: 170 | BM72: kPa
A73: =COUNTIF($C$5:$C73,$C73) -> 1 | B73: 1 | C73: 60-34-4 | D73: メチルヒドラジン | E73: - / R-138 | F73: 平成26年度 | G73: 再分類・見直し | M73: 区分1 | O73: タイプG | X73: 区分2 | Y73: 区分2 | AA73: 区分1 | AC73: 区分2 | AD73: 区分2 | AH73: 区分2 | AI73: 区分2 | AJ73: 区分1 | AK73: 区分1 | AT73: 0.01 | BA73: 46.07 | BB73: Skin | BC73: 1991 | BE73: Liquid | BF73: 87.5 | BG73: 46.07 | BH73: -1.05 | BJ73: 1000000 | BK73: mg/L | BL73: 4.8 | BM73: kPa
A74: =COUNTIF($C$5:$C74,$C74) -> 1 | B74: 1 | C74: 60-35-5 | D74: アセトアミド | E74: 25B0058 | F74: 平成25年度 | G74: 再分類・見直し | AH74: 区分2 | AI74: 区分2 | AT74: 1 | BA74: 59.07 | BC74: 2016 | BE74: Solid | BF74: 222 | BG74: 59.07 | BH74: -1.26 | BJ74: 2250000 | BK74: mg/L
A75: =COUNTIF($C$5:$C75,$C75) -> 1 | B75: 1 | C75: 60-51-5 | D75: ジチオりん酸O,O-ジメチル-S-[（N-メチルカルバモイル）メチル] | E75: 279 | F75: 平成18年度 | G75: 新規分類 | X75: 区分3 | Y75: 区分3 | AD75: 区分2 | AJ75: 区分1 | AK75: 区分2 | BE75: Solid | BG75: 229.25 | BH75: 0.5 | BI75: 107 | BJ75: 16 | BK75: g/L | BL75: 7.5e-06 | BM75: mmHg
A76: =COUNTIF($C$5:$C76,$C76) -> 1 | B76: 1 | C76: 60-57-1 | D76: 1,2,3,4,10,10-ヘキサクロロ-6,7-エポキシ-1,4,4a,5,6,7,8,8a-オクタヒドロ-エキソ-1,4-エンド-5,8-ジメタノナフタレン【ディルドリン】 | E76: 610 | F76: 平成18年度 | G76: 新規分類 | X76: 区分1 | Y76: 区分1 | AB76: 区分1 | AI76: 区分1 | AJ76: 区分1 | AK76: 区分1 | AU76: 0.1 | BA76: 380.93 | BB76: Skin | BC76: 2009 | BE76: Solid | BF76: 330 | BG76: 380.91 | BH76: 5.4 | BJ76: 0.195 | BK76: mg/L | BL76: 0.0004 | BM76: Pa
A77: =COUNTIF($C$5:$C77,$C77) -> 1 | B77: 1 | C77: 61-68-7 | D77: メフェナム酸 | E77: 24A6028 | F77: 平成24年度 | G77: 新規分類 | X77: 区分4 | AI77: 区分2 | AJ77: 区分1 | AK77: 区分1 | BE77: Solid | BH77: 5.12 | BJ77: 0.0041 | BK77: g/100mL | BL77: 4.63e-07 | BM77: mmHg
A78: =COUNTIF($C$5:$C78,$C78) -> 1 | B78: 1 | C78: 61-73-4 | D78: メチレンブルー | E78: 23A5151 | F78: 平成23年度 | G78: 新規分類 | X78: 区分4 | AI78: 区分2 | AJ78: 区分1 | AK78: 区分1 | BE78: Solid | BH78: 5.85 | BJ78: 43600 | BK78: mg/L | BL78: 1.3e-07 | BM78: mmHg
A79: =COUNTIF($C$5:$C79,$C79) -> 1 | B79: 1 | C79: 61-82-5 | D79: 3‐アミノ‐1H‐1, 2, 4‐トリアゾール （別名アミトロール） | E79: 21B3075 | F79: 平成21年度 | G79: 再分類・見直し | AD79: 区分2 | AF79: 区分1 | AI79: 区分2 | AK79: 区分1 | AU79: 0.2 | BA79: 84.08 | BC79: 1983 | BE79: Solid | BG79: 84.08 | BH79: -0.969 | BJ79: 280100 | BK79: mg/L | BL79: 3.3e-05 | BM79: mPa
A80: =COUNTIF($C$5:$C80,$C80) -> 1 | B80: 1 | C80: 62-23-7 | D80: p-ニトロ安息香酸 | E80: 25B0052 | F80: 平成25年度 | G80: 再分類・見直し | X80: 区分4 | AD80: 区分2 | AI80: 区分1 | AJ80: 区分2 | BE80: Solid | BG80: 167.12 | BH80: 1.89 | BI80: 201 | BJ80: 200 | BK80: mg/L
A81: =COUNTIF($C$5:$C81,$C81) -> 1 | B81: 1 | C81: 62-38-4 | D81: 酢酸フェニル水銀 | E81: 21B3079 | F81: 平成21年度 | G81: 再分類・見直し | X81: 区分2 | AC81: 区分1 | AD81: 区分1 | AF81: 区分1 | AI81: 区分2 | AK81: 区分1 | BC81: 未設定(2017年現在） | BE81: Solid | BG81: 336.74 | BH81: 0.71 | BI81: 37.8 | BJ81: 0.44 | BK81: g/100mL | BL81: 6e-06 | BM81: mmHg
A82: =COUNTIF($C$5:$C82,$C82) -> 1 | B82: 1 | C82: 62-44-2 | D82: 4'-エトキシアセトアニリド | E82: 23B5505 | F82: 平成23年度 | G82: 再分類・見直し | X82: 区分4 | AG82: 区分2 | AH82: 区分1 | AJ82: 区分1 | AK82: 区分1 | BE82: Solid | BG82: 179.22 | BH82: 1.58 | BJ82: 766 | BK82: mg/L | BL82: 6.92e-07 | BM82: mmHg
A83: =COUNTIF($C$5:$C83,$C83) -> 1 | B83: 1 | C83: 62-50-0 | D83: メタンスルホン酸エチル | E83: 21B3059 | F83: 平成21年度 | G83: 再分類・見直し | X83: 区分4 | AG83: 区分1 | AH83: 区分2 | AI83: 区分2 | BC83: 未設定(2017年現在） | BE83: Liquid | BF83: 213 | BG83: 124.15 | BH83: -0.2 | BI83: 100 | BJ83: 135 | BK83: g/L | BL83: 0.206 | BM83: mmHg
A84: =COUNTIF($C$5:$C84,$C84) -> 1 | B84: 1 | C84: 62-53-3 | D84: アニリン | E84: H28-B-024, C-035B | F84: 平成28年度 | G84: 再分類・見直し | M84: 区分4 | X84: 区分4 | Y84: 区分3 | AA84: 区分2 | AB84: 区分4 | AD84: 区分2 | AF84: 区分1 | AG84: 区分2 | AH84: 区分2 | AI84: 区分2 | AJ84: 区分1 | AK84: 区分1 | AM84: 1 | AN84: 3.8 | AR84: Skin | AS84: 1988 | AT84: 2 | BA84: 93.12 | BB84: Skin | BC84: 1979 | BE84: Liquid | BF84: 184 | BG84: 93.13 | BH84: 0.9 | BI84: 76 | BJ84: 3.4 | BK84: g/100mL | BL84: 0.667 | BM84: mmHg
A85: =COUNTIF($C$5:$C85,$C85) -> 1 | B85: 1 | C85: 62-55-5 | D85: チオアセトアミド | E85: 541 | F85: 平成18年度 | G85: 新規分類 | X85: 区分4 | AG85: 区分2 | AH85: 区分2 | AJ85: 区分2 | AK85: 区分1 | BE85: Solid | BG85: 75.13
A86: =COUNTIF($C$5:$C86,$C86) -> 1 | B86: 1 | C86: 62-56-6 | D86: チオ尿素 | E86: H29-B-056 | F86: 平成29年度 | G86: 再分類・見直し | X86: 区分4 | AD86: 区分2 | AF86: 区分1 | AH86: 区分2 | AI86: 区分2 | AJ86: 区分3 | AK86: 区分1 | BC86: 未設定(2017年現在） | BE86: Solid | BG86: 76.12 | BH86: -2.35
A87: =COUNTIF($C$5:$C87,$C87) -> 1 | B87: 1 | C87: 62-73-7 | D87: ジメチル-2,2-ジクロロビニルホスフェイト（別名DDVP） | E87: 23B5502 | F87: 平成23年度 | G87: 再分類・見直し | X87: 区分3 | Y87: 区分2 | AA87: 区分1 | AB87: 区分2 | AC87: 区分2 | AD87: 区分2 | AF87: 区分1 | AH87: 区分2 | AJ87: 区分1 | AK87: 区分1 | AU87: 0.1 | BA87: 220.98 | BB87: Skin | BC87: 1998 | BE87: Liquid | BF87: 140 | BG87: 220.98 | BH87: 1.43 | BI87: 177 | BJ87: 8 | BK87: g/L | BL87: 0.021 | BM87: mbar
A88: =COUNTIF($C$5:$C88,$C88) -> 1 | B88: 1 | C88: 62-74-8 | D88: フルオロ酢酸ナトリウム | E88: 609 | F88: 平成18年度 | G88: 新規分類 | X88: 区分1 | Y88: 区分1 | AJ88: 区分1 | AK88: 区分1 | AU88: 0.05 | BA88: 100.02 | BB88: Skin | BC88: 1992 | BE88: Solid | BG88: 101.02 | BH88: -3.78 | BJ88: 111 | BK88: g/100mL
A89: =COUNTIF($C$5:$C89,$C89) -> 1 | B89: 1 | C89: 62-75-9 | D89: N,N-ジメチルニトロソアミン | E89: H26-B-050 / - | F89: 平成26年度 | G89: 再分類・見直し | M89: 区分4 | X89: 区分2 | AA89: 区分1 | AC89: 区分2 | AD89: 区分2 | AG89: 区分1 | AH89: 区分1 | AI89: 区分2 | AJ89: 区分1 | AK89: 区分1 | BA89: 74.08 | BB89: Skin | BC89: 1992 | BE89: Liquid | BF89: 151 | BG89: 74.08 | BH89: -0.57 | BI89: 61 | BJ89: 1000000 | BK89: mg/L | BL89: 360 | BM89: Pa
A90: =COUNTIF($C$5:$C90,$C90) -> 1 | B90: 1 | C90: 62-76-0 | D90: シュウ酸ナトリウム | E90: 1261 | F90: 平成18年度 | G90: 新規分類 | AD90: 区分2 | BE90: Solid | BH90: -7 | BJ90: 1000000 | BK90: mg/L | BL90: 1.91e-07 | BM90: mmHg
A91: =COUNTIF($C$5:$C91,$C91) -> 1 | B91: 1 | C91: 63-25-2 | D91: N-メチルカルバミン酸1-ナフチル | E91: 73 | F91: 平成18年度 | G91: 新規分類 | X91: 区分4 | AD91: 区分2 | AJ91: 区分1 | AK91: 区分2 | AN91: 5 | AR91: Skin | AS91: 1989 | AU91: 0.5 | BA91: 201.2 | BB91: Skin | BC91: 2007 | BE91: Solid | BF91: 210 | BG91: 201.22 | BH91: 2.36 | BI91: 193 | BJ91: 120 | BK91: mg/L | BL91: 4.16e-05 | BM91: Pa
A92: =COUNTIF($C$5:$C92,$C92) -> 1 | B92: 1 | C92: 63-92-3 | D92: フェノキシベンザミン塩酸塩 | E92: 6 | F92: 平成19年度 | G92: 有害物 | AF92: 区分1 | AH92: 区分2 | AJ92: 区分1 | BE92: Solid
A93: =COUNTIF($C$5:$C93,$C93) -> 1 | B93: 1 | C93: 64-02-8 | D93: エチレンジアミン四酢酸四ナトリウム | E93: 22A4024 | F93: 平成22年度 | G93: 新規分類 | X93: 区分4 | AD93: 区分2 | AJ93: 区分2 | BE93: Solid | BG93: 380.2 | BH93: -13.17 | BI93: 100 | BJ93: 103 | BK93: g/100mL | BL93: 1.49e-12 | BM93: mmHg
A94: =COUNTIF($C$5:$C94,$C94) -> 1 | B94: 1 | C94: 64-04-0 | D94: ベータ-フェニルエチルアミン（別名：フェネチルアミン） | E94: 22A4183 | F94: 平成22年度 | G94: 新規分類 | M94: 区分4 | X94: 区分4 | AC94: 区分1 | AD94: 区分1 | BE94: Liquid | BF94: 195 | BG94: 121.18 | BH94: 1.77 | BI94: 90 | BJ94: 20300 | BK94: mg/L | BL94: 0.0181 | BM94: mmHg
A95: =COUNTIF($C$5:$C95,$C95) -> 1 | B95: 1 | C95: 64-17-5 | D95: エタノール | E95: 25B0007 | F95: 平成25年度 | G95: 再分類・見直し | M95: 区分2 | AD95: 区分2 | AH95: 区分1 | AI95: 区分1 | AJ95: 区分3 | AK95: 区分1 | AV95: 1000 | BA95: 46.07 | BC95: 2008 | BE95: Liquid | BF95: 78.5 | BG95: 46.07 | BH95: -0.31 | BI95: 13 | BJ95: 1000000 | BK95: mg/L | BL95: 59.3 | BM95: mmHg
A96: =COUNTIF($C$5:$C96,$C96) -> 1 | B96: 1 | C96: 64-18-6 | D96: ぎ酸 | E96: H26-B-029 / R-065 | F96: 平成26年度 | G96: 再分類・見直し | M96: 区分3 | X96: 区分4 | AA96: 区分4 | AC96: 区分1 | AD96: 区分1 | AJ96: 区分1 | AK96: 区分2 | AM96: 5 | AN96: 9.4 | AS96: 1978 | AT96: 5 | AV96: 10 | BA96: 46.02 | BC96: 1965 | BE96: Liquid | BF96: 101 | BG96: 46.03 | BH96: -0.54 | BI96: 45 | BJ96: 1000000 | BK96: mg/L
A97: =COUNTIF($C$5:$C97,$C97) -> 1 | B97: 1 | C97: 64-19-7 | D97: 酢酸 | E97: 21B3030 | F97: 平成21年度 | G97: 再分類・見直し | M97: 区分3 | Y97: 区分4 | AC97: 区分1 | AD97: 区分1 | AJ97: 区分1 | AM97: 10 | AN97: 25 | AS97: 1978 | AT97: 10 | AV97: 15 | BA97: 60 | BC97: 2003 | BE97: Liquid | BF97: 118 | BG97: 60.05 | BH97: -0.17 | BI97: 39 | BJ97: 1000000 | BK97: mg/L | BL97: 15.5 | BM97: mmHg
A98: =COUNTIF($C$5:$C98,$C98) -> 1 | B98: 1 | C98: 64-67-5 | D98: 硫酸ジエチル | E98: 1002 | F98: 平成18年度 | G98: 新規分類 | X98: 区分4 | Y98: 区分3 | AC98: 区分1 | AD98: 区分1 | AG98: 区分1 | AH98: 区分1 | AJ98: 区分2 | BC98: 未設定(2017年現在） | BE98: Liquid | BF98: 209 | BG98: 154.18 | BH98: 1.14 | BI98: 104 | BJ98: 7 | BK98: g/L | BL98: 20 | BM98: Pa
A99: =COUNTIF($C$5:$C99,$C99) -> 1 | B99: 1 | C99: 64-69-7 | D99: ヨード酢酸 | E99: 20A2073 | F99: 平成20年度 | G99: 新規分類 | X99: 区分3 | Y99: 区分2 | AC99: 区分1 | AD99: 区分1 | AJ99: 区分2 | AK99: 区分2 | BE99: Solid | BH99: 0.85 | BJ99: 600 | BK99: g/L | BL99: 0.0323 | BM99: mmHg
A100: =COUNTIF($C$5:$C100,$C100) -> 1 | B100: 1 | C100: 65-30-5 | D100: 硫酸ニコチン | E100: 1069 | F100: 平成18年度 | G100: 新規分類 | X100: 区分2 | Y100: 区分1 | AC100: 区分2 | AD100: 区分2 | AI100: 区分2 | AJ100: 区分2 | BE100: Solid | BH100: 0.4 | BL100: 1.96e-11 | BM100: mmHg
A101: =COUNTIF($C$5:$C101,$C101) -> 1 | B101: 1 | C101: 65-45-2 | D101: サリチルアミド | E101: 23A5142 | F101: 平成23年度 | G101: 新規分類 | X101: 区分4 | AI101: 区分2 | AJ101: 区分1 | AK101: 区分1 | BE101: Solid | BG101: 137.14 | BH101: 1.28 | BI101: 182 | BJ101: 2060 | BK101: mg/L | BL101: 6.9e-06 | BM101: mmHg
A102: =COUNTIF($C$5:$C102,$C102) -> 1 | B102: 1 | C102: 65-85-0 | D102: 安息香酸 | E102: 25A0043 | F102: 平成25年度 | G102: 新規分類 | AD102: 区分1 | AI102: 区分2 | AK102: 区分2 | BE102: Solid | BG102: 122.12 | BH102: 1.88 | BI102: 121 | BJ102: 3 | BK102: g/L | BL102: 0.0011 | BM102: hPa
A103: =COUNTIF($C$5:$C103,$C103) -> 1 | B103: 1 | C103: 65-86-1 | D103: オロト酸 | E103: 23A5138 | F103: 平成23年度 | G103: 新規分類 | X103: 区分4 | BE103: Solid | BH103: -0.83 | BJ103: 1820 | BK103: mg/L | BL103: 1e-08 | BM103: mmHg
A104: =COUNTIF($C$5:$C104,$C104) -> 1 | B104: 1 | C104: 66-25-1 | D104: ヘキサナール | E104: 21A3584 | F104: 平成21年度 | G104: 新規分類 | M104: 区分3 | AC104: 区分2 | AD104: 区分2 | AJ104: 区分3 | BE104: Liquid | BF104: 131 | BG104: 100.16 | BH104: 1.78 | BI104: 32 | BJ104: 5640 | BK104: mg/L | BL104: 11.3 | BM104: mmHg
A105: =COUNTIF($C$5:$C105,$C105) -> 1 | B105: 1 | C105: 66-27-3 | D105: メタンスルホン酸メチル | E105: 969 | F105: 平成18年度 | G105: 新規分類 | X105: 区分3 | AG105: 区分1 | AH105: 区分1 | AI105: 区分2 | BC105: 未設定(2017年現在） | BE105: Liquid | BF105: 203 | BG105: 110.13 | BH105: -0.66 | BI105: 104 | BJ105: 200 | BK105: g/L | BL105: 0.31 | BM105: mmHg
A106: =COUNTIF($C$5:$C106,$C106) -> 1 | B106: 1 | C106: 66-32-0 | D106: 硝酸ストリキニーネ | E106: 1060 | F106: 平成18年度 | G106: 新規分類 | X106: 区分2 | AJ106: 区分1 | BE106: Solid | BH106: 0.31 | BJ106: 85 | BK106: mg/L | BL106: 1.47e-15 | BM106: mmHg
A107: =COUNTIF($C$5:$C107,$C107) -> 1 | B107: 1 | C107: 66-76-2 | D107: 4,4'-ジヒドロキシ-3,3'-メチレンジ-2H-クロメン-2-オン | E107: 23A5118 | F107: 平成23年度 | G107: 新規分類 | X107: 区分3 | AJ107: 区分2 | AK107: 区分2 | BE107: Solid | BG107: 336.3 | BH107: 2.07 | BJ107: 128 | BK107: mg/L | BL107: 6.02e-17 | BM107: mmHg
A108: =COUNTIF($C$5:$C108,$C108) -> 1 | B108: 1 | C108: 66-81-9 | D108: シクロヘキシミド | E108: 1232 | F108: 平成18年度 | G108: 新規分類 | X108: 区分1 | AC108: 区分2 | AD108: 区分2 | AG108: 区分2 | AI108: 区分1 | BE108: Solid | BG108: 281.35 | BH108: 0.55 | BJ108: =2.1*1000 -> 2100 | BK108: g/L | BL108: 1.89e-14 | BM108: mmHg
A109: =COUNTIF($C$5:$C109,$C109) -> 1 | B109: 1 | C109: 67-56-1 | D109: メタノール | E109: 21B3012 | F109: 平成21年度 | G109: 再分類・見直し | M109: 区分2 | X109: 区分4 | AD109: 区分2 | AI109: 区分1 | AJ109: 区分1 | AK109: 区分1 | AM109: 200 | AN109: 260 | AR109: Skin | AS109: 1963 | AT109: 200 | AV109: 250 | BA109: 32.04 | BB109: Skin | BC109: 2008 | BE109: Liquid | BF109: 65 | BG109: 32.04 | BH109: -0.66 | BI109: 12 | BJ109: 1000000 | BK109: mg/L | BL109: 95.2 | BM109: mmHg
A110: =COUNTIF($C$5:$C110,$C110) -> 1 | B110: 1 | C110: 67-63-0 | D110: イソプロピルアルコール | E110: 25B0016 | F110: 平成25年度 | G110: 再分類・見直し | M110: 区分2 | AD110: 区分2 | AI110: 区分2 | AJ110: 区分1 | AK110: 区分1 | AO110: 400 | AP110: 980 | AS110: 1987 | AT110: 200 | AV110: 400 | BA110: 60.09 | BC110: 2001 | BE110: Liquid | BF110: 82.3 | BG110: 60.1 | BH110: 0.05 | BI110: 12 | BL110: 4.4 | BM110: kPa
A111: =COUNTIF($C$5:$C111,$C111) -> 1 | B111: 1 | C111: 67-64-1 | D111: アセトン | E111: H26-B-006 / - | F111: 平成26年度 | G111: 再分類・見直し | M111: 区分2 | AD111: 区分2 | AI111: 区分2 | AJ111: 区分3 | AK111: 区分1 | AM111: 200 | AN111: 470 | AS111: 1972 | AT111: 250 | AV111: 500 | BA111: 58.05 | BC111: 2014 | BE111: Liquid | BF111: 56 | BG111: 58.08 | BH111: -0.24 | BI111: -20 | BJ111: 1000000 | BK111: mg/L | BL111: 239.5 | BM111: hPa
A112: =COUNTIF($C$5:$C112,$C112) -> 1 | B112: 1 | C112: 67-66-3 | D112: クロロホルム | E112: 24 | F112: 平成18年度 | G112: 新規分類 | X112: 区分4 | AC112: 区分1 | AD112: 区分1 | AG112: 区分2 | AH112: 区分2 | AI112: 区分2 | AJ112: 区分1 | AK112: 区分1 | AM112: 3 | AN112: 14.7 | AR112: Skin | AS112: 2005 | AT112: 10 | BA112: 119.38 | BC112: 1990 | BE112: Liquid | BF112: 62 | BG112: 119.38 | BH112: 1.97 | BJ112: 0.8 | BK112: g/100mL | BL112: 21.2 | BM112: kPa
A113: =COUNTIF($C$5:$C113,$C113) -> 1 | B113: 1 | C113: 67-72-1 | D113: ヘキサクロロエタン | E113: 936 | F113: 平成18年度 | G113: 新規分類 | AD113: 区分2 | AH113: 区分2 | AK113: 区分2 | AT113: 1 | BA113: 236.74 | BB113: Skin | BC113: 1990 | BE113: Solid | BF113: 183 | BG113: 236.74 | BH113: 3.9 | BJ113: 8 | BK113: mg/L | BL113: 53 | BM113: Pa
A114: =COUNTIF($C$5:$C114,$C114) -> 1 | B114: 1 | C114: 67-97-0 | D114: コレカルシフェロール | E114: 20A2074 | F114: 平成20年度 | G114: 新規分類 | X114: 区分2 | Y114: 区分2 | AI114: 区分1 | BE114: Solid | BH114: 9.48 | BJ114: 1.31e-05 | BK114: mg/L | BL114: 2.41e-09 | BM114: mmHg
A115: =COUNTIF($C$5:$C115,$C115) -> 1 | B115: 1 | C115: 68-11-1 | D115: メルカプト酢酸 | E115: H26-B-106 / R-049 | F115: 平成26年度 | G115: 再分類・見直し | X115: 区分3 | Y115: 区分3 | AB115: 区分4 | AC115: 区分1 | AD115: 区分1 | AF115: 区分1 | AJ115: 区分1 | AK115: 区分2 | AT115: 1 | BA115: 92.12 | BB115: Skin | BC115: 1992 | BE115: Liquid | BF115: 220 | BG115: 92.11 | BH115: 0.09 | BI115: 126 | BJ115: 1000000 | BK115: mg/L | BL115: 0.0021 | BM115: Pa
A116: =COUNTIF($C$5:$C116,$C116) -> 1 | B116: 1 | C116: 68-12-2 | D116: N,N-ジメチルホルムアミド | E116: 20A2376 | F116: 平成20年度 | G116: 再分類・見直し | M116: 区分3 | AA116: 区分3 | AD116: 区分1 | AG116: 区分2 | AH116: 区分1 | AI116: 区分1 | AJ116: 区分1 | AK116: 区分1 | AM116: 10 | AN116: 30 | AR116: Skin | AS116: 1974 | AT116: 10 | BA116: 73.09 | BB116: Skin | BC116: 1995 | BE116: Liquid | BF116: 153 | BG116: 73.09 | BH116: -1.01 | BI116: 58 | BJ116: 1000000 | BK116: mg/L | BL116: 3.87 | BM116: mmHg
A117: =COUNTIF($C$5:$C117,$C117) -> 1 | B117: 1 | C117: 69-72-7 | D117: サリチル酸 | E117: 23A5069 | F117: 平成23年度 | G117: 新規分類 | X117: 区分4 | AC117: 区分2 | AD117: 区分2 | AF117: 区分1 | AI117: 区分2 | AJ117: 区分1 | AK117: 区分1 | BE117: Solid | BG117: 138.12 | BH117: 2.26 | BI117: 157 | BL117: 8.2e-05 | BM117: mmHg
A118: =COUNTIF($C$5:$C118,$C118) -> 1 | B118: 1 | C118: 70-25-7 | D118: N-メチル-N'-ニトロ-N-ニトロソグアニジン | E118: 7 | F118: 平成19年度 | G118: 有害物 | X118: 区分4 | AC118: 区分1 | AD118: 区分1 | AF118: 区分1 | AG118: 区分2 | AH118: 区分1 | BE118: Solid | BH118: 6.75 | BJ118: 0.0025 | BK118: mg/L | BL118: 9.55e-10 | BM118: mmHg
A119: =COUNTIF($C$5:$C119,$C119) -> 1 | B119: 1 | C119: 70-30-4 | D119: 2,2'‐メチレンビス（3,4,6‐トリクロロフェノール）（別名ヘキサクロロフェン） | E119: 20A2003 | F119: 平成20年度 | G119: 新規分類 | X119: 区分3 | AI119: 区分2 | AJ119: 区分1 | AK119: 区分1 | BE119: Solid | BG119: 406.91 | BH119: 7.54 | BI119: 46.1 | BJ119: 140 | BK119: mg/L | BL119: 1.03e-10 | BM119: mmHg
A120: =COUNTIF($C$5:$C120,$C120) -> 1 | B120: 1 | C120: 70-34-8 | D120: 1-フルオロ-2,4-ジニトロベンゼン | E120: 23A5150 | F120: 平成23年度 | G120: 新規分類 | AC120: 区分2 | AF120: 区分1 | BE120: Solid | BH120: 1.83 | BI120: 110 | BJ120: 400 | BK120: mg/L | BL120: 0.0024 | BM120: mmHg
A121: =COUNTIF($C$5:$C121,$C121) -> 1 | B121: 1 | C121: 71-23-8 | D121: ノルマル-プロピルアルコール | E121: 21B3052 | F121: 平成21年度 | G121: 再分類・見直し | M121: 区分2 | AD121: 区分1 | AI121: 区分2 | AJ121: 区分3 | AT121: 100 | BA121: 60.09 | BC121: 2006 | BE121: Liquid | BF121: 97 | BG121: 60.1 | BH121: 0.25 | BI121: 15 | BJ121: 1000000 | BK121: mg/L | BL121: 21 | BM121: mmHg
A122: =COUNTIF($C$5:$C122,$C122) -> 1 | B122: 1 | C122: 71-36-3 | D122: 1-ブタノール | E122: 25B0017 | F122: 平成25年度 | G122: 再分類・見直し | M122: 区分3 | AC122: 区分2 | AD122: 区分2 | AJ122: 区分3 | AK122: 区分1 | AO122: 50 | AP122: 150 | AR122: Skin | AS122: 1987 | AT122: 20 | BA122: 74.12 | BC122: 1998 | BE122: Liquid | BF122: 117 | BG122: 74.12 | BH122: 0.88 | BI122: 29 | BJ122: 63200 | BK122: mg/L | BL122: 0.6 | BM122: kPa
A123: =COUNTIF($C$5:$C123,$C123) -> 1 | B123: 1 | C123: 71-41-0 | D123: 1-ペンタノール | E123: 21A3545 | F123: 平成21年度 | G123: 新規分類 | M123: 区分3 | AC123: 区分2 | AD123: 区分2 | AJ123: 区分2 | BE123: Liquid | BF123: 138 | BG123: 88.15 | BH123: 1.5 | BI123: 33 | BJ123: 22 | BK123: g/L | BL123: 2.2 | BM123: mmHg
A124: =COUNTIF($C$5:$C124,$C124) -> 1 | B124: 1 | C124: 71-43-2 | D124: ベンゼン | E124: - / R-131 | F124: 平成26年度 | G124: 再分類・見直し | M124: 区分2 | X124: 区分4 | AC124: 区分2 | AD124: 区分2 | AG124: 区分2 | AH124: 区分1 | AI124: 区分2 | AJ124: 区分1 | AK124: 区分1 | AL124: 区分1 | AM124: 1 | AQ124: 過剰発がん生涯リスクレベル 103 | AR124: Skin | AS124: 1997 | AT124: 0.5 | AV124: 2.5 | BA124: 78.11 | BB124: Skin | BC124: 1996 | BE124: Liquid | BF124: 80 | BG124: 78.11 | BH124: 2.13 | BJ124: 0.18 | BK124: g/100mL | BL124: 10 | BM124: kPa
A125: =COUNTIF($C$5:$C125,$C125) -> 1 | B125: 1 | C125: 71-48-7 | D125: 酢酸コバルト(Ⅱ) | E125: H28-A-037, C-087A | F125: 平成28年度 | G125: 新規分類 | X125: 区分4 | AD125: 区分2 | AE125: 区分1 | AF125: 区分1 | AH125: 区分2 | AI125: 区分1 | AJ125: 区分2 | AK125: 区分1 | BG125: 177.02
A126: =COUNTIF($C$5:$C126,$C126) -> 1 | B126: 1 | C126: 71-55-6 | D126: 1,1,1-トリクロロエタン | E126: - / R-154 | F126: 平成26年度 | G126: 再分類・見直し | AC126: 区分2 | AD126: 区分2 | AH126: 区分2 | AI126: 区分2 | AJ126: 区分1 | AK126: 区分1 | AM126: 200 | AN126: 1100 | AS126: 1974 | AT126: 350 | AV126: 450 | BA126: 133.42 | BC126: 1992 | BE126: Liquid | BF126: 74.1 | BG126: 133.4 | BH126: 2.47 | BJ126: 1501 | BK126: mg/L | BL126: 124 | BM126: mmHg
A127: =COUNTIF($C$5:$C127,$C127) -> 1 | B127: 1 | C127: 72-20-8 | D127: 1,2,3,4,10,10-ヘキサクロロ-6,7-エポキシ-1,4,4a,5,6,7,8,8a-オクタヒドロ-エンド-1,4-エンド-5,8-ジメタノナフタレン【エンドリン】 | E127: 611 | F127: 平成18年度 | G127: 新規分類 | X127: 区分2 | Y127: 区分1 | AJ127: 区分1 | AK127: 区分1 | AU127: 0.1 | BA127: 380.93 | BB127: Skin | BC127: 1979 | BE127: Solid | BF127: 245 | BG127: 380.91 | BH127: 5.2 | BJ127: 130.25 | BK127: mg/L | BL127: 3e-05 | BM127: Pa
A128: =COUNTIF($C$5:$C128,$C128) -> 1 | B128: 1 | C128: 72-43-5 | D128: 1,1,1-トリクロロ-2,2-ビス（4-メトキシフェニル）エタン【メトキシクロル】 | E128: 858 | F128: 平成18年度 | G128: 新規分類 | AI128: 区分2 | AJ128: 区分2 | AK128: 区分2 | AU128: 10 | BA128: 345.65 | BC128: 1992 | BE128: Solid | BF128: 346 | BG128: 345.65 | BH128: 4.68 | BJ128: 0.1 | BK128: mg/L | BL128: 0.003 | BM128: Pa
A129: =COUNTIF($C$5:$C129,$C129) -> 1 | B129: 1 | C129: 72-54-8 | D129: 1,1-ジクロロ-2,2-ビス(4-クロロフェニル)エタン (別名：p,p'-DDD) | E129: H29-A-011 | F129: 平成29年度 | G129: 新規分類 | X129: 区分3 | Y129: 区分4 | AD129: 区分2 | AH129: 区分1 | BG129: 320.05
A130: =COUNTIF($C$5:$C130,$C130) -> 1 | B130: 1 | C130: 72-55-9 | D130: 1,1-ビス(4-クロロフェニル)-2,2-ジクロロエテン (別名：p,p'-DDE) | E130: H29-A-012 | F130: 平成29年度 | G130: 新規分類 | X130: 区分4 | AH130: 区分1 | AI130: 区分1 | AK130: 区分2 | BG130: 318.03
A131: =COUNTIF($C$5:$C131,$C131) -> 1 | B131: 1 | C131: 72-57-1 | D131: テトラナトリウム=3,3'-[（3,3'-ジメチル-4,4'-ビフェニリレン）ビス（アゾ）]ビス[5-アミノ-4-ヒドロキシ-2,7-ナフタレンジスルホナート]【トリパンブルー】 | E131: 840 | F131: 平成18年度 | G131: 新規分類 | AH131: 区分2 | AI131: 区分2 | BC131: 未設定(2017年現在） | BE131: Solid | BG131: 960.8 | BH131: -0.12 | BJ131: 20 | BK131: g/L | BL131: 1.49e-42 | BM131: Pa
A132: =COUNTIF($C$5:$C132,$C132) -> 1 | B132: 1 | C132: 74-11-3 | D132: パラ-クロロ安息香酸 | E132: 22A4199 | F132: 平成22年度 | G132: 新規分類 | X132: 区分4 | BE132: Solid | BH132: 2.65 | BI132: 238 | BJ132: 72 | BK132: mg/L | BL132: 0.00233 | BM132: mmHg
A133: =COUNTIF($C$5:$C133,$C133) -> 1 | B133: =COUNTIF($C:$C,$C133) -> 1 | C133: 74-31-7 | D133: N , N '-ジフェニル-1, 4-フェニレンジアミン | E133: 21A3581 | F133: 平成21年度 | G133: 新規分類 | AF133: 区分1 | BE133: Solid | BG133: 260.34 | BH133: 4.04 | BJ133: 7 | BK133: mg/L | BL133: 6.35e-09 | BM133: mmHg
A134: =COUNTIF($C$5:$C134,$C134) -> 1 | B134: 1 | C134: 74-82-8 | D134: メタン | E134: 1402 | F134: 平成18年度 | G134: 新規分類 | I134: 区分1 | L134: 圧縮ガス | BE134: Gas | BG134: 16.04 | BH134: 1.09
A135: =COUNTIF($C$5:$C135,$C135) -> 1 | B135: 1 | C135: 74-83-9 | D135: 臭化メチル | E135: 21B3141 | F135: 平成21年度 | G135: 再分類・見直し | I135: 区分1 | L135: 液化ガス | X135: 区分3 | Z135: 区分3 | AC135: 区分2 | AD135: 区分2 | AG135: 区分2 | AI135: 区分2 | AJ135: 区分1 | AK135: 区分1 | AM135: 1 | AN135: 3.89 | AR135: Skin | AS135: 2003 | AT135: 1 | BA135: 94.95 | BB135: Skin | BC135: 1994 | BE135: Gas | BG135: 94.94 | BH135: 1.19
A136: =COUNTIF($C$5:$C136,$C136) -> 1 | B136: 1 | C136: 74-84-0 | D136: エタン | E136: 1403 | F136: 平成18年度 | G136: 新規分類 | I136: 区分1 | L136: 圧縮ガス | AJ136: 区分3 | BE136: Gas | BH136: 1.81 | BI136: -130
A137: =COUNTIF($C$5:$C137,$C137) -> 1 | B137: 1 | C137: 74-85-1 | D137: エチレン | E137: 25B0018 | F137: 平成25年度 | G137: 再分類・見直し | I137: 区分1 | L137: 圧縮ガス | AJ137: 区分3 | AT137: 200 | BA137: 28.05 | BC137: 2001 | BE137: Gas | BG137: 28.05 | BH137: 1.13
A138: =COUNTIF($C$5:$C138,$C138) -> 1 | B138: 1 | C138: 74-86-2 | D138: アセチレン | E138: 1400 | F138: 平成18年度 | G138: 新規分類 | I138: 区分1 | L138: 溶解ガス | AJ138: 区分3 | BE138: Gas | BG138: 26.04 | BH138: 0.37 | BI138: -18
A139: =COUNTIF($C$5:$C139,$C139) -> 1 | B139: 1 | C139: 74-87-3 | D139: クロロメタン（別名塩化メチル） | E139: 21B3120 | F139: 平成21年度 | G139: 再分類・見直し | I139: 区分1 | L139: 液化ガス | X139: 区分4 | Z139: 区分4 | AI139: 区分1 | AJ139: 区分1 | AK139: 区分1 | AM139: 50 | AN139: 100 | AS139: 1984 | AT139: 50 | AV139: 100 | BA139: 50.49 | BB139: Skin | BC139: 1992 | BE139: Gas | BG139: 50.49 | BH139: 0.91 | BI139: -50
A140: =COUNTIF($C$5:$C140,$C140) -> 1 | B140: 1 | C140: 74-88-4 | D140: 沃化メチル | E140: H26-B-132 / - | F140: 平成26年度 | G140: 再分類・見直し | X140: 区分3 | AA140: 区分2 | AC140: 区分2 | AD140: 区分2 | AJ140: 区分1 | AK140: 区分1 | AT140: 2 | BA140: 141.95 | BB140: Skin | BC140: 1978 | BE140: Liquid | BF140: 42.5 | BG140: 141.94 | BH140: 1.5 | BJ140: 14 | BK140: g/L | BL140: 405 | BM140: mmHg
A141: =COUNTIF($C$5:$C141,$C141) -> 1 | B141: 1 | C141: 74-89-5 | D141: メチルアミン | E141: 1-423 | F141: 平成20年度 | G141: 再分類・見直し | I141: 区分1 | L141: 液化ガス | X141: 区分3 | Z141: 区分4 | AC141: 区分1 | AD141: 区分1 | AJ141: 区分1 | AK141: 区分2 | AM141: 10 | AN141: 13 | AS141: 1979 | AT141: 5 | AV141: 15 | BA141: 31.06 | BC141: 2012 | BE141: Gas | BG141: 31.06 | BH141: -0.71 | BI141: -10
A142: =COUNTIF($C$5:$C142,$C142) -> 1 | B142: 1 | C142: 74-90-8 | D142: シアン化水素 | E142: - / R-098 | F142: 平成26年度 | G142: 再分類・見直し | M142: 区分1 | X142: 区分1 | Y142: 区分1 | AA142: 区分1 | AD142: 区分2 | AJ142: 区分1 | AK142: 区分1 | AM142: 5 | AN142: 5.5 | AR142: Skin | AS142: 1990 | AX142: 4.7 | AZ142: CNとして | BA142: 27.03 | BB142: Skin | BC142: 1991 | BE142: Gas | BG142: 27.03 | BH142: -0.25 | BI142: -18
A143: =COUNTIF($C$5:$C143,$C143) -> 1 | B143: 1 | C143: 74-93-1 | D143: メチルメルカプタン (別名：メタンチオール) | E143: H26-B-104 / R-047 | F143: 平成26年度 | G143: 再分類・見直し | I143: 区分1 | L143: 液化ガス | Z143: 区分3 | AC143: 区分2 | AD143: 区分2 | AJ143: 区分1 | AK143: 区分1 | AT143: 0.5 | BA143: 48.11 | BC143: 2003 | BE143: Gas | BG143: 48.1 | BH143: 0.65 | BI143: -17.78
A144: =COUNTIF($C$5:$C144,$C144) -> 1 | B144: 1 | C144: 74-95-3 | D144: ジブロモメタン | E144: H29-B-066 | F144: 平成29年度 | G144: 再分類・見直し | AA144: 区分4 | AC144: 区分2 | AD144: 区分2 | AI144: 区分2 | AJ144: 区分3 | BE144: Liquid | BF144: 97 | BH144: 1.7 | BJ144: 11.7 | BK144: g/L | BL144: 4.7 | BM144: kPa
A145: =COUNTIF($C$5:$C145,$C145) -> 1 | B145: 1 | C145: 74-96-4 | D145: 臭化エチル | E145: 593 | F145: 平成18年度 | G145: 新規分類 | M145: 区分2 | X145: 区分4 | AD145: 区分2 | AH145: 区分2 | AI145: 区分2 | AJ145: 区分1 | AK145: 区分2 | AT145: 5 | BA145: 108.98 | BB145: Skin | BC145: 1990 | BE145: Liquid | BF145: 38.4 | BG145: 108.97 | BH145: 1.61 | BJ145: 0.91 | BK145: g/100mL | BL145: 51 | BM145: kPa
A146: =COUNTIF($C$5:$C146,$C146) -> 1 | B146: 1 | C146: 74-97-5 | D146: ブロモ（クロロ）メタン | E146: H29-B-102 | F146: 平成29年度 | G146: 再分類・見直し | AA146: 区分4 | AC146: 区分2 | AD146: 区分2 | AI146: 区分2 | AJ146: 区分1 | AK146: 区分2 | AT146: 200 | BA146: 129.39 | BC146: 2008 | BE146: Liquid | BF146: 68 | BG146: 129.38 | BH146: 1.41 | BJ146: 116.7 | BK146: g/L | BL146: 15.6 | BM146: kPa
A147: =COUNTIF($C$5:$C147,$C147) -> 1 | B147: 1 | C147: 74-98-6 | D147: プロパン | E147: 1404 | F147: 平成18年度 | G147: 新規分類 | I147: 区分1 | L147: 液化ガス | AJ147: 区分3 | BE147: Gas | BG147: 44.1 | BH147: 2.35 | BI147: -104
A148: =COUNTIF($C$5:$C148,$C148) -> 1 | B148: 1 | C148: 74-99-7 | D148: メチルアセチレン【プロピン】 | E148: 971 | F148: 平成18年度 | G148: 新規分類 | I148: 区分1 | L148: 液化ガス | AJ148: 区分3 | AT148: 1000 | BA148: 40.07 | BC148: 1956 | BE148: Gas | BG148: 40.06 | BH148: 0.94
A149: =COUNTIF($C$5:$C149,$C149) -> 1 | B149: 1 | C149: 75-00-3 | D149: クロロエタン | E149: H27-B-049/C-085B_P | F149: 平成27年度 | G149: 再分類・見直し | I149: 区分1 | L149: 液化ガス | AC149: 区分2 | AD149: 区分2 | AH149: 区分2 | AJ149: 区分1 | AK149: 区分1 | AM149: 100 | AN149: 260 | AS149: 1993 | AT149: 100 | BA149: 64.52 | BB149: Skin | BC149: 1992 | BE149: Gas | BG149: 64.51 | BH149: 1.54 | BI149: -50
A150: =COUNTIF($C$5:$C150,$C150) -> 1 | B150: 1 | C150: 75-01-4 | D150: 塩化ビニル | E150: 21B3089 | F150: 平成21年度 | G150: 再分類・見直し | I150: 区分1 | L150: 液化ガス | AC150: 区分2 | AG150: 区分2 | AH150: 区分1 | AI150: 区分2 | AJ150: 区分1 | AK150: 区分1 | AM150: 1.5 | AQ150: 評価値 | AS150: 2017 | AT150: 1 | BA150: 62.5 | BC150: 1997 | BE150: Gas | BG150: 62.5 | BH150: 1.58 | BI150: -78
A151: =COUNTIF($C$5:$C151,$C151) -> 1 | B151: 1 | C151: 75-02-5 | D151: 弗化ビニル | E151: 922 | F151: 平成18年度 | G151: 新規分類 | I151: 区分1 | L151: 液化ガス | AG151: 区分2 | AH151: 区分1 | AJ151: 区分3 | AK151: 区分2 | AT151: 1 | BA151: 46.05 | BC151: 1996 | BE151: Gas | BG151: 46.04 | BH151: 1.19
A152: =COUNTIF($C$5:$C152,$C152) -> 1 | B152: 1 | C152: 75-04-7 | D152: エチルアミン | E152: 665 | F152: 平成18年度 | G152: 新規分類 | I152: 区分1 | L152: 液化ガス | X152: 区分4 | Y152: 区分3 | AC152: 区分1 | AD152: 区分1 | AJ152: 区分3 | AK152: 区分1 | AT152: 5 | AV152: 15 | BA152: 45.08 | BB152: Skin | BC152: 2012 | BE152: Gas | BG152: 45.08 | BH152: -0.13
A153: =COUNTIF($C$5:$C153,$C153) -> 1 | B153: 1 | C153: 75-05-8 | D153: アセトニトリル | E153: H29-B-052 | F153: 平成29年度 | G153: 再分類・見直し | M153: 区分2 | Y153: 区分3 | AA153: 区分4 | AD153: 区分2 | AJ153: 区分1 | AK153: 区分2 | AT153: 20 | BA153: 41.05 | BB153: Skin | BC153: 1996 | BE153: Liquid | BF153: 82 | BG153: 41.05 | BH153: -0.34 | BJ153: 1000000 | BK153: mg/L | BL153: 9.7 | BM153: kPa
A154: =COUNTIF($C$5:$C154,$C154) -> 1 | B154: 1 | C154: 75-07-0 | D154: アセトアルデヒド | E154: H27-B-034/C-070B_P | F154: 平成27年度 | G154: 再分類・見直し | M154: 区分1 | X154: 区分4 | Y154: 区分3 | AA154: 区分4 | AD154: 区分2 | AF154: 区分1 | AG154: 区分2 | AH154: 区分1 | AI154: 区分1 | AJ154: 区分1 | AK154: 区分1 | AO154: 50 | AP154: 90 | AS154: 1990 | AX154: 25 | BA154: 44.05 | BC154: 2013 | BE154: Liquid | BF154: 20.1 | BG154: 44.05 | BH154: 0.63 | BI154: -38 | BJ154: 1000 | BK154: g/L | BL154: 101 | BM154: kPa
A155: =COUNTIF($C$5:$C155,$C155) -> 1 | B155: 1 | C155: 75-08-1 | D155: エタンチオール | E155: H26-B-012 / R-004 | F155: 平成26年度 | G155: 再分類・見直し | M155: 区分1 | X155: 区分4 | AA155: 区分4 | AD155: 区分2 | AJ155: 区分1 | AT155: 0.5 | BA155: 62.13 | BC155: 2003 | BE155: Liquid | BF155: 35.1 | BG155: 62.13 | BH155: 1.5 | BI155: -48 | BJ155: 0.68 | BK155: g/100mL | BL155: 58.9 | BM155: kPa
A156: =COUNTIF($C$5:$C156,$C156) -> 1 | B156: 1 | C156: 75-09-2 | D156: ジクロロメタン | E156: H29-B-064 | F156: 平成29年度 | G156: 再分類・見直し | AA156: 区分4 | AC156: 区分2 | AD156: 区分2 | AH156: 区分1 | AI156: 区分2 | AJ156: 区分1 | AK156: 区分1 | AM156: 50 | AN156: 170 | AO156: 100 | AP156: 340 | AR156: Skin | AS156: 1999 | AT156: 50 | BA156: 84.93 | BC156: 1997 | BE156: Liquid | BF156: 40 | BG156: 84.93 | BH156: 1.25 | BJ156: 1.3 | BK156: g/100mL | BL156: 47.4 | BM156: kPa
A157: =COUNTIF($C$5:$C157,$C157) -> 1 | B157: 1 | C157: 75-10-5 | D157: ジフルオロメタン | E157: 21A3655 | F157: 平成21年度 | G157: 新規分類 | I157: 区分1 | L157: 液化ガス | AJ157: 区分3 | BE157: Gas | BG157: 52.02338 | BH157: 0.2
A158: =COUNTIF($C$5:$C158,$C158) -> 1 | B158: 1 | C158: 75-11-6 | D158: ヨウ化メチレン | E158: H27-A-025/C-055A_P | F158: 平成27年度 | G158: 新規分類 | BE158: Liquid | BF158: 182 | BH158: 2.3 | BJ158: 1 | BK158: g/L | BL158: 1.2 | BM158: mmHg
A159: =COUNTIF($C$5:$C159,$C159) -> 1 | B159: 1 | C159: 75-12-7 | D159: ホルムアミド | E159: H26-B-097 / R-043 | F159: 平成26年度 | G159: 再分類・見直し | AD159: 区分2 | AI159: 区分1 | AT159: 10 | BA159: 45.04 | BB159: Skin | BC159: 1985 | BE159: Liquid | BF159: 210 | BG159: 45.04 | BH159: -0.82 | BI159: 120 | BJ159: 1000 | BK159: g/L | BL159: 0.061 | BM159: mmHg
A160: =COUNTIF($C$5:$C160,$C160) -> 1 | B160: 1 | C160: 75-15-0 | D160: 二硫化炭素 | E160: H29-B-074 | F160: 平成29年度 | G160: 再分類・見直し | M160: 区分1 | AA160: 区分4 | AC160: 区分2 | AD160: 区分2 | AI160: 区分1 | AJ160: 区分1 | AK160: 区分1 | AM160: 1 | AN160: 3.13 | AR160: Skin | AS160: 2015 | AT160: 1 | BA160: 76.14 | BB160: Skin | BC160: 2005 | BE160: Liquid | BF160: 46 | BG160: 76.14 | BH160: 1.94 | BJ160: 2860 | BK160: mg/L | BL160: 48 | BM160: kPa
A161: =COUNTIF($C$5:$C161,$C161) -> 1 | B161: 1 | C161: 75-18-3 | D161: 硫化ジメチル | E161: H26-B-134 / R-060 | F161: 平成26年度 | G161: 再分類・見直し | M161: 区分2 | AD161: 区分2 | AT161: 10 | BA161: 62.14 | BC161: 2001 | BE161: Liquid | BF161: 37.3 | BG161: 62.13 | BH161: 0.84 | BI161: -49 | BJ161: 22 | BK161: g/L | BL161: 53.2 | BM161: kPa
A162: =COUNTIF($C$5:$C162,$C162) -> 1 | B162: 1 | C162: 75-19-4 | D162: シクロプロパン | E162: 23A5121 | F162: 平成23年度 | G162: 新規分類 | I162: 区分1 | L162: 液化ガス | AJ162: 区分3 | BE162: Gas | BH162: 1.72 | BI162: -94.4
A163: =COUNTIF($C$5:$C163,$C163) -> 1 | B163: 1 | C163: 75-20-7 | D163: 炭化カルシウム（別名カーバイド） | E163: 1385 | F163: 平成18年度 | G163: 新規分類 | S163: 区分1 | AC163: 区分1 | AD163: 区分1 | AJ163: 区分2 | BE163: Solid | BH163: -0.3
A164: =COUNTIF($C$5:$C164,$C164) -> 1 | B164: 1 | C164: 75-21-8 | D164: エチレンオキシド | E164: 23B5506 | F164: 平成23年度 | G164: 再分類・見直し | I164: 区分1 | L164: 液化ガス | X164: 区分3 | Z164: 区分3 | AC164: 区分2 | AD164: 区分2 | AF164: 区分1 | AG164: 区分1 | AH164: 区分1 | AI164: 区分1 | AJ164: 区分1 | AK164: 区分1 | AM164: 1 | AN164: 1.8 | AS164: 1990 | AT164: 1 | BA164: 44.05 | BC164: 1990 | BE164: Gas | BG164: 44.05 | BH164: -0.3 | BI164: -20
A165: =COUNTIF($C$5:$C165,$C165) -> 1 | B165: 1 | C165: 75-25-2 | D165: トリブロモメタン | E165: H29-B-065 | F165: 平成29年度 | G165: 再分類・見直し | X165: 区分4 | AC165: 区分2 | AD165: 区分2 | AG165: 区分2 | AH165: 区分2 | AI165: 区分2 | AJ165: 区分1 | AK165: 区分1 | AM165: 1 | AN165: 10.3 | AS165: 1997 | AT165: 0.5 | BA165: 252.73 | BC165: 2008 | BE165: Liquid | BF165: 149 | BG165: 252.73 | BH165: 2.38 | BJ165: 0.1 | BK165: g/100mL | BL165: 0.7 | BM165: kPa
A166: =COUNTIF($C$5:$C166,$C166) -> 1 | B166: 1 | C166: 75-26-3 | D166: 2-ブロモプロパン | E166: H26-B-085 / - | F166: 平成26年度 | G166: 再分類・見直し | M166: 区分2 | AD166: 区分2 | AI166: 区分1 | AK166: 区分1 | AM166: 1 | AN166: 5 | AR166: Skin | AS166: 1999 | BC166: 未設定(2017年現在） | BE166: Liquid | BF166: 59 | BG166: 122.99 | BH166: 2.14 | BI166: -20 | BJ166: 3 | BK166: g/L | BL166: 28792 | BM166: Pa
A167: =COUNTIF($C$5:$C167,$C167) -> 1 | B167: 1 | C167: 75-27-4 | D167: ブロモジクロロメタン | E167: - / R-127 | F167: 平成26年度 | G167: 再分類・見直し | X167: 区分4 | AH167: 区分2 | AK167: 区分2 | BC167: 未設定(2017年現在） | BE167: Liquid | BF167: 88.4 | BG167: 163.83 | BH167: 2 | BJ167: 1 | BK167: g/L | BL167: 50 | BM167: mmHg
A168: =COUNTIF($C$5:$C168,$C168) -> 1 | B168: 1 | C168: 75-28-5 | D168: 2-メチルプロパン | E168: 21A3704 | F168: 平成21年度 | G168: 新規分類 | I168: 区分1 | L168: 液化ガス | Z168: 区分4 | AJ168: 区分2 | BE168: Gas | BG168: 58.12 | BH168: 2.76
A169: =COUNTIF($C$5:$C169,$C169) -> 1 | B169: 1 | C169: 75-29-6 | D169: 2‐クロロプロパン | E169: 20A2075 | F169: 平成20年度 | G169: 新規分類 | M169: 区分2 | AJ169: 区分3 | BE169: Liquid | BF169: 35 | BG169: 78.54 | BH169: 1.9 | BI169: -32 | BJ169: 3050 | BK169: mg/L | BL169: 515.3 | BM169: mmHg
A170: =COUNTIF($C$5:$C170,$C170) -> 1 | B170: 1 | C170: 75-31-0 | D170: イソプロピルアミン | E170: H29-B-120 | F170: 平成29年度 | G170: 再分類・見直し | M170: 区分1 | X170: 区分4 | Y170: 区分3 | AA170: 区分4 | AC170: 区分1 | AD170: 区分1 | AJ170: 区分1 | AK170: 区分2 | AT170: 5 | AV170: 10 | BA170: 59.08 | BC170: 1962 | BE170: Liquid | BF170: 33 | BG170: 59.11 | BH170: 0.3 | BJ170: 106 | BK170: mg/L | BL170: 62.5 | BM170: kPa
A171: =COUNTIF($C$5:$C171,$C171) -> 1 | B171: 1 | C171: 75-34-3 | D171: 1,1-ジクロロエタン | E171: H26-B-045 / R-019 | F171: 平成26年度 | G171: 再分類・見直し | M171: 区分2 | AA171: 区分4 | AC171: 区分2 | AD171: 区分2 | AG171: 区分2 | AJ171: 区分1 | AM171: 100 | AN171: 400 | AS171: 1993 | AT171: 100 | BA171: 98.97 | BC171: 1990 | BD171: ACGIH（2017）には記載がないが、モデルSDSには記載あり | BE171: Liquid | BF171: 57.4 | BG171: 98.96 | BH171: 1.79 | BI171: -17 | BJ171: 0.6 | BK171: g/100mL | BL171: 227 | BM171: mmHg
A172: =COUNTIF($C$5:$C172,$C172) -> 1 | B172: 1 | C172: 75-35-4 | D172: 1,1-ジクロロエチレン (別名：塩化ビニリデン) | E172: H28-B-041, C-056B | F172: 平成28年度 | G172: 再分類・見直し | M172: 区分1 | O172: タイプG | X172: 区分4 | AA172: 区分4 | AH172: 区分1 | AI172: 区分2 | AJ172: 区分1 | AK172: 区分1 | AT172: 5 | BA172: 96.95 | BC172: 1992 | BE172: Liquid | BF172: 32 | BG172: 96.94 | BH172: 1.32 | BJ172: 0.25 | BK172: g/100mL | BL172: 66.5 | BM172: kPa
A173: =COUNTIF($C$5:$C173,$C173) -> 1 | B173: 1 | C173: 75-36-5 | D173: アセチルクロリド | E173: 20A2004 | F173: 平成20年度 | G173: 新規分類 | M173: 区分2 | X173: 区分4 | AC173: 区分1 | AD173: 区分1 | AJ173: 区分3 | BE173: Liquid | BF173: 52 | BG173: 78.5 | BI173: 4 | BL173: 320 | BM173: mbar
A174: =COUNTIF($C$5:$C174,$C174) -> 1 | B174: 1 | C174: 75-37-6 | D174: 1, 1-ジフルオロエタン | E174: 21A3514 | F174: 平成21年度 | G174: 新規分類 | I174: 区分1 | L174: 液化ガス | AJ174: 区分3 | BE174: Gas | BG174: 66.04996 | BH174: 0.75
A175: =COUNTIF($C$5:$C175,$C175) -> 1 | B175: 1 | C175: 75-38-7 | D175: 弗化ビニリデン | E175: 25B0019 | F175: 平成25年度 | G175: 再分類・見直し | I175: 区分1 | L175: 液化ガス | AJ175: 区分3 | AT175: 500 | BA175: 64.04 | BC175: 1996 | BE175: Gas | BG175: 64.03 | BH175: 1.24
A176: =COUNTIF($C$5:$C176,$C176) -> 1 | B176: 1 | C176: 75-43-4 | D176: ジクロロフルオロメタン | E176: 135 | F176: 平成18年度 | G176: 新規分類 | L176: 液化ガス | AD176: 区分2 | AI176: 区分2 | AJ176: 区分3 | AK176: 区分1 | AT176: 10 | BA176: 102.92 | BC176: 1977 | BE176: Gas | BG176: 102.92 | BH176: 1.55
A177: =COUNTIF($C$5:$C177,$C177) -> 1 | B177: 1 | C177: 75-44-5 | D177: ホスゲン | E177: 68 | F177: 平成18年度 | G177: 新規分類 | L177: 液化ガス | Z177: 区分1 | AC177: 区分2 | AD177: 区分2 | AJ177: 区分1 | AK177: 区分1 | AM177: 0.1 | AN177: 0.4 | AS177: 1969 | AT177: 0.1 | BA177: 98.92 | BC177: 1992 | BE177: Gas | BG177: 98.92
A178: =COUNTIF($C$5:$C178,$C178) -> 1 | B178: 1 | C178: 75-45-6 | D178: クロロジフルオロメタン | E178: H26-B-038 / R-016 | F178: 平成26年度 | G178: 再分類・見直し | L178: 液化ガス | AD178: 区分2 | AI178: 区分2 | AJ178: 区分1 | AM178: 1000 | AN178: 3500 | AS178: 1987 | AT178: 1000 | BA178: 86.47 | BC178: 1990 | BE178: Gas | BG178: 86.47 | BH178: 1.08
A179: =COUNTIF($C$5:$C179,$C179) -> 1 | B179: 1 | C179: 75-46-7 | D179: トリフルオロメタン | E179: 21A3560 | F179: 平成21年度 | G179: 新規分類 | L179: 液化ガス | AJ179: 区分3 | BE179: Gas | BG179: 70.01 | BH179: 0.64
A180: =COUNTIF($C$5:$C180,$C180) -> 1 | B180: 1 | C180: 75-47-8 | D180: ヨードホルム | E180: 996 | F180: 平成18年度 | G180: 新規分類 | X180: 区分4 | Y180: 区分4 | AB180: 区分4 | AD180: 区分2 | AJ180: 区分3 | AT180: 0.6 | BA180: 393.73 | BC180: 1979 | BE180: Solid | BF180: 218 | BG180: 393.73 | BH180: 3.03 | BJ180: 100 | BK180: mg/L | BL180: 5.28 | BM180: Pa
A181: =COUNTIF($C$5:$C181,$C181) -> 1 | B181: 1 | C181: 75-50-3 | D181: トリメチルアミン | E181: H29-B-008 | F181: 平成29年度 | G181: 再分類・見直し | I181: 区分1 | L181: 液化ガス | X181: 区分4 | Z181: 区分4 | AC181: 区分1 | AD181: 区分1 | AJ181: 区分2 | AK181: 区分1 | AT181: 5 | AV181: 15 | BA181: 59.11 | BC181: 2012 | BE181: Gas | BG181: 59.11 | BH181: 0.2 | BI181: 3.3
A182: =COUNTIF($C$5:$C182,$C182) -> 1 | B182: 1 | C182: 75-52-5 | D182: ニトロメタン | E182: H29-B-053 | F182: 平成29年度 | G182: 再分類・見直し | M182: 区分3 | O182: タイプG | X182: 区分4 | AD182: 区分2 | AH182: 区分2 | AJ182: 区分1 | AK182: 区分1 | AT182: 20 | BA182: 61.04 | BC182: 1997 | BE182: Liquid | BF182: 101 | BG182: 61.04 | BH182: -0.35 | BI182: 35 | BL182: 3.7 | BM182: kPa
A183: =COUNTIF($C$5:$C183,$C183) -> 1 | B183: 1 | C183: 75-54-7 | D183: ジクロロ（メチル）シラン | E183: 21A3546 | F183: 平成21年度 | G183: 新規分類 | M183: 区分2 | S183: 区分1 | AA183: 区分2 | AC183: 区分1 | AD183: 区分1 | AJ183: 区分3 | BE183: Liquid | BF183: 41 | BG183: 115.03 | BH183: 1.7 | BI183: -16 | BJ183: 3720 | BK183: mg/L | BL183: 429 | BM183: mmHg
A184: =COUNTIF($C$5:$C184,$C184) -> 1 | B184: 1 | C184: 75-55-8 | D184: プロピレンイミン | E184: 929 | F184: 平成18年度 | G184: 新規分類 | M184: 区分2 | X184: 区分2 | Y184: 区分2 | AA184: 区分2 | AC184: 区分2 | AD184: 区分2 | AH184: 区分2 | AJ184: 区分3 | AM184: 0.2 | AN184: 0.45 | AQ184: 暫定 | AR184: Skin | AS184: 2017 | AT184: 0.2 | AV184: 0.4 | BA184: 57.09 | BB184: Skin | BC184: 2008 | BE184: Liquid | BF184: 63 | BG184: 57.09 | BH184: 0.13 | BJ184: 1000000 | BK184: mg/L | BL184: 14.9 | BM184: kPa
A185: =COUNTIF($C$5:$C185,$C185) -> 1 | B185: 1 | C185: 75-56-9 | D185: 酸化プロピレン（1,2-エポキシプロパン） | E185: 22B4527 | F185: 平成22年度 | G185: 再分類・見直し | M185: 区分1 | X185: 区分4 | Y185: 区分3 | AA185: 区分4 | AC185: 区分2 | AD185: 区分1 | AF185: 区分1 | AG185: 区分2 | AH185: 区分2 | AI185: 区分2 | AJ185: 区分3 | AT185: 2 | BA185: 58.08 | BC185: 2000 | BE185: Liquid | BF185: 34.23 | BG185: 58.08 | BH185: 0.03 | BI185: -37 | BJ185: 40.5 | BK185: g/100mL | BL185: 442 | BM185: mmHg
A186: =COUNTIF($C$5:$C186,$C186) -> 1 | B186: 1 | C186: 75-59-2 | D186: テトラメチルアンモニウム=ヒドロキシド | E186: 23A5174 | F186: 平成23年度 | G186: 新規分類 | X186: 区分2 | Y186: 区分2 | AC186: 区分1 | AD186: 区分1 | AJ186: 区分1 | AK186: 区分1 | BE186: Solid | BG186: 91.15 | BH186: -2.47 | BI186: 6 | BJ186: 1000 | BK186: g/L | BL186: 1.55e-06 | BM186: hPa
A187: =COUNTIF($C$5:$C187,$C187) -> 1 | B187: 1 | C187: 75-61-6 | D187: ジブロモジフルオロメタン | E187: 793 | F187: 平成18年度 | G187: 新規分類 | AJ187: 区分2 | AT187: 100 | BA187: 209.83 | BC187: 1962 | BE187: Gas | BG187: 209.82 | BH187: 1.99
A188: =COUNTIF($C$5:$C188,$C188) -> 1 | B188: 1 | C188: 75-63-8 | D188: ブロモトリフルオロメタン | E188: 186 | F188: 平成18年度 | G188: 新規分類 | L188: 液化ガス | AD188: 区分2 | AJ188: 区分3 | AT188: 1000 | BA188: 148.92 | BC188: 1979 | BE188: Gas | BG188: 148.91 | BH188: 1.86
A189: =COUNTIF($C$5:$C189,$C189) -> 1 | B189: 1 | C189: 75-64-9 | D189: ターシャリ-ブチルアミン | E189: 22A4140 | F189: 平成22年度 | G189: 新規分類 | M189: 区分2 | X189: 区分3 | AA189: 区分3 | BE189: Liquid | BF189: 44.04 | BG189: 73.14 | BH189: 0.4 | BI189: -8 | BJ189: 1000000 | BK189: mg/L | BL189: 372 | BM189: mmHg
A190: =COUNTIF($C$5:$C190,$C190) -> 1 | B190: 1 | C190: 75-65-0 | D190: tert-ブタノール | E190: 25B0053 | F190: 平成25年度 | G190: 再分類・見直し | N190: 区分1 | AD190: 区分2 | AI190: 区分2 | AJ190: 区分3 | AM190: 50 | AN190: 150 | AS190: 1987 | AT190: 100 | BA190: 74.12 | BC190: 1992 | BE190: Solid | BF190: 83 | BG190: 74.12 | BI190: 11 | BL190: 40.7 | BM190: mmHg
A191: =COUNTIF($C$5:$C191,$C191) -> 1 | B191: 1 | C191: 75-66-1 | D191: ｔert-ブチルメルカプタン | E191: H29-A-024 | F191: 平成29年度 | G191: 新規分類 | M191: 区分2 | AD191: 区分2 | AF191: 区分1 | AJ191: 区分3 | AK191: 区分2 | BG191: 90.18
A192: =COUNTIF($C$5:$C192,$C192) -> 1 | B192: 1 | C192: 75-68-3 | D192: 1-クロロ-1,1-ジフルオロエタン | E192: 382 | F192: 平成18年度 | G192: 新規分類 | I192: 区分1 | L192: 液化ガス | AD192: 区分2 | BE192: Gas | BG192: 100.5 | BH192: 1.66
A193: =COUNTIF($C$5:$C193,$C193) -> 1 | B193: 1 | C193: 75-69-4 | D193: トリクロロフルオロメタン | E193: 162 | F193: 平成18年度 | G193: 新規分類 | AI193: 区分2 | AJ193: 区分1 | AO193: 1000 | AP193: 5600 | AS193: 1987 | AX193: 1000 | BA193: 137.38 | BC193: 1992 | BE193: Gas | BG193: 137.37 | BH193: 2.53
A194: =COUNTIF($C$5:$C194,$C194) -> 1 | B194: 1 | C194: 75-71-8 | D194: ジクロロジフルオロメタン | E194: 25B0020 | F194: 平成25年度 | G194: 再分類・見直し | L194: 液化ガス | AJ194: 区分3 | AM194: 500 | AN194: 2500 | AS194: 1987 | AT194: 1000 | BA194: 120.91 | BC194: 1979 | BE194: Gas | BG194: 120.91 | BH194: 2.16
A195: =COUNTIF($C$5:$C195,$C195) -> 1 | B195: 1 | C195: 75-72-9 | D195: クロロトリフルオロメタン | E195: 385 | F195: 平成18年度 | G195: 新規分類 | L195: 液化ガス | BE195: Gas | BG195: 104.46 | BH195: 1.65
A196: =COUNTIF($C$5:$C196,$C196) -> 1 | B196: 1 | C196: 75-73-0 | D196: テトラフルオロメタン | E196: 21A3559 | F196: 平成21年度 | G196: 新規分類 | L196: 液化ガス | AJ196: 区分3 | BE196: Gas | BG196: 88 | BH196: 1.18
A197: =COUNTIF($C$5:$C197,$C197) -> 1 | B197: =COUNTIF($C:$C,$C197) -> 1 | C197: 75-74-1 | D197: テトラメチル鉛 | E197: 46 | F197: 平成18年度 | G197: 新規分類 | M197: 区分3 | X197: 区分3 | AA197: 区分2 | AJ197: 区分1 | AK197: 区分1 | BE197: Liquid | BF197: 110 | BG197: 267.34 | BH197: 2.97 | BL197: 3 | BM197: kPa
A198: =COUNTIF($C$5:$C198,$C198) -> 1 | B198: 1 | C198: 75-75-2 | D198: メタンスルホン酸 | E198: 20A2142 | F198: 平成20年度 | G198: 新規分類 | X198: 区分3 | AB198: 区分4 | AC198: 区分1 | AD198: 区分1 | AI198: 区分2 | BE198: Liquid | BF198: 167 | BG198: 96.1 | BH198: -2.38 | BI198: 189 | BL198: 0.000428 | BM198: mmHg
A199: =COUNTIF($C$5:$C199,$C199) -> 1 | B199: 1 | C199: 75-76-3 | D199: テトラメチルシラン | E199: 21A3652 | F199: 平成21年度 | G199: 新規分類 | M199: 区分1 | BE199: Liquid | BF199: 26.6 | BH199: 3.24 | BJ199: 20 | BK199: mg/L | BL199: 718 | BM199: mmHg
A200: =COUNTIF($C$5:$C200,$C200) -> 1 | B200: 1 | C200: 75-77-4 | D200: クロロトリメチルシラン | E200: 21A3558 | F200: 平成21年度 | G200: 新規分類 | M200: 区分2 | X200: 区分3 | Y200: 区分4 | AA200: 区分3 | AC200: 区分1 | AD200: 区分1 | AJ200: 区分2 | BE200: Liquid | BF200: 57 | BG200: 108.64 | BH200: 2.48 | BI200: -28 | BL200: 26.7 | BM200: kPa
... 925 more rows
